Date Spend Occurred,Department Incurring Spend,Beneficiary Name,Summary of purpose of spend, Gross Amount ,Merchant Category,Text,Document Header Text
01/04/2019,CWD CONTRACTS/SLA'S,Barnardo's Fostering South East,Grants-Third Sector and Voluntary Orgs/Charities," 4,613.00 ",LAC Agency Fees,SB for Disabled Children Inn Grant - Barnardos,Short Breaks Inn Grant
01/04/2019,ENSUR SECTOR QUALITY,Best Western Reigate Manor Hotel,New GR/IR Account, 450.00 ,Catering Supplies,,
01/04/2019,AGENCY NON CWD SC,Bramley Care Ltd,Residential Placements," 17,669.69 ",Res Care,,
01/04/2019,POST 16 PLACEMENT SW,Cambain Whinfell School Ltd,Agency Placement Expenditure," 17,536.21 ",SEND Agncy Placement,,
01/04/2019,POST 16 PLACEMENT NE,Cambain Whinfell School Ltd,Agency Placement Expenditure," 20,189.33 ",SEND Agncy Placement,,
01/04/2019,POST 16 PLACEMENT NE,Cambain Whinfell School Ltd,Agency Placement Expenditure," 25,001.67 ",SEND Agncy Placement,,
01/04/2019,NE AGENCY PLACE-ED,Cambian Asperger Syndrome Services,Agency Placement Expenditure," 6,895.75 ",SEN Specialist Supp,,
01/04/2019,SW AGENCY PLACE-ED,Cambian Asperger Syndrome Services,Agency Placement Expenditure," 43,430.33 ",SEN Specialist Supp,,
01/04/2019,NW AGENCY PLACE-ED,Cambian Asperger Syndrome Services,Agency Placement Expenditure," 44,299.00 ",SEN Specialist Supp,,
01/04/2019,SW AGENCY PLACE-ED,Cambian Asperger Syndrome Services,Agency Placement Expenditure," 47,028.33 ",SEN Specialist Supp,,
01/04/2019,Free Early Educ 3&4,Caterham Hill Congregational Church,Third Party Payments-Other Agencies," 1,391.04 ",Grants - Community,3YR ESTIMATE SUMMER 19 (30HRS EXTENDED),3YR 30HRS ESTIMATE SUM 19
01/04/2019,Free Early Educ 3&4,Caterham Hill Congregational Church,Third Party Payments-Other Agencies," 2,484.00 ",Grants - Community,4YR ESTIMATE SUMMER 19 (30HRS EXTENDED),4YR 30HRS ESTIMATE SUM 19
01/04/2019,Free Early Educ 2 yr,Caterham Hill Congregational Church,Third Party Payments-Other Agencies," 3,510.36 ",Grants - Community,2YR ESTIMATE SUMMER 19,2YR ESTIMATE SUMMER 19
01/04/2019,Free Early Educ 3&4,Christopher Robin Nursery,Third Party Payments-Other Agencies, 443.12 ,Nurseries,4YR ESTIMATE SUMMER 19 (30HRS EXTENDED),4YR 30HRS ESTIMATE SUM 19
01/04/2019,Free Early Educ 2 yr,Christopher Robin Nursery,Third Party Payments-Other Agencies," 1,375.92 ",Nurseries,2YR ESTIMATE SUMMER 19,2YR ESTIMATE SUMMER 19
01/04/2019,Free Early Educ 3&4,Christopher Robin Nursery,Third Party Payments-Other Agencies," 2,007.07 ",Nurseries,3YR ESTIMATE SUMMER 19 (30HRS EXTENDED),3YR 30HRS ESTIMATE SUM 19
01/04/2019,ASYLUM SKRS 16-17,Cornerways Fostering Services Ltd,Foster Care Placements," 4,038.68 ",Fostering IFA,,
01/04/2019,ASYLUM SKRS 16-17,Cornerways Fostering Services Ltd,Foster Care Placements," 4,197.71 ",Fostering IFA,,
01/04/2019,SW AGENCY PLACE-ED,Cornfield School Ltd,Agency Placement Expenditure," 11,957.60 ",Fostering Placement,,
01/04/2019,NW AGENCY PLACE-ED,Cornfield School Ltd,Agency Placement Expenditure," 13,455.94 ",Fostering Placement,,
01/04/2019,NW AGENCY PLACE-ED,Cornfield School Ltd,Agency Placement Expenditure," 14,947.00 ",Fostering Placement,,
01/04/2019,NW AGENCY PLACE-ED,Cornfield School Ltd,Agency Placement Expenditure," 14,947.00 ",Fostering Placement,,
01/04/2019,NW AGENCY PLACE-ED,Cornfield School Ltd,Agency Placement Expenditure," 14,947.00 ",Fostering Placement,,
01/04/2019,NW AGENCY PLACE-ED,Cornfield School Ltd,Agency Placement Expenditure," 14,947.00 ",Fostering Placement,,
01/04/2019,NE AGENCY PLACE-ED,Cornfield School Ltd,Agency Placement Expenditure," 14,947.00 ",Fostering Placement,,
01/04/2019,NW AGENCY PLACE-ED,Cornfield School Ltd,Agency Placement Expenditure," 14,947.00 ",Fostering Placement,,
01/04/2019,NE AGENCY PLACE-ED,Cornfield School Ltd,Agency Placement Expenditure," 20,095.33 ",Fostering Placement,,
01/04/2019,NE AGENCY PLACE-ED,Cressey Oasis Education Ltd,Agency Placement Expenditure," 13,333.33 ",SEND Agncy Placement,,
01/04/2019,NE AGENCY PLACE-ED,Cressey Oasis Education Ltd,Agency Placement Expenditure," 14,950.00 ",SEND Agncy Placement,,
01/04/2019,NE AGENCY PLACE-ED,Cressey Oasis Education Ltd,Agency Placement Expenditure," 18,297.00 ",SEND Agncy Placement,,
01/04/2019,NE AGENCY PLACE-ED,Cressey Oasis Education Ltd,Agency Placement Expenditure," 18,297.00 ",SEND Agncy Placement,,
01/04/2019,NE AGENCY PLACE-ED,Cressey Oasis Education Ltd,Agency Placement Expenditure," 18,654.33 ",SEND Agncy Placement,,
01/04/2019,NW AGENCY PLACE-ED,Cressey Oasis Education Ltd,Agency Placement Expenditure," 18,768.67 ",SEND Agncy Placement,,
01/04/2019,NE AGENCY PLACE-ED,Cressey Oasis Education Ltd,Agency Placement Expenditure," 18,768.67 ",SEND Agncy Placement,,
01/04/2019,NE AGENCY PLACE-ED,Cressey Oasis Education Ltd,Agency Placement Expenditure," 19,499.33 ",SEND Agncy Placement,,
01/04/2019,NE AGENCY PLACE-ED,Cressey Oasis Education Ltd,Agency Placement Expenditure," 21,875.67 ",SEND Agncy Placement,,
01/04/2019,CWD CONTRACTS/SLA'S,Cycling Projects,Grants-Third Sector and Voluntary Orgs/Charities," 5,500.00 ",Play Services,Redacted Personal Data,Short Breaks Inn Grant
01/04/2019,CWD CONTRACTS/SLA'S,Disability Challengers Ltd,Grants-Third Sector and Voluntary Orgs/Charities," 2,500.00 ",Grants-Member Allocs,Redacted Personal Data,Short Breaks Inn Grant
01/04/2019,NW AGENCY PLACE-ED,Eagle House (Sutton),Agency Placement Expenditure," 16,817.67 ",SEND Agncy Placement,,
01/04/2019,NW AGENCY PLACE-ED,Eagle House (Sutton),Agency Placement Expenditure," 16,817.67 ",SEND Agncy Placement,,
01/04/2019,SW AGENCY PLACE-ED,Eagle House (Sutton),Agency Placement Expenditure," 17,419.67 ",SEND Agncy Placement,,
01/04/2019,NW AGENCY PLACE-ED,Eagle House (Sutton),Agency Placement Expenditure," 17,690.67 ",SEND Agncy Placement,,
01/04/2019,SW AGENCY PLACE-ED,Eagle House (Sutton),Agency Placement Expenditure," 17,974.00 ",SEND Agncy Placement,,
01/04/2019,NW AGENCY PLACE-ED,Eagle House School Mitcham,Agency Placement Expenditure," 16,618.33 ",Schools,,
01/04/2019,NW AGENCY PLACE-ED,Eagle House School Mitcham,Agency Placement Expenditure," 17,087.00 ",Schools,,
01/04/2019,NW AGENCY PLACE-ED,Eagle House School Mitcham,Agency Placement Expenditure," 18,497.67 ",Schools,,
01/04/2019,POST 16 PLACEMENT SE,East Surrey College,Agency Placement Expenditure," 14,800.00 ",Schools,,
01/04/2019,POST 16 PLACEMENT SE,East Surrey College,Agency Placement Expenditure," 14,800.00 ",Schools,,
01/04/2019,POST 16 PLACEMENT SE,East Surrey College,Agency Placement Expenditure," 14,800.00 ",Schools,,
01/04/2019,DOMESTIC ABUSE,East Surrey Domestic Abuse Services,Grants-Third Sector and Voluntary Orgs/Charities," 191,000.00 ",Staff Training,ESDAS DA outreach services - SCC Payment 1,Outreach-Payment1
01/04/2019,,Elmbridge Borough Council,, 275.54 ,Local Government,*01.04.2019-01.04.2019-Council Rates Payable,Council tax Apr19
01/04/2019,FMR FIRE ELM GROVE,Energy & Compliance Technology Ltd,Term Contract Inspections, 266.17 ,Utilities - Gas,,179955 - PROJECT
01/04/2019,ESHER FIRE STATION,Energy & Compliance Technology Ltd,Term Contract Inspections, 266.17 ,Utilities - Gas,,179960 - PROJECT
01/04/2019,EPSOM GP HOME MHA,Energy & Compliance Technology Ltd,Term Contract Inspections, 266.17 ,Utilities - Gas,,180117 - PROJECT
01/04/2019,MEADOWCROFT CI SCH,Energy & Compliance Technology Ltd,Term Contract Inspections, 266.17 ,Utilities - Gas,,180026 - PROJECT
01/04/2019,GODSTONE DEPOT,Energy & Compliance Technology Ltd,Term Contract Inspections, 266.17 ,Utilities - Gas,,182794 - PROJECT
01/04/2019,THE MANSION L'HEAD,Energy & Compliance Technology Ltd,Term Contract Inspections, 266.17 ,Utilities - Gas,,179998 - PROJECT
01/04/2019,HAZEL HOUSE MERROW,Energy & Compliance Technology Ltd,Term Contract Inspections, 266.17 ,Utilities - Gas,,180028 - PROJECT
01/04/2019,VIRGINIA WATER LIB,Energy & Compliance Technology Ltd,Term Contract Inspections, 266.17 ,Utilities - Gas,,180096 - PROJECT
01/04/2019,2 HOOKWOOD COTTS,Energy & Compliance Technology Ltd,Term Contract Inspections, 266.17 ,Utilities - Gas,,179877 - PROJECT
01/04/2019,GENERAL PROP AC,Energy & Compliance Technology Ltd,Term Contract Inspections, 266.17 ,Utilities - Gas,,179977 - PROJECT
01/04/2019,COVEHAM COBHAM,Energy & Compliance Technology Ltd,Term Contract Inspections, 266.17 ,Utilities - Gas,,180129 - PROJECT
01/04/2019,FMR STARHURST SCHOOL,Energy & Compliance Technology Ltd,Buyback Inspections, 292.34 ,Utilities - Gas,,304875 - PROJECT
01/04/2019,BISHOP WAND SEC,Energy & Compliance Technology Ltd,Buyback Inspections, 294.52 ,Utilities - Gas,,324594 - PROJECT
01/04/2019,SALESIAN SCHOOL,Energy & Compliance Technology Ltd,Buyback Inspections, 294.52 ,Utilities - Gas,,316691 - PROJECT
01/04/2019,FULLBROOK NEW HAW,Energy & Compliance Technology Ltd,Buyback Inspections, 392.69 ,Utilities - Gas,,316681 - PROJECT
01/04/2019,CARWARDEN HOUSE SCH,Energy & Compliance Technology Ltd,Buyback Inspections, 566.40 ,Utilities - Gas,,205934 - PROJECT
01/04/2019,KNWL GRN STAINES LOC,Energy & Compliance Technology Ltd,Term Contract Inspections, 566.40 ,Utilities - Gas,,206491 - PROJECT
01/04/2019,GUILDFORD FIRE STN,Energy & Compliance Technology Ltd,Term Contract Inspections, 566.40 ,Utilities - Gas,,206487 - PROJECT
01/04/2019,PERFORMING ARTS LIBR,Energy & Compliance Technology Ltd,Term Contract Inspections, 566.40 ,Utilities - Gas,,206492 - PROJECT
01/04/2019,ASHFOPRD CEP SCH,Energy & Compliance Technology Ltd,Buyback Inspections, 566.40 ,Utilities - Gas,,205932 - PROJECT
01/04/2019,WEST BYFLEET JUN,Energy & Compliance Technology Ltd,Buyback Inspections, 566.40 ,Utilities - Gas,,205944 - PROJECT
01/04/2019,PORTESBURY SCHOOL,Energy & Compliance Technology Ltd,Buyback Inspections, 566.40 ,Utilities - Gas,,205941 - PROJECT
01/04/2019,SALFORDS FIRE STATIO,Energy & Compliance Technology Ltd,Term Contract Inspections, 566.40 ,Utilities - Gas,,206490 - PROJECT
01/04/2019,WOKING FIRE STN NEW,Energy & Compliance Technology Ltd,Term Contract Inspections, 566.40 ,Utilities - Gas,,206493 - PROJECT
01/04/2019,KINGS INTERNAT SCH,Energy & Compliance Technology Ltd,Buyback Inspections, 686.40 ,Utilities - Gas,,205939 - PROJECT
01/04/2019,CLIFTON HILL SCHOOL,Energy & Compliance Technology Ltd,Buyback Inspections," 1,132.80 ",Utilities - Gas,,205935 - PROJECT
01/04/2019,EPSOM PRY,Energy & Compliance Technology Ltd,Buyback Inspections," 1,252.80 ",Utilities - Gas,,205936 - PROJECT
01/04/2019,,Epsom & Ewell Borough Council,, 471.82 ,Grants-Member Allocs,*01.04.2019-01.04.2019-Council Rates Payable,Council tax Apr19
01/04/2019,SIGNS & LINES PRINC,Epsom & Ewell Borough Council,Fees," 1,440.00 ",Grants-Member Allocs,,
01/04/2019,SIGNS & LINES PRINC,Epsom & Ewell Borough Council,Fees," 47,974.01 ",Grants-Member Allocs,,
01/04/2019,NE IPSB - PLAYGROUPS,Epsom Playhouse Pre School,Agency Placement Nursery Exp," 1,284.66 ",Nurseries,,
01/04/2019,CWD CONTRACTS/SLA'S,Freewheelers Theatre & Media Ltd,Grants-Third Sector and Voluntary Orgs/Charities," 2,320.00 ",Grants-Member Allocs,Redacted Personal Data,Redacted Personal Data
01/04/2019,ASYLUM SKRS 16-17,Fusion Fostering Ltd,Foster Care Placements," 4,118.57 ",Fostering IFA,,
01/04/2019,,Guildford Borough Council - Council,, 351.18 ,Local Government,*01.04.2019-01.04.2019-Council Rates Payable,Council tax Apr19
01/04/2019,,Guildford Borough Council - Council,, 392.82 ,Local Government,*01.04.2019-01.04.2019-Council Rates Payable,Council tax Apr19
01/04/2019,,Guildford Borough Council - Council,, 467.10 ,Local Government,*01.04.2019-01.04.2019-Council Rates Payable,Council tax Apr19
01/04/2019,NW AGENCY PLACE-ED,Hamilton Lodge (Brighton) Ltd,Agency Placement Expenditure," 10,882.00 ",SEN Specialist Supp,,
01/04/2019,EH COMMISSIONS,Home Start Surrey,Third Party Payments-Other Agencies," 32,466.67 ",Res Care,,
01/04/2019,Free Early Educ 2 yr,Humpty Dumpty Pre School,Third Party Payments-Other Agencies, 381.02 ,Schools,2YR ESTIMATE SUMMER 19,2YR ESTIMATE SUMMER 19
01/04/2019,CWD CONTRACTS/SLA'S,InterAKtive,Grants-Third Sector and Voluntary Orgs/Charities," 5,000.00 ",Advice & Counselling,Redacted Personal Data,Short Breaks Inn Grant
01/04/2019,TS SERVICE MGMT,Kent County Council,Fees," 5,983.86 ",School Support Serv,,
01/04/2019,NW AGENCY PLACE-ED,Kisimul School,Agency Placement Expenditure," 35,025.00 ",SEN Specialist Supp,,
01/04/2019,CWD CONTRACTS/SLA'S,Linkable,Grants-Third Sector and Voluntary Orgs/Charities," 3,000.00 ",Play Services,Redacted Personal Data,Short Breaks Inn Grant
01/04/2019,,London Borough Wandsworth,," 3,352.17 ",Pensions,,
01/04/2019,,Mole Valley District Council - Tax,, 293.25 ,Local Government,*01.04.2019-01.04.2019-Council Rates Payable,Council tax Apr19
01/04/2019,,Mole Valley District Council - Tax,, 486.50 ,Local Government,*01.04.2019-01.04.2019-Council Rates Payable,Council tax Apr19
01/04/2019,NE AGENCY PLACE-ED,Moor House School & College,Agency Placement Expenditure," 10,765.67 ",School Support Serv,,
01/04/2019,NE AGENCY PLACE-ED,Moor House School & College,Agency Placement Expenditure," 11,358.67 ",School Support Serv,,
01/04/2019,NE AGENCY PLACE-ED,Moor House School & College,Agency Placement Expenditure," 13,156.67 ",School Support Serv,,
01/04/2019,NE AGENCY PLACE-ED,Moor House School & College,Agency Placement Expenditure," 13,803.67 ",School Support Serv,,
01/04/2019,NE AGENCY PLACE-ED,Moor House School & College,Agency Placement Expenditure," 14,862.67 ",School Support Serv,,
01/04/2019,NE AGENCY PLACE-ED,Moor House School & College,Agency Placement Expenditure," 18,016.67 ",School Support Serv,,
01/04/2019,OCCUPATIONAL THERAPY,Moore Occupational Therapy,Other Community Care - Priv, 275.23 ,Individual - NEC,,
01/04/2019,OCCUPATIONAL THERAPY,Moore Occupational Therapy,Other Community Care - Priv, 444.68 ,Individual - NEC,,
01/04/2019,OCCUPATIONAL THERAPY,Moore Occupational Therapy,Other Community Care - Priv, 656.96 ,Individual - NEC,,
01/04/2019,SW ASSESSMENT TEAM,Neopost Ltd-Neofunds Accounts,Postage and Courier Charges," 1,007.89 ",Non-Staff Expenses,,Redacted Personal Data
01/04/2019,IMT PRODUCTION APPS,Oracle Corporation UK Ltd,Computer Hardware," 4,104.16 ",Customised & Bespoke,,
01/04/2019,POST 16 PLACEMENT NW,Priory College Swindon Priory,Agency Placement Expenditure," 21,169.96 ",Further Education16+,,
01/04/2019,CWD CONTRACTS/SLA'S,Rainbow Trust Childrens Charity,Grants-Third Sector and Voluntary Orgs/Charities," 3,295.00 ",Short break,SB for Disabled Children Inn Grant - Rainbow Trust,Short Breaks Inn Grant
01/04/2019,DEM SERVICES TEAM,Redacted Personal Data,Miscellaneous Staff Travel, 252.80 ,Staff Expenses,*Trip from 25.03.19 To  29.03.19,Redacted Personal Data
01/04/2019,DEM SERVICES TEAM,Redacted Personal Data,Miscellaneous Staff Travel, 254.60 ,Staff Expenses,*Trip from 01.12.18 To  31.03.19,Redacted Personal Data
01/04/2019,DEM SERVICES TEAM,Redacted Personal Data,Miscellaneous Staff Travel, 259.65 ,Staff Expenses,*Trip from 07.01.19 To  29.03.19,Redacted Personal Data
01/04/2019,NE CP & COURT TEAM,Redacted Personal Data,Miscellaneous Staff Travel, 259.85 ,Staff Expenses,*Trip from 03.12.18 To  31.03.19,Redacted Personal Data
01/04/2019,DEM SERVICES TEAM,Redacted Personal Data,Miscellaneous Staff Travel, 263.14 ,Staff Expenses,*Trip from 01.01.19 To  31.03.19,Redacted Personal Data
01/04/2019,NE CP & COURT TEAM,Redacted Personal Data,Miscellaneous Staff Travel, 265.45 ,Staff Expenses,*Trip from 01.01.19 To  29.03.19,Redacted Personal Data
01/04/2019,DEM SERVICES TEAM,Redacted Personal Data,Miscellaneous Staff Travel, 266.90 ,Staff Expenses,*Trip from 01.02.19 To  28.02.19,Redacted Personal Data
01/04/2019,DEM SERVICES TEAM,Redacted Personal Data,Miscellaneous Staff Travel, 267.75 ,Staff Expenses,*Trip from 04.02.19 To  29.03.19,Redacted Personal Data
01/04/2019,DEM SERVICES TEAM,Redacted Personal Data,Miscellaneous Staff Travel, 271.35 ,Staff Expenses,*Trip from 01.03.19 To  31.03.19,Redacted Personal Data
01/04/2019,DEM SERVICES TEAM,Redacted Personal Data,Miscellaneous Staff Travel, 273.20 ,Staff Expenses,*Trip from 07.03.19 To  29.03.19,Redacted Personal Data
01/04/2019,NE CP & COURT TEAM,Redacted Personal Data,Miscellaneous Staff Travel, 281.26 ,Staff Expenses,*Trip from 03.01.19 To  31.01.19,Redacted Personal Data
01/04/2019,SE CARE - LAC,Redacted Personal Data,Non-Staff Related Transport Costs, 282.40 ,CYP Indiv Foster Car,Redacted Personal Data,
01/04/2019,DEM SERVICES TEAM,Redacted Personal Data,Miscellaneous Staff Travel, 286.90 ,Staff Expenses,*Trip from 01.04.18 To  31.10.18,Redacted Personal Data
01/04/2019,DEM SERVICES TEAM,Redacted Personal Data,Miscellaneous Staff Travel, 289.90 ,Staff Expenses,*Trip from 31.01.19 To  29.03.19,Redacted Personal Data
01/04/2019,NE CP & COURT TEAM,Redacted Personal Data,Miscellaneous Staff Travel, 292.28 ,Staff Expenses,*Trip from 01.03.19 To  29.03.19,Redacted Personal Data
01/04/2019,NE CP & COURT TEAM,Redacted Personal Data,Miscellaneous Staff Travel, 292.60 ,Staff Expenses,*Trip from 30.01.19 To  28.03.19,Redacted Personal Data
01/04/2019,DEM SERVICES TEAM,Redacted Personal Data,Miscellaneous Staff Travel, 297.79 ,Staff Expenses,*Trip from 13.02.19 To  29.03.19,Redacted Personal Data
01/04/2019,DEM SERVICES TEAM,Redacted Personal Data,Miscellaneous Staff Travel, 302.20 ,Staff Expenses,*Trip from 01.01.19 To  31.03.19,Redacted Personal Data
01/04/2019,DEM SERVICES TEAM,Redacted Personal Data,Miscellaneous Staff Travel, 302.20 ,Staff Expenses,*Trip from 11.01.18 To  18.07.18,Redacted Personal Data
01/04/2019,NE CP & COURT TEAM,Redacted Personal Data,Miscellaneous Staff Travel, 302.85 ,Staff Expenses,*Trip from 29.03.19 To  29.03.19,Redacted Personal Data
01/04/2019,DEM SERVICES TEAM,Redacted Personal Data,Miscellaneous Staff Travel, 303.42 ,Staff Expenses,*Trip from 13.02.19 To  29.03.19,Redacted Personal Data
01/04/2019,NE CP & COURT TEAM,Redacted Personal Data,Miscellaneous Staff Travel, 305.70 ,Staff Expenses,*Trip from 01.03.19 To  29.03.19,Redacted Personal Data
01/04/2019,NE CP & COURT TEAM,Redacted Personal Data,Miscellaneous Staff Travel, 307.76 ,Individual - NEC,*Trip from 01.03.19 To  29.03.19,Redacted Personal Data
01/04/2019,DEM SERVICES TEAM,Redacted Personal Data,Miscellaneous Staff Travel, 311.83 ,Staff Expenses,*Trip from 28.01.19 To  29.03.19,Redacted Personal Data
01/04/2019,NE CP & COURT TEAM,Redacted Personal Data,Miscellaneous Staff Travel, 315.10 ,Staff Expenses,*Trip from 25.02.19 To  31.03.19,Redacted Personal Data
01/04/2019,DEM SERVICES TEAM,Redacted Personal Data,Miscellaneous Staff Travel, 321.35 ,Staff Expenses,*Trip from 01.03.19 To  31.03.19,Redacted Personal Data
01/04/2019,DEM SERVICES TEAM,Redacted Personal Data,Miscellaneous Staff Travel, 327.59 ,Staff Expenses,*Trip from 01.03.19 To  27.03.19,Redacted Personal Data
01/04/2019,DEM SERVICES TEAM,Redacted Personal Data,Miscellaneous Staff Travel, 330.15 ,Staff Expenses,*Trip from 01.04.18 To  28.03.19,Redacted Personal Data
01/04/2019,SPEECH & LNG THERAPY,Redacted Personal Data,Other Community Care - Priv, 335.00 ,Individual - NEC,,
01/04/2019,DEM SERVICES TEAM,Redacted Personal Data,Miscellaneous Staff Travel, 338.35 ,Staff Expenses,*Trip from 16.04.18 To  28.03.19,Redacted Personal Data
01/04/2019,NE CP & COURT TEAM,Redacted Personal Data,Miscellaneous Staff Travel, 342.75 ,Staff Expenses,*Trip from 01.02.19 To  29.03.19,Redacted Personal Data
01/04/2019,DEM SERVICES TEAM,Redacted Personal Data,Miscellaneous Staff Travel, 348.75 ,Staff Expenses,*Trip from 04.03.19 To  29.03.19,Redacted Personal Data
01/04/2019,DEM SERVICES TEAM,Redacted Personal Data,Miscellaneous Staff Travel, 351.25 ,Staff Expenses,*Trip from 19.02.19 To  29.03.19,Redacted Personal Data
01/04/2019,DEM SERVICES TEAM,Redacted Personal Data,Miscellaneous Staff Travel, 354.70 ,Staff Expenses,*Trip from 01.11.18 To  28.02.19,Redacted Personal Data
01/04/2019,DEM SERVICES TEAM,Redacted Personal Data,Miscellaneous Staff Travel, 355.89 ,Staff Expenses,*Trip from 01.03.19 To  29.03.19,Redacted Personal Data
01/04/2019,NE CP & COURT TEAM,Redacted Personal Data,Miscellaneous Staff Travel, 362.23 ,Staff Expenses,*Trip from 14.01.19 To  29.03.19,Redacted Personal Data
01/04/2019,DEM SERVICES TEAM,Redacted Personal Data,Miscellaneous Staff Travel, 379.71 ,Staff Expenses,*Trip from 01.03.19 To  31.03.19,Redacted Personal Data
01/04/2019,SW CARE - LAC,Redacted Personal Data,Special Guardianship Orders, 386.06 ,LAC Spec Guardianshi,Redacted Personal Data,C629392
01/04/2019,NE CP & COURT TEAM,Redacted Personal Data,Miscellaneous Staff Travel, 391.85 ,Staff Expenses,*Trip from 01.03.19 To  25.03.19,Redacted Personal Data
01/04/2019,DEM SERVICES TEAM,Redacted Personal Data,Miscellaneous Staff Travel, 402.95 ,Staff Expenses,*Trip from 01.07.18 To  29.03.19,Redacted Personal Data
01/04/2019,NE CP & COURT TEAM,Redacted Personal Data,Miscellaneous Staff Travel, 416.86 ,Staff Expenses,*Trip from 01.02.19 To  28.02.19,Redacted Personal Data
01/04/2019,DEM SERVICES TEAM,Redacted Personal Data,Miscellaneous Staff Travel, 430.00 ,Staff Expenses,*Trip from 01.03.19 To  29.03.19,Redacted Personal Data
01/04/2019,NE CP & COURT TEAM,Redacted Personal Data,Miscellaneous Staff Travel, 437.95 ,Staff Expenses,*Trip from 25.02.19 To  29.03.19,Redacted Personal Data
01/04/2019,NE CP & COURT TEAM,Redacted Personal Data,Miscellaneous Staff Travel, 446.67 ,Staff Expenses,*Trip from 25.02.19 To  27.03.19,Redacted Personal Data
01/04/2019,NE CP & COURT TEAM,Redacted Personal Data,Miscellaneous Staff Travel, 448.15 ,Staff Expenses,*Trip from 01.03.19 To  30.03.19,Redacted Personal Data
01/04/2019,SW CARE - LAC,Redacted Personal Data,Curric - Consumables, 450.00 ,Invoicing Plan Req.,Redacted Personal Data,
01/04/2019,NE CP & COURT TEAM,Redacted Personal Data,Miscellaneous Staff Travel, 457.85 ,Staff Expenses,*Trip from 01.03.19 To  29.03.19,Redacted Personal Data
01/04/2019,NE CP & COURT TEAM,Redacted Personal Data,Miscellaneous Staff Travel, 465.12 ,Staff Expenses,*Trip from 01.03.19 To  31.03.19,Redacted Personal Data
01/04/2019,DEM SERVICES TEAM,Redacted Personal Data,Miscellaneous Staff Travel, 470.25 ,Staff Expenses,*Trip from 04.02.19 To  31.03.19,Redacted Personal Data
01/04/2019,NE CP & COURT TEAM,Redacted Personal Data,Miscellaneous Staff Travel, 474.15 ,Staff Expenses,*Trip from 01.03.19 To  28.03.19,Redacted Personal Data
01/04/2019,DEM SERVICES TEAM,Redacted Personal Data,Miscellaneous Staff Travel, 478.31 ,Staff Expenses,*Trip from 07.01.19 To  22.03.19,Redacted Personal Data
01/04/2019,NE CP & COURT TEAM,Redacted Personal Data,Miscellaneous Staff Travel, 483.59 ,Staff Expenses,*Trip from 21.01.19 To  22.03.19,Redacted Personal Data
01/04/2019,DEM SERVICES TEAM,Redacted Personal Data,Miscellaneous Staff Travel, 494.75 ,Staff Expenses,*Trip from 01.01.19 To  29.03.19,Redacted Personal Data
01/04/2019,Free Early Educ 3&4,Redacted Personal Data,Third Party Payments-Other Agencies, 496.80 ,Educ Finance Serv,3YR ESTIMATE SUMMER 19 (30HRS EXTENDED),3YR 30HRS ESTIMATE SUM 19
01/04/2019,NE CP & COURT TEAM,Redacted Personal Data,Miscellaneous Staff Travel, 508.44 ,Staff Expenses,*Trip from 21.01.19 To  28.02.19,Redacted Personal Data
01/04/2019,NE CP & COURT TEAM,Redacted Personal Data,Miscellaneous Staff Travel, 510.60 ,Staff Expenses,*Trip from 19.02.19 To  28.03.19,Redacted Personal Data
01/04/2019,NE CP & COURT TEAM,Redacted Personal Data,Miscellaneous Staff Travel, 518.94 ,Staff Expenses,*Trip from 31.01.19 To  29.03.19,Redacted Personal Data
01/04/2019,DEM SERVICES TEAM,Redacted Personal Data,Miscellaneous Staff Travel, 523.60 ,Staff Expenses,*Trip from 21.08.18 To  19.03.19,Redacted Personal Data
01/04/2019,Free Early Educ 3&4,Redacted Personal Data,Third Party Payments-Other Agencies, 538.20 ,Nursery,4YR ESTIMATE SUMMER 19 (UNIVERSAL),4YR ESTIMATE SUMMER 19
01/04/2019,Free Early Educ 3&4,Redacted Personal Data,Third Party Payments-Other Agencies, 538.20 ,Nursery,3YR ESTIMATE SUMMER 19 (30HRS EXTENDED),3YR 30HRS ESTIMATE SUM 19
01/04/2019,Free Early Educ 3&4,Redacted Personal Data,Third Party Payments-Other Agencies, 538.20 ,Nursery,4YR ESTIMATE SUMMER 19 (30HRS EXTENDED),4YR 30HRS ESTIMATE SUM 19
01/04/2019,DEM SERVICES TEAM,Redacted Personal Data,Miscellaneous Staff Travel, 545.92 ,Staff Expenses,*Trip from 01.04.18 To  29.03.19,Redacted Personal Data
01/04/2019,NE CP & COURT TEAM,Redacted Personal Data,Miscellaneous Staff Travel, 550.08 ,Staff Expenses,*Trip from 25.02.19 To  29.03.19,Redacted Personal Data
01/04/2019,NE CP & COURT TEAM,Redacted Personal Data,Miscellaneous Staff Travel, 566.30 ,Staff Expenses,*Trip from 12.02.19 To  29.03.19,Redacted Personal Data
01/04/2019,NE CP & COURT TEAM,Redacted Personal Data,Miscellaneous Staff Travel, 566.85 ,Staff Expenses,*Trip from 04.02.19 To  29.03.19,Redacted Personal Data
01/04/2019,Free Early Educ 3&4,Redacted Personal Data,Third Party Payments-Other Agencies, 626.52 ,Nursery,3YR ESTIMATE SUMMER 19 (UNIVERSAL),3YR ESTIMATE SUMMER 19
01/04/2019,DEM SERVICES TEAM,Redacted Personal Data,Miscellaneous Staff Travel, 724.14 ,Staff Expenses,*Trip from 01.01.19 To  31.03.19,Redacted Personal Data
01/04/2019,Free Early Educ 3&4,Redacted Personal Data,Third Party Payments-Other Agencies, 760.76 ,Nursery,3YR ESTIMATE SUMMER 19 (UNIVERSAL),3YR ESTIMATE SUMMER 19
01/04/2019,DEM SERVICES TEAM,Redacted Personal Data,Miscellaneous Staff Travel, 823.96 ,Staff Expenses,*Trip from 01.07.18 To  31.07.18,Redacted Personal Data
01/04/2019,Free Early Educ 3&4,Redacted Personal Data,Third Party Payments-Other Agencies, 844.56 ,Nursery,3YR ESTIMATE SUMMER 19 (30HRS EXTENDED),3YR 30HRS ESTIMATE SUM 19
01/04/2019,Free Early Educ 3&4,Redacted Personal Data,Third Party Payments-Other Agencies, 861.12 ,Nursery,3YR ESTIMATE SUMMER 19 (UNIVERSAL),3YR ESTIMATE SUMMER 19
01/04/2019,DEM SERVICES TEAM,Redacted Personal Data,Miscellaneous Staff Travel, 878.25 ,Staff Expenses,*Trip from 01.09.18 To  29.03.19,Redacted Personal Data
01/04/2019,NE CP & COURT TEAM,Redacted Personal Data,Miscellaneous Staff Travel, 943.58 ,Staff Expenses,*Trip from 03.09.18 To  31.03.19,Redacted Personal Data
01/04/2019,DEM SERVICES TEAM,Redacted Personal Data,Miscellaneous Staff Travel, 949.01 ,Staff Expenses,*Trip from 01.01.19 To  31.03.19,Redacted Personal Data
01/04/2019,Free Early Educ 3&4,Redacted Personal Data,Third Party Payments-Other Agencies, 993.60 ,Nursery,3YR ESTIMATE SUMMER 19 (30HRS EXTENDED),3YR 30HRS ESTIMATE SUM 19
01/04/2019,PRIMARY FESTIVALS,Redacted Personal Data,Educ Visits/Hols/Camps/Toys," 1,000.00 ",Individual - NEC,,
01/04/2019,Free Early Educ 3&4,Redacted Personal Data,Third Party Payments-Other Agencies," 1,004.64 ",Nursery,3YR ESTIMATE SUMMER 19 (30HRS EXTENDED),3YR 30HRS ESTIMATE SUM 19
01/04/2019,DEM SERVICES TEAM,Redacted Personal Data,Miscellaneous Staff Travel," 1,283.46 ",Staff Expenses,*Trip from 01.10.18 To  31.12.18,Redacted Personal Data
01/04/2019,NW ALTERNATIVE SEN,Redacted Personal Data,Agency Placement Expenditure," 1,310.60 ",SEN Specialist Supp,Redacted Personal Data,
01/04/2019,NE CP & COURT TEAM,Redacted Personal Data,Miscellaneous Staff Travel," 1,313.68 ",Staff Expenses,*Trip from 08.01.19 To  28.03.19,Redacted Personal Data
01/04/2019,Free Early Educ 3&4,Redacted Personal Data,Third Party Payments-Other Agencies," 1,331.42 ",Nursery,3YR ESTIMATE SUMMER 19 (UNIVERSAL),3YR ESTIMATE SUMMER 19
01/04/2019,DEM SERVICES TEAM,Redacted Personal Data,Miscellaneous Staff Travel," 1,375.24 ",Staff Expenses,*Trip from 01.08.18 To  30.09.18,Redacted Personal Data
01/04/2019,DEM SERVICES TEAM,Redacted Personal Data,Miscellaneous Staff Travel," 1,515.00 ",Staff Expenses,*Trip from 17.12.18 To  29.03.19,Redacted Personal Data
01/04/2019,NE EDUC PSYCHLOGISTS,Redacted Personal Data,Consultants," 1,700.00 ",Educ Consultancy,,
01/04/2019,NE CP & COURT TEAM,Redacted Personal Data,Miscellaneous Staff Travel," 2,271.67 ",Staff Expenses,*Trip from 11.04.18 To  22.03.19,Redacted Personal Data
01/04/2019,Free Early Educ 3&4,Redacted Personal Data,Third Party Payments-Other Agencies," 3,229.20 ",CIN Pathfinder,3YR ESTIMATE SUMMER 19 (30HRS EXTENDED),3YR 30HRS ESTIMATE SUM 19
01/04/2019,Free Early Educ 3&4,Redacted Personal Data,Third Party Payments-Other Agencies," 5,382.00 ",CIN Pathfinder,4YR ESTIMATE SUMMER 19 (30HRS EXTENDED),4YR 30HRS ESTIMATE SUM 19
01/04/2019,CHILD ARRANGE ORDERS,Redacted Personal Data,Special Guardianship Orders," 8,076.42 ",CYP Indiv Foster Car,Redacted Personal Data,C592750
01/04/2019,DOMESTIC ABUSE,Reigate & Banstead Womens Aid,Grants-Third Sector and Voluntary Orgs/Charities," 54,500.00 ",Grants-Member Allocs,R&B Women's Aid Refuge - Payment 1,Refuge-Payment1
01/04/2019,CWD CONTRACTS/SLA'S,Rhythmix,Grants-Third Sector and Voluntary Orgs/Charities," 3,334.00 ",Performing Arts,Redacted Personal Data,Short Breaks Inn Grant
01/04/2019,,Runnymede Borough Council,, 407.43 ,Local Government,*01.04.2019-01.04.2019-Council Rates Payable,Council tax Apr19
01/04/2019,DRAIN MAINT CWDE NPR,Runnymede Borough Council,Contractor," 1,010.40 ",Local Government,,
01/04/2019,DRAIN MAINT CWDE NPR,Runnymede Borough Council,Contractor," 4,155.60 ",Local Government,,
01/04/2019,TARGETED INTERVENTN,SCC Active Learning Programme,Educ Visits/Hols/Camps/Toys," 1,794.22 ",NT - Internal Pymt,,
01/04/2019,CWD CONTRACTS/SLA'S,SCC Freemantles School,Grants-Third Sector and Voluntary Orgs/Charities," 4,000.00 ",Schools,SB for Disaabled Children Inn Grant - Freemantles,Short Breaks Inn Grant
01/04/2019,CWD CONTRACTS/SLA'S,SCC Portesbery School,Grants-Third Sector and Voluntary Orgs/Charities," 5,668.00 ",Schools,Redacted Personal Data,Short Breaks Inn Grant
01/04/2019,CWD CONTRACTS/SLA'S,SCC Portesbery School,Grants-Third Sector and Voluntary Orgs/Charities," 10,334.00 ",Schools,Redacted Personal Data,Short Breaks Inn Grant
01/04/2019,CWD CONTRACTS/SLA'S,SCC Woodlands School,Grants-Third Sector and Voluntary Orgs/Charities," 10,334.00 ",Schools,Redacted Personal Data,Short Breaks Inn Grant
01/04/2019,NE S17 CARE,Sight for Surrey,Other Community Care, 442.58 ,Dom Care - Adults,,
01/04/2019,CWD CONTRACTS/SLA'S,Sight for Surrey,Grants-Third Sector and Voluntary Orgs/Charities," 5,000.00 ",Dom Care - Adults,Redacted Personal Data,Short Breaks Inn Grant
01/04/2019,CWD CONTRACTS/SLA'S,Sight for Surrey,Grants-Third Sector and Voluntary Orgs/Charities," 5,250.00 ",Dom Care - Adults,Redacted Personal Data,Short Breaks Inn Grant
01/04/2019,PSSS ICT SUPPORT,Smartbox Assistive Technology Ltd,Equipment, 606.00 ,Appl Serv Provision,,
01/04/2019,,Spelthorne Borough Council,, 354.60 ,Grants-Member Allocs,*01.04.2019-01.04.2019-Council Rates Payable,Council tax Apr19
01/04/2019,,Spelthorne Borough Council,, 417.44 ,Grants-Member Allocs,*01.04.2019-01.04.2019-Council Rates Payable,Council tax Apr19
01/04/2019,,Surrey Heath Borough Council - Tax,, 335.48 ,Local Government,*01.04.2019-01.04.2019-Council Rates Payable,Council tax Apr19
01/04/2019,CWD CONTRACTS/SLA'S,Surrey Special Needs Ski & Outdoor,Grants-Third Sector and Voluntary Orgs/Charities," 10,000.00 ",Schools,SB for Disabled Children Inn Grant - SPENSOL,Short Breaks Inn Grant
01/04/2019,,Tandridge District Council,, 584.60 ,Local Government,*01.04.2019-01.04.2019-Council Rates Payable,Council tax Apr19
01/04/2019,,Teachers Pensions,, 265.80 ,Pensions,Redacted Personal Data,Redacted Personal Data
01/04/2019,,Teachers Pensions,, 274.40 ,Pensions,Redacted Personal Data,Redacted Personal Data
01/04/2019,,Teachers Pensions,, 279.83 ,Pensions,Redacted Personal Data,Redacted Personal Data
01/04/2019,,Teachers Pensions,, 290.97 ,Pensions,Redacted Personal Data,Redacted Personal Data
01/04/2019,,Teachers Pensions,, 311.41 ,Pensions,Redacted Personal Data,Redacted Personal Data
01/04/2019,,Teachers Pensions,, 356.60 ,Pensions,Redacted Personal Data,Redacted Personal Data
01/04/2019,,Teachers Pensions,, 422.01 ,Pensions,Redacted Personal Data,Redacted Personal Data
01/04/2019,,Teachers Pensions,, 467.35 ,Pensions,Redacted Personal Data,Redacted Personal Data
01/04/2019,,Teachers Pensions,, 504.00 ,Pensions,Redacted Personal Data,Redacted Personal Data
01/04/2019,,Teachers Pensions,, 514.80 ,Pensions,Redacted Personal Data,Redacted Personal Data
01/04/2019,,Teachers Pensions,, 541.72 ,Pensions,Redacted Personal Data,Redacted Personal Data
01/04/2019,,Teachers Pensions,, 567.36 ,Pensions,Redacted Personal Data,Redacted Personal Data
01/04/2019,,Teachers Pensions,, 569.05 ,Pensions,Redacted Personal Data,Redacted Personal Data
01/04/2019,,Teachers Pensions,, 638.93 ,Pensions,Redacted Personal Data,Redacted Personal Data
01/04/2019,,Teachers Pensions,, 657.60 ,Pensions,Redacted Personal Data,Redacted Personal Data
01/04/2019,,Teachers Pensions,, 847.10 ,Pensions,Redacted Personal Data,Redacted Personal Data
01/04/2019,,Teachers Pensions,, 972.26 ,Pensions,Redacted Personal Data,Redacted Personal Data
01/04/2019,,Teachers Pensions,, 976.80 ,Pensions,Redacted Personal Data,Redacted Personal Data
01/04/2019,,Teachers Pensions,," 1,063.31 ",Pensions,Redacted Personal Data,Redacted Personal Data
01/04/2019,,Teachers Pensions,," 1,123.11 ",Pensions,Redacted Personal Data,Redacted Personal Data
01/04/2019,,Teachers Pensions,," 1,141.82 ",Pensions,Redacted Personal Data,Redacted Personal Data
01/04/2019,,Teachers Pensions,," 1,385.00 ",Pensions,Redacted Personal Data,Redacted Personal Data
01/04/2019,,Teachers Pensions,," 1,573.45 ",Pensions,Redacted Personal Data,Redacted Personal Data
01/04/2019,,Teachers Pensions,," 1,619.43 ",Pensions,Redacted Personal Data,Redacted Personal Data
01/04/2019,,Teachers Pensions,," 1,771.36 ",Pensions,Redacted Personal Data,Redacted Personal Data
01/04/2019,,Teachers Pensions,," 1,786.85 ",Pensions,Redacted Personal Data,Redacted Personal Data
01/04/2019,,Teachers Pensions,," 1,804.08 ",Pensions,Redacted Personal Data,Redacted Personal Data
01/04/2019,,Teachers Pensions,," 1,904.69 ",Pensions,Redacted Personal Data,Redacted Personal Data
01/04/2019,,Teachers Pensions,," 1,949.07 ",Pensions,Redacted Personal Data,Redacted Personal Data
01/04/2019,,Teachers Pensions,," 1,953.26 ",Pensions,Redacted Personal Data,Redacted Personal Data
01/04/2019,,Teachers Pensions,," 1,996.80 ",Pensions,Redacted Personal Data,Redacted Personal Data
01/04/2019,,Teachers Pensions,," 2,237.33 ",Pensions,Redacted Personal Data,Redacted Personal Data
01/04/2019,,Teachers Pensions,," 2,238.10 ",Pensions,Redacted Personal Data,Redacted Personal Data
01/04/2019,,Teachers Pensions,," 2,269.75 ",Pensions,Redacted Personal Data,Redacted Personal Data
01/04/2019,,Teachers Pensions,," 2,293.22 ",Pensions,Redacted Personal Data,Redacted Personal Data
01/04/2019,,Teachers Pensions,," 2,298.48 ",Pensions,Redacted Personal Data,Redacted Personal Data
01/04/2019,,Teachers Pensions,," 2,340.90 ",Pensions,Redacted Personal Data,Redacted Personal Data
01/04/2019,,Teachers Pensions,," 2,379.98 ",Pensions,Redacted Personal Data,Redacted Personal Data
01/04/2019,,Teachers Pensions,," 2,407.36 ",Pensions,Redacted Personal Data,Redacted Personal Data
01/04/2019,,Teachers Pensions,," 2,566.38 ",Pensions,Redacted Personal Data,Redacted Personal Data
01/04/2019,,Teachers Pensions,," 2,574.46 ",Pensions,Redacted Personal Data,Redacted Personal Data
01/04/2019,,Teachers Pensions,," 2,580.35 ",Pensions,Redacted Personal Data,Redacted Personal Data
01/04/2019,,Teachers Pensions,," 2,645.57 ",Pensions,Redacted Personal Data,Redacted Personal Data
01/04/2019,,Teachers Pensions,," 2,659.34 ",Pensions,Redacted Personal Data,Redacted Personal Data
01/04/2019,,Teachers Pensions,," 2,662.06 ",Pensions,Redacted Personal Data,Redacted Personal Data
01/04/2019,,Teachers Pensions,," 2,731.59 ",Pensions,Redacted Personal Data,Redacted Personal Data
01/04/2019,,Teachers Pensions,," 2,738.05 ",Pensions,Redacted Personal Data,Redacted Personal Data
01/04/2019,,Teachers Pensions,," 2,845.19 ",Pensions,Redacted Personal Data,Redacted Personal Data
01/04/2019,,Teachers Pensions,," 2,963.39 ",Pensions,Redacted Personal Data,Redacted Personal Data
01/04/2019,,Teachers Pensions,," 2,975.91 ",Pensions,Redacted Personal Data,Redacted Personal Data
01/04/2019,,Teachers Pensions,," 2,997.70 ",Pensions,Redacted Personal Data,Redacted Personal Data
01/04/2019,,Teachers Pensions,," 3,059.53 ",Pensions,Redacted Personal Data,Redacted Personal Data
01/04/2019,,Teachers Pensions,," 3,111.72 ",Pensions,Redacted Personal Data,Redacted Personal Data
01/04/2019,,Teachers Pensions,," 3,153.66 ",Pensions,Redacted Personal Data,Redacted Personal Data
01/04/2019,,Teachers Pensions,," 3,162.38 ",Pensions,Redacted Personal Data,Redacted Personal Data
01/04/2019,,Teachers Pensions,," 3,170.65 ",Pensions,Redacted Personal Data,Redacted Personal Data
01/04/2019,,Teachers Pensions,," 3,171.47 ",Pensions,Redacted Personal Data,Redacted Personal Data
01/04/2019,,Teachers Pensions,," 3,254.76 ",Pensions,Redacted Personal Data,Redacted Personal Data
01/04/2019,,Teachers Pensions,," 3,269.54 ",Pensions,Redacted Personal Data,Redacted Personal Data
01/04/2019,,Teachers Pensions,," 3,325.79 ",Pensions,Redacted Personal Data,Redacted Personal Data
01/04/2019,,Teachers Pensions,," 3,333.06 ",Pensions,Redacted Personal Data,Redacted Personal Data
01/04/2019,,Teachers Pensions,," 3,377.58 ",Pensions,Redacted Personal Data,Redacted Personal Data
01/04/2019,,Teachers Pensions,," 3,397.82 ",Pensions,Redacted Personal Data,Redacted Personal Data
01/04/2019,,Teachers Pensions,," 3,403.00 ",Pensions,Redacted Personal Data,Redacted Personal Data
01/04/2019,,Teachers Pensions,," 3,427.56 ",Pensions,Redacted Personal Data,Redacted Personal Data
01/04/2019,,Teachers Pensions,," 3,464.85 ",Pensions,Redacted Personal Data,Redacted Personal Data
01/04/2019,,Teachers Pensions,," 3,485.55 ",Pensions,Redacted Personal Data,Redacted Personal Data
01/04/2019,,Teachers Pensions,," 3,492.37 ",Pensions,Redacted Personal Data,Redacted Personal Data
01/04/2019,,Teachers Pensions,," 3,522.01 ",Pensions,Redacted Personal Data,Redacted Personal Data
01/04/2019,,Teachers Pensions,," 3,529.62 ",Pensions,Redacted Personal Data,Redacted Personal Data
01/04/2019,,Teachers Pensions,," 3,531.14 ",Pensions,Redacted Personal Data,Redacted Personal Data
01/04/2019,,Teachers Pensions,," 3,548.33 ",Pensions,Redacted Personal Data,Redacted Personal Data
01/04/2019,,Teachers Pensions,," 3,596.30 ",Pensions,Redacted Personal Data,Redacted Personal Data
01/04/2019,,Teachers Pensions,," 3,661.45 ",Pensions,Redacted Personal Data,Redacted Personal Data
01/04/2019,,Teachers Pensions,," 3,703.80 ",Pensions,Redacted Personal Data,Redacted Personal Data
01/04/2019,,Teachers Pensions,," 3,741.38 ",Pensions,Redacted Personal Data,Redacted Personal Data
01/04/2019,,Teachers Pensions,," 3,753.40 ",Pensions,Redacted Personal Data,Redacted Personal Data
01/04/2019,,Teachers Pensions,," 3,764.22 ",Pensions,Redacted Personal Data,Redacted Personal Data
01/04/2019,,Teachers Pensions,," 3,810.02 ",Pensions,Redacted Personal Data,Redacted Personal Data
01/04/2019,,Teachers Pensions,," 3,811.57 ",Pensions,Redacted Personal Data,Redacted Personal Data
01/04/2019,,Teachers Pensions,," 3,925.27 ",Pensions,Redacted Personal Data,Redacted Personal Data
01/04/2019,,Teachers Pensions,," 3,970.44 ",Pensions,Redacted Personal Data,Redacted Personal Data
01/04/2019,,Teachers Pensions,," 3,990.05 ",Pensions,Redacted Personal Data,Redacted Personal Data
01/04/2019,,Teachers Pensions,," 4,039.77 ",Pensions,Redacted Personal Data,Redacted Personal Data
01/04/2019,,Teachers Pensions,," 4,081.00 ",Pensions,Redacted Personal Data,Redacted Personal Data
01/04/2019,,Teachers Pensions,," 4,085.73 ",Pensions,Redacted Personal Data,Redacted Personal Data
01/04/2019,,Teachers Pensions,," 4,154.62 ",Pensions,Redacted Personal Data,Redacted Personal Data
01/04/2019,,Teachers Pensions,," 4,157.75 ",Pensions,Redacted Personal Data,Redacted Personal Data
01/04/2019,,Teachers Pensions,," 4,175.20 ",Pensions,Redacted Personal Data,Redacted Personal Data
01/04/2019,,Teachers Pensions,," 4,222.47 ",Pensions,Redacted Personal Data,Redacted Personal Data
01/04/2019,,Teachers Pensions,," 4,273.07 ",Pensions,Redacted Personal Data,Redacted Personal Data
01/04/2019,,Teachers Pensions,," 4,275.58 ",Pensions,Redacted Personal Data,Redacted Personal Data
01/04/2019,,Teachers Pensions,," 4,366.55 ",Pensions,Redacted Personal Data,Redacted Personal Data
01/04/2019,,Teachers Pensions,," 4,393.86 ",Pensions,Redacted Personal Data,Redacted Personal Data
01/04/2019,,Teachers Pensions,," 4,396.36 ",Pensions,Redacted Personal Data,Redacted Personal Data
01/04/2019,,Teachers Pensions,," 4,409.37 ",Pensions,Redacted Personal Data,Redacted Personal Data
01/04/2019,,Teachers Pensions,," 4,413.96 ",Pensions,Redacted Personal Data,Redacted Personal Data
01/04/2019,,Teachers Pensions,," 4,482.86 ",Pensions,Redacted Personal Data,Redacted Personal Data
01/04/2019,,Teachers Pensions,," 4,509.46 ",Pensions,Redacted Personal Data,Redacted Personal Data
01/04/2019,,Teachers Pensions,," 4,553.13 ",Pensions,Redacted Personal Data,Redacted Personal Data
01/04/2019,,Teachers Pensions,," 4,595.48 ",Pensions,Redacted Personal Data,Redacted Personal Data
01/04/2019,,Teachers Pensions,," 4,598.75 ",Pensions,Redacted Personal Data,Redacted Personal Data
01/04/2019,,Teachers Pensions,," 4,627.09 ",Pensions,Redacted Personal Data,Redacted Personal Data
01/04/2019,,Teachers Pensions,," 4,683.36 ",Pensions,Redacted Personal Data,Redacted Personal Data
01/04/2019,,Teachers Pensions,," 4,705.84 ",Pensions,Redacted Personal Data,Redacted Personal Data
01/04/2019,,Teachers Pensions,," 4,733.97 ",Pensions,Redacted Personal Data,Redacted Personal Data
01/04/2019,,Teachers Pensions,," 4,795.29 ",Pensions,Redacted Personal Data,Redacted Personal Data
01/04/2019,,Teachers Pensions,," 4,827.75 ",Pensions,Redacted Personal Data,Redacted Personal Data
01/04/2019,,Teachers Pensions,," 4,836.31 ",Pensions,Redacted Personal Data,Redacted Personal Data
01/04/2019,,Teachers Pensions,," 4,840.69 ",Pensions,Redacted Personal Data,Redacted Personal Data
01/04/2019,,Teachers Pensions,," 4,896.66 ",Pensions,Redacted Personal Data,Redacted Personal Data
01/04/2019,,Teachers Pensions,," 4,921.93 ",Pensions,Redacted Personal Data,Redacted Personal Data
01/04/2019,,Teachers Pensions,," 4,955.72 ",Pensions,Redacted Personal Data,Redacted Personal Data
01/04/2019,,Teachers Pensions,," 4,963.86 ",Pensions,Redacted Personal Data,Redacted Personal Data
01/04/2019,,Teachers Pensions,," 5,005.45 ",Pensions,Redacted Personal Data,Redacted Personal Data
01/04/2019,,Teachers Pensions,," 5,023.34 ",Pensions,Redacted Personal Data,Redacted Personal Data
01/04/2019,,Teachers Pensions,," 5,079.68 ",Pensions,Redacted Personal Data,Redacted Personal Data
01/04/2019,,Teachers Pensions,," 5,084.60 ",Pensions,Redacted Personal Data,Redacted Personal Data
01/04/2019,,Teachers Pensions,," 5,115.65 ",Pensions,Redacted Personal Data,Redacted Personal Data
01/04/2019,,Teachers Pensions,," 5,125.19 ",Pensions,Redacted Personal Data,Redacted Personal Data
01/04/2019,,Teachers Pensions,," 5,151.44 ",Pensions,Redacted Personal Data,Redacted Personal Data
01/04/2019,,Teachers Pensions,," 5,213.66 ",Pensions,Redacted Personal Data,Redacted Personal Data
01/04/2019,,Teachers Pensions,," 5,237.93 ",Pensions,Redacted Personal Data,Redacted Personal Data
01/04/2019,,Teachers Pensions,," 5,241.16 ",Pensions,Redacted Personal Data,Redacted Personal Data
01/04/2019,,Teachers Pensions,," 5,255.14 ",Pensions,Redacted Personal Data,Redacted Personal Data
01/04/2019,,Teachers Pensions,," 5,325.64 ",Pensions,Redacted Personal Data,Redacted Personal Data
01/04/2019,,Teachers Pensions,," 5,349.35 ",Pensions,Redacted Personal Data,Redacted Personal Data
01/04/2019,,Teachers Pensions,," 5,359.18 ",Pensions,Redacted Personal Data,Redacted Personal Data
01/04/2019,,Teachers Pensions,," 5,368.92 ",Pensions,Redacted Personal Data,Redacted Personal Data
01/04/2019,,Teachers Pensions,," 5,373.05 ",Pensions,Redacted Personal Data,Redacted Personal Data
01/04/2019,,Teachers Pensions,," 5,420.52 ",Pensions,Redacted Personal Data,Redacted Personal Data
01/04/2019,,Teachers Pensions,," 5,454.76 ",Pensions,Redacted Personal Data,Redacted Personal Data
01/04/2019,,Teachers Pensions,," 5,462.25 ",Pensions,Redacted Personal Data,Redacted Personal Data
01/04/2019,,Teachers Pensions,," 5,463.81 ",Pensions,Redacted Personal Data,Redacted Personal Data
01/04/2019,,Teachers Pensions,," 5,527.13 ",Pensions,Redacted Personal Data,Redacted Personal Data
01/04/2019,,Teachers Pensions,," 5,608.62 ",Pensions,Redacted Personal Data,Redacted Personal Data
01/04/2019,,Teachers Pensions,," 5,627.96 ",Pensions,Redacted Personal Data,Redacted Personal Data
01/04/2019,,Teachers Pensions,," 5,629.24 ",Pensions,Redacted Personal Data,Redacted Personal Data
01/04/2019,,Teachers Pensions,," 5,665.19 ",Pensions,Redacted Personal Data,Redacted Personal Data
01/04/2019,,Teachers Pensions,," 5,666.06 ",Pensions,Redacted Personal Data,Redacted Personal Data
01/04/2019,,Teachers Pensions,," 5,758.16 ",Pensions,Redacted Personal Data,Redacted Personal Data
01/04/2019,,Teachers Pensions,," 5,759.57 ",Pensions,Redacted Personal Data,Redacted Personal Data
01/04/2019,,Teachers Pensions,," 5,761.13 ",Pensions,Redacted Personal Data,Redacted Personal Data
01/04/2019,,Teachers Pensions,," 5,812.44 ",Pensions,Redacted Personal Data,Redacted Personal Data
01/04/2019,,Teachers Pensions,," 5,841.37 ",Pensions,Redacted Personal Data,Redacted Personal Data
01/04/2019,,Teachers Pensions,," 5,861.01 ",Pensions,Redacted Personal Data,Redacted Personal Data
01/04/2019,,Teachers Pensions,," 5,874.20 ",Pensions,Redacted Personal Data,Redacted Personal Data
01/04/2019,,Teachers Pensions,," 5,884.18 ",Pensions,Redacted Personal Data,Redacted Personal Data
01/04/2019,,Teachers Pensions,," 5,894.34 ",Pensions,Redacted Personal Data,Redacted Personal Data
01/04/2019,,Teachers Pensions,," 5,932.42 ",Pensions,Redacted Personal Data,Redacted Personal Data
01/04/2019,,Teachers Pensions,," 5,943.06 ",Pensions,Redacted Personal Data,Redacted Personal Data
01/04/2019,,Teachers Pensions,," 5,943.22 ",Pensions,Redacted Personal Data,Redacted Personal Data
01/04/2019,,Teachers Pensions,," 5,947.62 ",Pensions,Redacted Personal Data,Redacted Personal Data
01/04/2019,,Teachers Pensions,," 5,953.45 ",Pensions,Redacted Personal Data,Redacted Personal Data
01/04/2019,,Teachers Pensions,," 5,980.40 ",Pensions,Redacted Personal Data,Redacted Personal Data
01/04/2019,,Teachers Pensions,," 6,006.20 ",Pensions,Redacted Personal Data,Redacted Personal Data
01/04/2019,,Teachers Pensions,," 6,006.63 ",Pensions,Redacted Personal Data,Redacted Personal Data
01/04/2019,,Teachers Pensions,," 6,035.70 ",Pensions,Redacted Personal Data,Redacted Personal Data
01/04/2019,,Teachers Pensions,," 6,052.70 ",Pensions,Redacted Personal Data,Redacted Personal Data
01/04/2019,,Teachers Pensions,," 6,076.01 ",Pensions,Redacted Personal Data,Redacted Personal Data
01/04/2019,,Teachers Pensions,," 6,105.22 ",Pensions,Redacted Personal Data,Redacted Personal Data
01/04/2019,,Teachers Pensions,," 6,120.47 ",Pensions,Redacted Personal Data,Redacted Personal Data
01/04/2019,,Teachers Pensions,," 6,150.86 ",Pensions,Redacted Personal Data,Redacted Personal Data
01/04/2019,,Teachers Pensions,," 6,202.66 ",Pensions,Redacted Personal Data,Redacted Personal Data
01/04/2019,,Teachers Pensions,," 6,217.81 ",Pensions,Redacted Personal Data,Redacted Personal Data
01/04/2019,,Teachers Pensions,," 6,219.94 ",Pensions,Redacted Personal Data,Redacted Personal Data
01/04/2019,,Teachers Pensions,," 6,287.23 ",Pensions,Redacted Personal Data,Redacted Personal Data
01/04/2019,,Teachers Pensions,," 6,290.17 ",Pensions,Redacted Personal Data,Redacted Personal Data
01/04/2019,,Teachers Pensions,," 6,324.47 ",Pensions,Redacted Personal Data,Redacted Personal Data
01/04/2019,,Teachers Pensions,," 6,327.60 ",Pensions,Redacted Personal Data,Redacted Personal Data
01/04/2019,,Teachers Pensions,," 6,355.74 ",Pensions,Redacted Personal Data,Redacted Personal Data
01/04/2019,,Teachers Pensions,," 6,362.52 ",Pensions,Redacted Personal Data,Redacted Personal Data
01/04/2019,,Teachers Pensions,," 6,396.50 ",Pensions,Redacted Personal Data,Redacted Personal Data
01/04/2019,,Teachers Pensions,," 6,410.16 ",Pensions,Redacted Personal Data,Redacted Personal Data
01/04/2019,,Teachers Pensions,," 6,416.82 ",Pensions,Redacted Personal Data,Redacted Personal Data
01/04/2019,,Teachers Pensions,," 6,485.90 ",Pensions,Redacted Personal Data,Redacted Personal Data
01/04/2019,,Teachers Pensions,," 6,530.42 ",Pensions,Redacted Personal Data,Redacted Personal Data
01/04/2019,,Teachers Pensions,," 6,546.13 ",Pensions,Redacted Personal Data,Redacted Personal Data
01/04/2019,,Teachers Pensions,," 6,782.26 ",Pensions,Redacted Personal Data,Redacted Personal Data
01/04/2019,,Teachers Pensions,," 6,872.70 ",Pensions,Redacted Personal Data,Redacted Personal Data
01/04/2019,,Teachers Pensions,," 6,883.65 ",Pensions,Redacted Personal Data,Redacted Personal Data
01/04/2019,,Teachers Pensions,," 6,895.08 ",Pensions,Redacted Personal Data,Redacted Personal Data
01/04/2019,,Teachers Pensions,," 6,922.03 ",Pensions,Redacted Personal Data,Redacted Personal Data
01/04/2019,,Teachers Pensions,," 7,060.15 ",Pensions,Redacted Personal Data,Redacted Personal Data
01/04/2019,,Teachers Pensions,," 7,118.31 ",Pensions,Redacted Personal Data,Redacted Personal Data
01/04/2019,,Teachers Pensions,," 7,240.79 ",Pensions,Redacted Personal Data,Redacted Personal Data
01/04/2019,,Teachers Pensions,," 7,261.88 ",Pensions,Redacted Personal Data,Redacted Personal Data
01/04/2019,,Teachers Pensions,," 7,356.39 ",Pensions,Redacted Personal Data,Redacted Personal Data
01/04/2019,,Teachers Pensions,," 7,482.07 ",Pensions,Redacted Personal Data,Redacted Personal Data
01/04/2019,,Teachers Pensions,," 7,518.25 ",Pensions,Redacted Personal Data,Redacted Personal Data
01/04/2019,,Teachers Pensions,," 7,686.05 ",Pensions,Redacted Personal Data,Redacted Personal Data
01/04/2019,,Teachers Pensions,," 7,718.02 ",Pensions,Redacted Personal Data,Redacted Personal Data
01/04/2019,,Teachers Pensions,," 7,756.46 ",Pensions,Redacted Personal Data,Redacted Personal Data
01/04/2019,,Teachers Pensions,," 7,849.55 ",Pensions,Redacted Personal Data,Redacted Personal Data
01/04/2019,,Teachers Pensions,," 7,886.11 ",Pensions,Redacted Personal Data,Redacted Personal Data
01/04/2019,,Teachers Pensions,," 8,032.32 ",Pensions,Redacted Personal Data,Redacted Personal Data
01/04/2019,,Teachers Pensions,," 8,032.77 ",Pensions,Redacted Personal Data,Redacted Personal Data
01/04/2019,,Teachers Pensions,," 8,197.39 ",Pensions,Redacted Personal Data,Redacted Personal Data
01/04/2019,,Teachers Pensions,," 8,301.02 ",Pensions,Redacted Personal Data,Redacted Personal Data
01/04/2019,,Teachers Pensions,," 8,368.17 ",Pensions,Redacted Personal Data,Redacted Personal Data
01/04/2019,,Teachers Pensions,," 8,383.61 ",Pensions,Redacted Personal Data,Redacted Personal Data
01/04/2019,,Teachers Pensions,," 8,426.98 ",Pensions,Redacted Personal Data,Redacted Personal Data
01/04/2019,,Teachers Pensions,," 8,430.10 ",Pensions,Redacted Personal Data,Redacted Personal Data
01/04/2019,,Teachers Pensions,," 8,505.18 ",Pensions,Redacted Personal Data,Redacted Personal Data
01/04/2019,,Teachers Pensions,," 8,731.75 ",Pensions,Redacted Personal Data,Redacted Personal Data
01/04/2019,,Teachers Pensions,," 8,832.15 ",Pensions,Redacted Personal Data,Redacted Personal Data
01/04/2019,,Teachers Pensions,," 8,872.38 ",Pensions,Redacted Personal Data,Redacted Personal Data
01/04/2019,,Teachers Pensions,," 8,909.53 ",Pensions,Redacted Personal Data,Redacted Personal Data
01/04/2019,,Teachers Pensions,," 8,931.28 ",Pensions,Redacted Personal Data,Redacted Personal Data
01/04/2019,,Teachers Pensions,," 8,935.12 ",Pensions,Redacted Personal Data,Redacted Personal Data
01/04/2019,,Teachers Pensions,," 8,974.71 ",Pensions,Redacted Personal Data,Redacted Personal Data
01/04/2019,,Teachers Pensions,," 9,036.27 ",Pensions,Redacted Personal Data,Redacted Personal Data
01/04/2019,,Teachers Pensions,," 9,058.58 ",Pensions,Redacted Personal Data,Redacted Personal Data
01/04/2019,,Teachers Pensions,," 9,059.17 ",Pensions,Redacted Personal Data,Redacted Personal Data
01/04/2019,,Teachers Pensions,," 9,078.22 ",Pensions,Redacted Personal Data,Redacted Personal Data
01/04/2019,,Teachers Pensions,," 9,170.42 ",Pensions,Redacted Personal Data,Redacted Personal Data
01/04/2019,,Teachers Pensions,," 9,182.82 ",Pensions,Redacted Personal Data,Redacted Personal Data
01/04/2019,,Teachers Pensions,," 9,185.88 ",Pensions,Redacted Personal Data,Redacted Personal Data
01/04/2019,,Teachers Pensions,," 9,243.08 ",Pensions,Redacted Personal Data,Redacted Personal Data
01/04/2019,,Teachers Pensions,," 9,248.56 ",Pensions,Redacted Personal Data,Redacted Personal Data
01/04/2019,,Teachers Pensions,," 9,395.82 ",Pensions,Redacted Personal Data,Redacted Personal Data
01/04/2019,,Teachers Pensions,," 9,515.36 ",Pensions,Redacted Personal Data,Redacted Personal Data
01/04/2019,,Teachers Pensions,," 9,564.99 ",Pensions,Redacted Personal Data,Redacted Personal Data
01/04/2019,,Teachers Pensions,," 9,643.97 ",Pensions,Redacted Personal Data,Redacted Personal Data
01/04/2019,,Teachers Pensions,," 9,750.06 ",Pensions,Redacted Personal Data,Redacted Personal Data
01/04/2019,,Teachers Pensions,," 9,787.67 ",Pensions,Redacted Personal Data,Redacted Personal Data
01/04/2019,,Teachers Pensions,," 9,797.33 ",Pensions,Redacted Personal Data,Redacted Personal Data
01/04/2019,,Teachers Pensions,," 9,817.75 ",Pensions,Redacted Personal Data,Redacted Personal Data
01/04/2019,,Teachers Pensions,," 9,893.77 ",Pensions,Redacted Personal Data,Redacted Personal Data
01/04/2019,,Teachers Pensions,," 9,914.81 ",Pensions,Redacted Personal Data,Redacted Personal Data
01/04/2019,,Teachers Pensions,," 9,918.69 ",Pensions,Redacted Personal Data,Redacted Personal Data
01/04/2019,,Teachers Pensions,," 10,214.61 ",Pensions,Redacted Personal Data,Redacted Personal Data
01/04/2019,,Teachers Pensions,," 10,383.80 ",Pensions,Redacted Personal Data,Redacted Personal Data
01/04/2019,,Teachers Pensions,," 10,387.96 ",Pensions,Redacted Personal Data,Redacted Personal Data
01/04/2019,,Teachers Pensions,," 10,412.62 ",Pensions,Redacted Personal Data,Redacted Personal Data
01/04/2019,,Teachers Pensions,," 10,426.26 ",Pensions,Redacted Personal Data,Redacted Personal Data
01/04/2019,,Teachers Pensions,," 10,429.00 ",Pensions,Redacted Personal Data,Redacted Personal Data
01/04/2019,,Teachers Pensions,," 10,429.38 ",Pensions,Redacted Personal Data,Redacted Personal Data
01/04/2019,,Teachers Pensions,," 10,449.39 ",Pensions,Redacted Personal Data,Redacted Personal Data
01/04/2019,,Teachers Pensions,," 10,547.22 ",Pensions,Redacted Personal Data,Redacted Personal Data
01/04/2019,,Teachers Pensions,," 10,566.79 ",Pensions,Redacted Personal Data,Redacted Personal Data
01/04/2019,,Teachers Pensions,," 10,664.02 ",Pensions,Redacted Personal Data,Redacted Personal Data
01/04/2019,,Teachers Pensions,," 10,665.50 ",Pensions,Redacted Personal Data,Redacted Personal Data
01/04/2019,,Teachers Pensions,," 10,734.44 ",Pensions,Redacted Personal Data,Redacted Personal Data
01/04/2019,,Teachers Pensions,," 10,791.57 ",Pensions,Redacted Personal Data,Redacted Personal Data
01/04/2019,,Teachers Pensions,," 10,805.59 ",Pensions,Redacted Personal Data,Redacted Personal Data
01/04/2019,,Teachers Pensions,," 10,847.48 ",Pensions,Redacted Personal Data,Redacted Personal Data
01/04/2019,,Teachers Pensions,," 10,911.48 ",Pensions,Redacted Personal Data,Redacted Personal Data
01/04/2019,,Teachers Pensions,," 10,992.40 ",Pensions,Redacted Personal Data,Redacted Personal Data
01/04/2019,,Teachers Pensions,," 11,148.00 ",Pensions,Redacted Personal Data,Redacted Personal Data
01/04/2019,,Teachers Pensions,," 11,151.83 ",Pensions,Redacted Personal Data,Redacted Personal Data
01/04/2019,,Teachers Pensions,," 11,210.71 ",Pensions,Redacted Personal Data,Redacted Personal Data
01/04/2019,,Teachers Pensions,," 11,220.28 ",Pensions,Redacted Personal Data,Redacted Personal Data
01/04/2019,,Teachers Pensions,," 11,252.72 ",Pensions,Redacted Personal Data,Redacted Personal Data
01/04/2019,,Teachers Pensions,," 11,289.33 ",Pensions,Redacted Personal Data,Redacted Personal Data
01/04/2019,,Teachers Pensions,," 11,316.29 ",Pensions,Redacted Personal Data,Redacted Personal Data
01/04/2019,,Teachers Pensions,," 11,437.46 ",Pensions,Redacted Personal Data,Redacted Personal Data
01/04/2019,,Teachers Pensions,," 12,174.05 ",Pensions,Redacted Personal Data,Redacted Personal Data
01/04/2019,,Teachers Pensions,," 12,260.86 ",Pensions,Redacted Personal Data,Redacted Personal Data
01/04/2019,,Teachers Pensions,," 12,420.20 ",Pensions,Redacted Personal Data,Redacted Personal Data
01/04/2019,,Teachers Pensions,," 12,507.69 ",Pensions,Redacted Personal Data,Redacted Personal Data
01/04/2019,,Teachers Pensions,," 12,837.21 ",Pensions,Redacted Personal Data,Redacted Personal Data
01/04/2019,,Teachers Pensions,," 12,863.87 ",Pensions,Redacted Personal Data,Redacted Personal Data
01/04/2019,,Teachers Pensions,," 13,252.28 ",Pensions,Redacted Personal Data,Redacted Personal Data
01/04/2019,,Teachers Pensions,," 13,945.00 ",Pensions,Redacted Personal Data,Redacted Personal Data
01/04/2019,,Teachers Pensions,," 14,193.93 ",Pensions,Redacted Personal Data,Redacted Personal Data
01/04/2019,,Teachers Pensions,," 14,477.32 ",Pensions,Redacted Personal Data,Redacted Personal Data
01/04/2019,,Teachers Pensions,," 14,499.08 ",Pensions,Redacted Personal Data,Redacted Personal Data
01/04/2019,,Teachers Pensions,," 14,782.92 ",Pensions,Redacted Personal Data,Redacted Personal Data
01/04/2019,,Teachers Pensions,," 15,046.97 ",Pensions,Redacted Personal Data,Redacted Personal Data
01/04/2019,,Teachers Pensions,," 15,339.98 ",Pensions,Redacted Personal Data,Redacted Personal Data
01/04/2019,,Teachers Pensions,," 15,969.41 ",Pensions,Redacted Personal Data,Redacted Personal Data
01/04/2019,,Teachers Pensions,," 16,020.34 ",Pensions,Redacted Personal Data,Redacted Personal Data
01/04/2019,,Teachers Pensions,," 16,789.85 ",Pensions,Redacted Personal Data,Redacted Personal Data
01/04/2019,,Teachers Pensions,," 17,437.10 ",Pensions,Redacted Personal Data,Redacted Personal Data
01/04/2019,,Teachers Pensions,," 17,489.95 ",Pensions,Redacted Personal Data,Redacted Personal Data
01/04/2019,,Teachers Pensions,," 17,590.16 ",Pensions,Redacted Personal Data,Redacted Personal Data
01/04/2019,,Teachers Pensions,," 18,059.40 ",Pensions,Redacted Personal Data,Redacted Personal Data
01/04/2019,,Teachers Pensions,," 18,123.39 ",Pensions,Redacted Personal Data,Redacted Personal Data
01/04/2019,,Teachers Pensions,," 18,481.04 ",Pensions,Redacted Personal Data,Redacted Personal Data
01/04/2019,,Teachers Pensions,," 18,625.87 ",Pensions,Redacted Personal Data,Redacted Personal Data
01/04/2019,,Teachers Pensions,," 18,726.86 ",Pensions,Redacted Personal Data,Redacted Personal Data
01/04/2019,,Teachers Pensions,," 18,743.31 ",Pensions,Redacted Personal Data,Redacted Personal Data
01/04/2019,,Teachers Pensions,," 18,823.42 ",Pensions,Redacted Personal Data,Redacted Personal Data
01/04/2019,,Teachers Pensions,," 19,088.05 ",Pensions,Redacted Personal Data,Redacted Personal Data
01/04/2019,,Teachers Pensions,," 19,323.19 ",Pensions,Redacted Personal Data,Redacted Personal Data
01/04/2019,,Teachers Pensions,," 19,950.45 ",Pensions,Redacted Personal Data,Redacted Personal Data
01/04/2019,,Teachers Pensions,," 21,289.19 ",Pensions,Redacted Personal Data,Redacted Personal Data
01/04/2019,,Teachers Pensions,," 21,493.74 ",Pensions,Redacted Personal Data,Redacted Personal Data
01/04/2019,,Teachers Pensions,," 21,896.76 ",Pensions,Redacted Personal Data,Redacted Personal Data
01/04/2019,,Teachers Pensions,," 22,069.98 ",Pensions,Redacted Personal Data,Redacted Personal Data
01/04/2019,,Teachers Pensions,," 22,161.32 ",Pensions,Redacted Personal Data,Redacted Personal Data
01/04/2019,,Teachers Pensions,," 22,894.52 ",Pensions,Redacted Personal Data,Redacted Personal Data
01/04/2019,,Teachers Pensions,," 23,093.96 ",Pensions,Redacted Personal Data,Redacted Personal Data
01/04/2019,,Teachers Pensions,," 23,116.13 ",Pensions,Redacted Personal Data,Redacted Personal Data
01/04/2019,,Teachers Pensions,," 23,396.98 ",Pensions,Redacted Personal Data,Redacted Personal Data
01/04/2019,,Teachers Pensions,," 23,762.21 ",Pensions,Redacted Personal Data,Redacted Personal Data
01/04/2019,,Teachers Pensions,," 23,895.99 ",Pensions,Redacted Personal Data,Redacted Personal Data
01/04/2019,,Teachers Pensions,," 23,912.18 ",Pensions,Redacted Personal Data,Redacted Personal Data
01/04/2019,,Teachers Pensions,," 23,959.10 ",Pensions,Redacted Personal Data,Redacted Personal Data
01/04/2019,,Teachers Pensions,," 23,960.70 ",Pensions,Redacted Personal Data,Redacted Personal Data
01/04/2019,,Teachers Pensions,," 24,161.24 ",Pensions,Redacted Personal Data,Redacted Personal Data
01/04/2019,,Teachers Pensions,," 24,273.25 ",Pensions,Redacted Personal Data,Redacted Personal Data
01/04/2019,,Teachers Pensions,," 24,589.92 ",Pensions,Redacted Personal Data,Redacted Personal Data
01/04/2019,,Teachers Pensions,," 25,331.82 ",Pensions,Redacted Personal Data,Redacted Personal Data
01/04/2019,,Teachers Pensions,," 25,493.84 ",Pensions,Redacted Personal Data,Redacted Personal Data
01/04/2019,,Teachers Pensions,," 26,069.20 ",Pensions,Redacted Personal Data,Redacted Personal Data
01/04/2019,,Teachers Pensions,," 26,495.53 ",Pensions,Redacted Personal Data,Redacted Personal Data
01/04/2019,,Teachers Pensions,," 27,744.19 ",Pensions,Redacted Personal Data,Redacted Personal Data
01/04/2019,,Teachers Pensions,," 28,365.72 ",Pensions,Redacted Personal Data,Redacted Personal Data
01/04/2019,,Teachers Pensions,," 28,727.04 ",Pensions,Redacted Personal Data,Redacted Personal Data
01/04/2019,,Teachers Pensions,," 28,791.65 ",Pensions,Redacted Personal Data,Redacted Personal Data
01/04/2019,,Teachers Pensions,," 29,145.32 ",Pensions,Redacted Personal Data,Redacted Personal Data
01/04/2019,,Teachers Pensions,," 30,457.22 ",Pensions,Redacted Personal Data,Redacted Personal Data
01/04/2019,,Teachers Pensions,," 30,942.58 ",Pensions,Redacted Personal Data,Redacted Personal Data
01/04/2019,,Teachers Pensions,," 31,470.19 ",Pensions,Redacted Personal Data,Redacted Personal Data
01/04/2019,,Teachers Pensions,," 31,536.74 ",Pensions,Redacted Personal Data,Redacted Personal Data
01/04/2019,,Teachers Pensions,," 32,084.99 ",Pensions,Redacted Personal Data,Redacted Personal Data
01/04/2019,,Teachers Pensions,," 32,201.70 ",Pensions,Redacted Personal Data,Redacted Personal Data
01/04/2019,,Teachers Pensions,," 32,439.00 ",Pensions,Redacted Personal Data,Redacted Personal Data
01/04/2019,,Teachers Pensions,," 32,706.13 ",Pensions,Redacted Personal Data,Redacted Personal Data
01/04/2019,,Teachers Pensions,," 33,217.69 ",Pensions,Redacted Personal Data,Redacted Personal Data
01/04/2019,,Teachers Pensions,," 34,344.01 ",Pensions,Redacted Personal Data,Redacted Personal Data
01/04/2019,,Teachers Pensions,," 35,557.63 ",Pensions,Redacted Personal Data,Redacted Personal Data
01/04/2019,,Teachers Pensions,," 36,353.02 ",Pensions,Redacted Personal Data,Redacted Personal Data
01/04/2019,,Teachers Pensions,," 36,567.65 ",Pensions,Redacted Personal Data,Redacted Personal Data
01/04/2019,,Teachers Pensions,," 36,646.48 ",Pensions,Redacted Personal Data,Redacted Personal Data
01/04/2019,,Teachers Pensions,," 36,810.22 ",Pensions,Redacted Personal Data,Redacted Personal Data
01/04/2019,,Teachers Pensions,," 37,945.73 ",Pensions,Redacted Personal Data,Redacted Personal Data
01/04/2019,,Teachers Pensions,," 37,961.93 ",Pensions,Redacted Personal Data,Redacted Personal Data
01/04/2019,,Teachers Pensions,," 37,997.15 ",Pensions,Redacted Personal Data,Redacted Personal Data
01/04/2019,,Teachers Pensions,," 39,446.21 ",Pensions,Redacted Personal Data,Redacted Personal Data
01/04/2019,,Teachers Pensions,," 40,195.29 ",Pensions,Redacted Personal Data,Redacted Personal Data
01/04/2019,,Teachers Pensions,," 40,601.05 ",Pensions,Redacted Personal Data,Redacted Personal Data
01/04/2019,,Teachers Pensions,," 40,903.89 ",Pensions,Redacted Personal Data,Redacted Personal Data
01/04/2019,,Teachers Pensions,," 41,057.06 ",Pensions,Redacted Personal Data,Redacted Personal Data
01/04/2019,,Teachers Pensions,," 41,274.95 ",Pensions,Redacted Personal Data,Redacted Personal Data
01/04/2019,,Teachers Pensions,," 41,324.47 ",Pensions,Redacted Personal Data,Redacted Personal Data
01/04/2019,,Teachers Pensions,," 41,868.66 ",Pensions,Redacted Personal Data,Redacted Personal Data
01/04/2019,,Teachers Pensions,," 41,869.74 ",Pensions,Redacted Personal Data,Redacted Personal Data
01/04/2019,,Teachers Pensions,," 42,362.42 ",Pensions,Redacted Personal Data,Redacted Personal Data
01/04/2019,,Teachers Pensions,," 43,314.44 ",Pensions,Redacted Personal Data,Redacted Personal Data
01/04/2019,,Teachers Pensions,," 43,490.50 ",Pensions,Redacted Personal Data,Redacted Personal Data
01/04/2019,,Teachers Pensions,," 45,560.04 ",Pensions,Redacted Personal Data,Redacted Personal Data
01/04/2019,,Teachers Pensions,," 47,721.87 ",Pensions,Redacted Personal Data,Redacted Personal Data
01/04/2019,,Teachers Pensions,," 49,434.31 ",Pensions,Redacted Personal Data,Redacted Personal Data
01/04/2019,,Teachers Pensions,," 49,777.20 ",Pensions,Redacted Personal Data,Redacted Personal Data
01/04/2019,,Teachers Pensions,," 51,032.83 ",Pensions,Redacted Personal Data,Redacted Personal Data
01/04/2019,,Teachers Pensions,," 51,539.92 ",Pensions,Redacted Personal Data,Redacted Personal Data
01/04/2019,,Teachers Pensions,," 53,498.15 ",Pensions,Redacted Personal Data,Redacted Personal Data
01/04/2019,,Teachers Pensions,," 54,529.93 ",Pensions,Redacted Personal Data,Redacted Personal Data
01/04/2019,,Teachers Pensions,," 57,925.09 ",Pensions,Redacted Personal Data,Redacted Personal Data
01/04/2019,,Teachers Pensions,," 58,097.52 ",Pensions,Redacted Personal Data,Redacted Personal Data
01/04/2019,,Teachers Pensions,," 59,194.70 ",Pensions,Redacted Personal Data,Redacted Personal Data
01/04/2019,,Teachers Pensions,," 63,157.24 ",Pensions,Redacted Personal Data,Redacted Personal Data
01/04/2019,,Teachers Pensions,," 63,840.42 ",Pensions,Redacted Personal Data,Redacted Personal Data
01/04/2019,,Teachers Pensions,," 114,827.67 ",Pensions,Redacted Personal Data,Redacted Personal Data
01/04/2019,,Teachers Pensions,," 804,601.80 ",Pensions,Redacted Personal Data,Redacted Personal Data
01/04/2019,,Teachers Pensions,," 1,459,741.57 ",Pensions,Redacted Personal Data,Redacted Personal Data
01/04/2019,NE AGENCY PLACE-ED,Telford & Wrekin Council,Agency Placement Expenditure," 7,485.00 ",SEND Agncy Placement,,
01/04/2019,AGENCY NON CWD SC,The Caldecott Foundation Ltd,Residential Placements," 19,264.28 ",Staff Training,,
01/04/2019,EAST CWD NONLAC CARE,The Childrens Trust Nursery,Respite Nursing - Priv," 1,650.00 ",Residential - MH,,
01/04/2019,LD COST OF CARE LD,The Grange Centre,Residential," 2,403.15 ",Residential - MH,Redacted Personal Data,Redacted Personal Data
01/04/2019,LD COST OF CARE LD,The Grange Centre,Residential," 2,403.15 ",Residential - MH,Redacted Personal Data,Redacted Personal Data
01/04/2019,LD COST OF CARE LD,The Grange Centre,Residential," 2,403.15 ",Residential - MH,Redacted Personal Data,Redacted Personal Data
01/04/2019,LD COST OF CARE LD,The Grange Centre,Residential," 2,403.15 ",Residential - MH,Redacted Personal Data,Redacted Personal Data
01/04/2019,LD COST OF CARE LD,The Grange Centre,Residential," 2,403.15 ",Residential - MH,Redacted Personal Data,Redacted Personal Data
01/04/2019,LD COST OF CARE LD,The Grange Centre,Residential," 2,403.15 ",Residential - MH,Redacted Personal Data,Redacted Personal Data
01/04/2019,LD COST OF CARE LD,The Grange Centre,Residential," 2,403.15 ",Residential - MH,Redacted Personal Data,Redacted Personal Data
01/04/2019,KINGSTON BEREAVEMENT,The Pension Trust,Fees," 1,513.33 ",Non-Staff Expenses,,Redacted Personal Data
01/04/2019,CWD CONTRACTS/SLA'S,The Ridgeway Community Sch - Amenit,Grants-Third Sector and Voluntary Orgs/Charities," 2,668.00 ",Grants - Community,Redacted Personal Data,Short Breaks Inn Grant
01/04/2019,OCCUPATIONAL THERAPY,The Sensory Smart Child Ltd,Other Community Care - Priv, 328.00 ,Subscriptions,,
01/04/2019,SW IPSB - PLAYGROUPS,Tots2Teens Childcare Services,Agency Placement Nursery Exp," 2,031.30 ",Non-Staff Expenses,,Redacted Personal Data
01/04/2019,,Waverley Borough Council,, 568.42 ,Grants-Member Allocs,*01.04.2019-01.04.2019-Council Rates Payable,Council tax Apr19
01/04/2019,,Waverley Borough Council,, 786.76 ,Grants-Member Allocs,*01.04.2019-01.04.2019-Council Rates Payable,Council tax Apr19
01/04/2019,CWD CONTRACTS/SLA'S,White Lodge Centre,Grants-Third Sector and Voluntary Orgs/Charities," 11,988.00 ",Day Care - PSD,Redacted Personal Data,Short Breaks Inn Grant
01/04/2019,,Woking Borough Council,, 561.42 ,Local Government,*01.04.2019-01.04.2019-Council Rates Payable,Council tax Apr19
01/04/2019,WOKING CARE OP,Woking Borough Council,Other Community Care," 36,000.00 ",Local Government,,
01/04/2019,CWD CONTRACTS/SLA'S,YMCA East Surrey,Grants-Third Sector and Voluntary Orgs/Charities," 1,750.00 ",LocPrevFwork,SB for Disabled Children Inn Grant - YMCA DofE,Short Breaks Inn Grant
01/04/2019,NE AGENCY PLACE-ED,Young Epilepsy,Agency Placement Expenditure," 30,012.29 ",Grants-Member Allocs,,
01/04/2019,NE AGENCY PLACE-ED,Young Epilepsy,Agency Placement Expenditure," 54,319.33 ",Grants-Member Allocs,,
01/04/2019,NE AGENCY PLACE-ED,Young Epilepsy,Agency Placement Expenditure," 55,351.00 ",Grants-Member Allocs,,
01/04/2019,NE AGENCY PLACE-ED,Young Epilepsy,Agency Placement Expenditure," 71,155.99 ",Grants-Member Allocs,,
01/04/2019,NE AGENCY PLACE-ED,Young Epilepsy,Agency Placement Expenditure," 71,155.99 ",Grants-Member Allocs,,
01/04/2019,DOMESTIC ABUSE,Your Sanctuary,Grants-Third Sector and Voluntary Orgs/Charities," 88,171.00 ",Supp Living - MH,YourSanctuary - SCC Payment 1,Redacted Personal Data
02/04/2019,TRANSPORT,Affinity Water Ltd,Operational Fire Equipment, 637.20 ,Highway - Construct,,
02/04/2019,EAST CWD NONLAC CARE,Ambition 24 Hours,Home Care - Priv," 1,597.48 ",Supp Living - MH,,Redacted Personal Data
02/04/2019,EAST CWD NONLAC CARE,Ambition 24 Hours,Home Care - Priv," 2,159.05 ",Supp Living - MH,,Redacted Personal Data
02/04/2019,CONSORT HOUSE,Angel Springs Ltd,Equipment, 630.00 ,Cat Vending Machines,,
02/04/2019,DBS CHECKING,Atlantic Data Ltd,Criminal Records Bureau," 1,460.00 ",Leasing - Services,,
02/04/2019,CARE LEAVER PACKAGES,By the Bridge Ltd,Foster Care Placements," 2,142.86 ",Grants - Community,,
02/04/2019,WRAY PARK COMPLEX,Castle Water Ltd,Water Charges," 2,493.55 ",Utilities - Water,,
02/04/2019,HEKSS,Christ Church Woking PCC,New GR/IR Account, 300.50 ,Grants - Community,,
02/04/2019,AGENCY NON CWD SC,Cornerways Fostering Services Ltd,Foster Care Placements," 3,853.92 ",Fostering IFA,,
02/04/2019,AGENCY NON CWD SC,Cornerways Fostering Services Ltd,Foster Care Placements," 3,989.08 ",Fostering IFA,,
02/04/2019,SW AGENCY PLACE-ED,Cornfield School Ltd,Agency Placement Expenditure," 14,947.00 ",Fostering Placement,,
02/04/2019,NW AGENCY PLACE-ED,Coxlease School,Agency Placement Expenditure," 53,900.00 ",School Support Serv,,
02/04/2019,NW AGENCY PLACE-ED,Coxlease School,Agency Placement Expenditure," 55,103.33 ",School Support Serv,,
02/04/2019,NW AGENCY PLACE-ED,Coxlease School,Agency Placement Expenditure," 56,546.67 ",School Support Serv,,
02/04/2019,BUS SUPP & CUST SERV,Cridland Surfacing  Ltd,Contractor," 1,900.00 ",Highway - Construct,,
02/04/2019,AGENCY NON CWD SC,Diagrama Foundation,Foster Care Placements," 3,832.22 ",LAC Agency Fees,,
02/04/2019,AGENCY NON CWD SC,Diagrama Foundation,Foster Care Placements," 3,832.22 ",LAC Agency Fees,,
02/04/2019,AGENCY CWD SOCIAL CA,Diagrama Foundation,Foster Care Placements," 5,752.67 ",LAC Agency Fees,,
02/04/2019,,DWF LLP,Miscellaneous Insurance," 2,050.80 ",General Support,,
02/04/2019,,DWF LLP,Miscellaneous Insurance," 2,252.40 ",General Support,,
02/04/2019,,DWF LLP,Miscellaneous Insurance," 2,777.80 ",General Support,,
02/04/2019,POST 16 PLACEMENT SE,East Surrey College,Agency Placement Expenditure," 14,800.00 ",Schools,,
02/04/2019,POST 16 PLACEMENT SE,East Surrey College,Agency Placement Expenditure," 14,800.00 ",Schools,,
02/04/2019,POST 16 PLACEMENT SE,East Surrey College,Agency Placement Expenditure," 14,800.00 ",Schools,,
02/04/2019,POST 16 PLACEMENT SE,East Surrey College,Agency Placement Expenditure," 14,800.00 ",Schools,,
02/04/2019,EPSOM LOCAL OFFICE,Epsom & Ewell Borough Council,External Service Charges, 279.00 ,Grants-Member Allocs,,
02/04/2019,ASYLUM SEEKERS 18+,Fairways Care (UK) Ltd,Foster Care Placements," 1,915.80 ",Fostering IFA,,
02/04/2019,NW CARE - CPCRT NONL,Gary Taylor Associates Ltd,Specialist Assessments," 1,220.70 ",Individual - NEC,,
02/04/2019,ADOPTION SUPP FUND,Insight4Children Ltd,Other Community Care - Priv, 280.00 ,Inter-Agency fee,,
02/04/2019,TRAINING F&R SERV,International Correspondence School,Training Expenses - External General," 2,720.00 ",Non-Staff Expenses,,Redacted Personal Data
02/04/2019,TRAINING AND DEV,International Correspondence School,Training Expenses - External General," 2,720.00 ",Non-Staff Expenses,,Redacted Personal Data
02/04/2019,NW AGENCY PLACE-ED,International School of London,Agency Placement Expenditure," 6,560.00 ",Nursery,,
02/04/2019,NW AGENCY PLACE-ED,International School of London,Agency Placement Expenditure," 7,115.00 ",Nursery,,
02/04/2019,EAST CWD NONLAC CARE,Interserve Healthcare Ltd,Home Care - Priv, 618.00 ,Grants - Community,,
02/04/2019,EAST CWD NONLAC CARE,Interserve Healthcare Ltd,Home Care - Priv, 618.00 ,Grants - Community,,
02/04/2019,EAST CWD NONLAC CARE,Interserve Healthcare Ltd,Home Care - Priv, 824.00 ,Grants - Community,,
02/04/2019,ADOPTION SUPP FUND,Justbe Therapy Services,Other Community Care - Priv, 670.00 ,Psychiatric Therapy,,
02/04/2019,OCCUPATIONAL HLTH TM,Kefron UK Ltd,Computer Software, 636.90 ,Customised & Bespoke,,
02/04/2019,WOKING FIRE STN NEW,Kier Facilities Services Ltd,Term Contract Inspections, 285.67 ,General Build Maint,Quantity : 5,283530 - PROJECT
02/04/2019,WOKING FIRE STN NEW,Kier Facilities Services Ltd,Term Contract Inspections, 285.67 ,General Build Maint,Quantity : 5,283532 - PROJECT
02/04/2019,GUILDFORD FIRE STN,Kier Facilities Services Ltd,Term Contract Inspections, 482.05 ,General Build Maint,Quantity : 1,363185 - PROJECT
02/04/2019,HENLEY FORT OEC,Kier Facilities Services Ltd,Term Contract Inspections, 523.74 ,General Build Maint,Quantity : 5,283435 - PROJECT
02/04/2019,ONSLOW INF,Kier Facilities Services Ltd,Buyback Inspections, 613.92 ,General Build Maint,Quantity : 14,197747 - PROJECT
02/04/2019,MALLOW CS DMHS 25-30,Kier Facilities Services Ltd,Term Contract Inspections," 1,142.71 ",General Build Maint,Quantity : 23,283457 - PROJECT
02/04/2019,MALLOW CS DMHS 25-30,Kier Facilities Services Ltd,Term Contract Inspections," 1,142.71 ",General Build Maint,Quantity : 23,283459 - PROJECT
02/04/2019,SE IPSB - PLAYGROUPS,Kiwi's Ltd,Agency Placement Nursery Exp, 503.25 ,Health Visiting,,
02/04/2019,NW AGENCY PLACE-ED,Knowl Hill School,Agency Placement Expenditure," 6,850.00 ",School Support Serv,,
02/04/2019,SW AGENCY PLACE-ED,Knowl Hill School,Agency Placement Expenditure," 6,850.00 ",School Support Serv,,
02/04/2019,SW AGENCY PLACE-ED,Knowl Hill School,Agency Placement Expenditure," 6,850.00 ",School Support Serv,,
02/04/2019,NW AGENCY PLACE-ED,Knowl Hill School,Agency Placement Expenditure," 6,850.00 ",School Support Serv,,
02/04/2019,NW AGENCY PLACE-ED,Knowl Hill School,Agency Placement Expenditure," 6,850.00 ",School Support Serv,,
02/04/2019,SW AGENCY PLACE-ED,Knowl Hill School,Agency Placement Expenditure," 6,850.00 ",School Support Serv,,
02/04/2019,NW AGENCY PLACE-ED,Knowl Hill School,Agency Placement Expenditure," 7,438.00 ",School Support Serv,,
02/04/2019,NW AGENCY PLACE-ED,Knowl Hill School,Agency Placement Expenditure," 7,438.00 ",School Support Serv,,
02/04/2019,SW AGENCY PLACE-ED,Knowl Hill School,Agency Placement Expenditure," 7,438.00 ",School Support Serv,,
02/04/2019,SW AGENCY PLACE-ED,Knowl Hill School,Agency Placement Expenditure," 7,438.00 ",School Support Serv,,
02/04/2019,NW AGENCY PLACE-ED,Knowl Hill School,Agency Placement Expenditure," 7,438.00 ",School Support Serv,,
02/04/2019,NW AGENCY PLACE-ED,Knowl Hill School,Agency Placement Expenditure," 8,026.00 ",School Support Serv,,
02/04/2019,SW AGENCY PLACE-ED,Knowl Hill School,Agency Placement Expenditure," 8,026.00 ",School Support Serv,,
02/04/2019,SW AGENCY PLACE-ED,Knowl Hill School,Agency Placement Expenditure," 8,026.00 ",School Support Serv,,
02/04/2019,SW AGENCY PLACE-ED,Knowl Hill School,Agency Placement Expenditure," 8,026.00 ",School Support Serv,,
02/04/2019,NW AGENCY PLACE-ED,Knowl Hill School,Agency Placement Expenditure," 8,026.00 ",School Support Serv,,
02/04/2019,NW AGENCY PLACE-ED,Knowl Hill School,Agency Placement Expenditure," 8,614.00 ",School Support Serv,,
02/04/2019,NW AGENCY PLACE-ED,Knowl Hill School,Agency Placement Expenditure," 8,614.00 ",School Support Serv,,
02/04/2019,SW AGENCY PLACE-ED,Knowl Hill School,Agency Placement Expenditure," 8,614.00 ",School Support Serv,,
02/04/2019,NW AGENCY PLACE-ED,Knowl Hill School,Agency Placement Expenditure," 8,614.00 ",School Support Serv,,
02/04/2019,SW AGENCY PLACE-ED,Knowl Hill School,Agency Placement Expenditure," 10,625.00 ",School Support Serv,,
02/04/2019,SW AGENCY PLACE-ED,Knowl Hill School,Agency Placement Expenditure," 10,625.00 ",School Support Serv,,
02/04/2019,CORP INCOME AND EXP,Laser Energy,Write Offs," 174,916.85 ",Electricity,,
02/04/2019,DOLS TEAM,Matrix Service Dev & Training Ltd,Other Community Care," 16,716.68 ",Staff Training,,
02/04/2019,SW AGENCY PLACE-ED,Milton Abbey School,Agency Placement Expenditure," 7,775.00 ",SEND Agncy Placement,,
02/04/2019,CPCS ENGAGEMENT TEAM,Mole Valley District Council,Venue Costs (including Hire of Rooms), 579.00 ,Grants-Member Allocs,,
02/04/2019,NW AGENCY PLACE-ED,Moor House School & College,Agency Placement Expenditure," 10,256.67 ",School Support Serv,,
02/04/2019,NE AGENCY PLACE-ED,Moor House School & College,Agency Placement Expenditure," 11,126.67 ",School Support Serv,,
02/04/2019,SW AGENCY PLACE-ED,Moor House School & College,Agency Placement Expenditure," 11,882.67 ",School Support Serv,,
02/04/2019,SW AGENCY PLACE-ED,Moor House School & College,Agency Placement Expenditure," 12,417.67 ",School Support Serv,,
02/04/2019,SW AGENCY PLACE-ED,Moor House School & College,Agency Placement Expenditure," 13,321.67 ",School Support Serv,,
02/04/2019,NW AGENCY PLACE-ED,Moor House School & College,Agency Placement Expenditure," 13,464.67 ",School Support Serv,,
02/04/2019,NW AGENCY PLACE-ED,Moor House School & College,Agency Placement Expenditure," 14,862.67 ",School Support Serv,,
02/04/2019,NW AGENCY PLACE-ED,Moor House School & College,Agency Placement Expenditure," 15,344.67 ",School Support Serv,,
02/04/2019,SW AGENCY PLACE-ED,Moor House School & College,Agency Placement Expenditure," 17,312.67 ",School Support Serv,,
02/04/2019,SW AGENCY PLACE-ED,Moor House School & College,Agency Placement Expenditure," 17,312.67 ",School Support Serv,,
02/04/2019,SW AGENCY PLACE-ED,Moor House School & College,Agency Placement Expenditure," 17,399.67 ",School Support Serv,,
02/04/2019,SW AGENCY PLACE-ED,Moor House School & College,Agency Placement Expenditure," 18,699.67 ",School Support Serv,,
02/04/2019,OCCUPATIONAL THERAPY,Moore Occupational Therapy,Other Community Care - Priv, 305.83 ,Individual - NEC,,
02/04/2019,OCCUPATIONAL THERAPY,Moore Occupational Therapy,Other Community Care - Priv, 379.37 ,Individual - NEC,,
02/04/2019,OCCUPATIONAL THERAPY,Moore Occupational Therapy,Other Community Care - Priv, 424.50 ,Individual - NEC,,
02/04/2019,OCCUPATIONAL THERAPY,Moore Occupational Therapy,Other Community Care - Priv, 664.79 ,Individual - NEC,,
02/04/2019,OCCUPATIONAL THERAPY,Moore Occupational Therapy,Other Community Care - Priv, 895.13 ,Individual - NEC,,
02/04/2019,OCCUPATIONAL THERAPY,Moore Occupational Therapy,Other Community Care - Priv," 1,636.82 ",Individual - NEC,,
02/04/2019,CARE LEAVER PACKAGES,Moving On Care Management Ltd,Independent Living Placements," 1,456.01 ",LocPrevFwork,,
02/04/2019,TECH DELIVERY,NTA Monitor Ltd,Computer Services," 2,970.00 ",Subscriptions,,
02/04/2019,HILLSIDE CAMBERLEY,Nviro Ltd,Cleaning and Domestic Supplies, 258.47 ,Building Cleaning,,354426 - PROJECT
02/04/2019,BRAMLEY LIB,Nviro Ltd,Cleaning and Domestic Supplies, 379.09 ,Building Cleaning,,338470 - PROJECT
02/04/2019,WARLINGHAM LIB,Nviro Ltd,Cleaning and Domestic Supplies, 379.09 ,Building Cleaning,,338598 - PROJECT
02/04/2019,WRAY PARK COMPLEX,Nviro Ltd,Cleaning and Domestic Supplies, 417.34 ,Building Cleaning,,338572 - PROJECT
02/04/2019,BANSTEAD FIRE STN,Nviro Ltd,Cleaning and Domestic Supplies, 441.78 ,Building Cleaning,,338466 - PROJECT
02/04/2019,DISCOVERY CTR GFORD,Nviro Ltd,Cleaning and Domestic Supplies, 441.78 ,Building Cleaning,,338489 - PROJECT
02/04/2019,FRIMLEY GRN LIB,Nviro Ltd,Cleaning and Domestic Supplies, 441.78 ,Building Cleaning,,338505 - PROJECT
02/04/2019,QUADRANT CT WOKING,Nviro Ltd,Cleaning and Domestic Supplies, 445.34 ,Building Cleaning,,354448 - PROJECT
02/04/2019,WEST BYFLEET LIB,Nviro Ltd,Cleaning and Domestic Supplies, 473.94 ,Building Cleaning,,338599 - PROJECT
02/04/2019,ADDLESTONE YOUTH CTR,Nviro Ltd,Cleaning and Domestic Supplies, 473.95 ,Building Cleaning,,338457 - PROJECT
02/04/2019,ASH SSC ASH LIBRARY,Nviro Ltd,Cleaning and Domestic Supplies, 473.95 ,Building Cleaning,,338459 - PROJECT
02/04/2019,ASHTEAD LIB,Nviro Ltd,Cleaning and Domestic Supplies, 473.95 ,Building Cleaning,,338463 - PROJECT
02/04/2019,BOOKHAM LIB (NEW),Nviro Ltd,Cleaning and Domestic Supplies, 473.95 ,Building Cleaning,,338469 - PROJECT
02/04/2019,HASLEMERE FIRE STN,Nviro Ltd,Cleaning and Domestic Supplies, 473.95 ,Building Cleaning,,338516 - PROJECT
02/04/2019,HORSLEY LIB,Nviro Ltd,Cleaning and Domestic Supplies, 473.95 ,Building Cleaning,,338524 - PROJECT
02/04/2019,OXTED FIRE STATION,Nviro Ltd,Cleaning and Domestic Supplies, 473.95 ,Building Cleaning,,338538 - PROJECT
02/04/2019,SHEPPERTON LIB,Nviro Ltd,Cleaning and Domestic Supplies, 473.95 ,Building Cleaning,,338556 - PROJECT
02/04/2019,WRAY PARK COMPLEX,Nviro Ltd,Cleaning and Domestic Supplies, 473.95 ,Building Cleaning,,338571 - PROJECT
02/04/2019,WRAY PARK COMPLEX,Nviro Ltd,Cleaning and Domestic Supplies, 473.95 ,Building Cleaning,,338575 - PROJECT
02/04/2019,GODALMING FIRE STN,Nviro Ltd,Cleaning and Domestic Supplies, 473.95 ,Building Cleaning,,338507 - PROJECT
02/04/2019,PAINSHILL FIRE STN,Nviro Ltd,Cleaning and Domestic Supplies, 473.95 ,Building Cleaning,,338540 - PROJECT
02/04/2019,RYLSTON WEYBRIDGE,Nviro Ltd,Cleaning and Domestic Supplies, 473.95 ,Building Cleaning,,338551 - PROJECT
02/04/2019,CATERHAM LIB,Nviro Ltd,Cleaning and Domestic Supplies, 473.95 ,Building Cleaning,,338476 - PROJECT
02/04/2019,CRANLEIGH LIB,Nviro Ltd,Cleaning and Domestic Supplies, 473.95 ,Building Cleaning,,338487 - PROJECT
02/04/2019,HARRY'S OXTED,Nviro Ltd,Cleaning and Domestic Supplies, 473.95 ,Building Cleaning,,338515 - PROJECT
02/04/2019,MOLESEY LIB,Nviro Ltd,Cleaning and Domestic Supplies, 473.95 ,Building Cleaning,,338532 - PROJECT
02/04/2019,SQUIRREL LODGE,Nviro Ltd,Cleaning and Domestic Supplies, 473.95 ,Building Cleaning,,338559 - PROJECT
02/04/2019,STONELEIGH LIB,Nviro Ltd,Cleaning and Domestic Supplies, 473.95 ,Building Cleaning,,338566 - PROJECT
02/04/2019,WRAY PARK COMPLEX,Nviro Ltd,Cleaning and Domestic Supplies, 473.95 ,Building Cleaning,,338573 - PROJECT
02/04/2019,LARCHES 44 WLOO RD,Nviro Ltd,Cleaning and Domestic Supplies, 473.95 ,Building Cleaning,,338585 - PROJECT
02/04/2019,VIRGINIA WATER LIB,Nviro Ltd,Cleaning and Domestic Supplies, 473.95 ,Building Cleaning,,338594 - PROJECT
02/04/2019,CHOBHAM RETAINED STN,Nviro Ltd,Cleaning and Domestic Supplies, 473.95 ,Building Cleaning,,338480 - PROJECT
02/04/2019,HERSHAM LIB,Nviro Ltd,Cleaning and Domestic Supplies, 473.95 ,Building Cleaning,,338519 - PROJECT
02/04/2019,COBHAM LIB HLDG A/C,Nviro Ltd,Cleaning and Domestic Supplies, 473.95 ,Building Cleaning,,338529 - PROJECT
02/04/2019,OFFICE NOKE RD R'HIL,Nviro Ltd,Cleaning and Domestic Supplies, 473.95 ,Building Cleaning,,338558 - PROJECT
02/04/2019,WEST HOUSE COMPLEX,Nviro Ltd,Cleaning and Domestic Supplies, 473.95 ,Building Cleaning,,338648 - PROJECT
02/04/2019,HENLEY FORT OEC,Nviro Ltd,Cleaning and Domestic Supplies, 473.95 ,Building Cleaning,,346823 - PROJECT
02/04/2019,OFFICE TRUMPS FARM,Nviro Ltd,Cleaning and Domestic Supplies, 473.96 ,Building Cleaning,,338593 - PROJECT
02/04/2019,HIGH ASHURST OEC,Nviro Ltd,Cleaning and Domestic Supplies, 501.46 ,Building Cleaning,,346830 - PROJECT
02/04/2019,SUNBURY YOUTH CTR,Nviro Ltd,Cleaning and Domestic Supplies, 501.46 ,Building Cleaning,,346797 - PROJECT
02/04/2019,SHEERWATER YOUTH CTR,Nviro Ltd,Cleaning and Domestic Supplies, 548.65 ,Building Cleaning,,338555 - PROJECT
02/04/2019,Thameside Centre,Nviro Ltd,Cleaning and Domestic Supplies, 548.65 ,Building Cleaning,,338579 - PROJECT
02/04/2019,KNAPHILL LIBRARY-NEW,Nviro Ltd,Cleaning and Domestic Supplies, 548.65 ,Building Cleaning,,338526 - PROJECT
02/04/2019,BYFLEET LIB,Nviro Ltd,Cleaning and Domestic Supplies, 570.60 ,Building Cleaning,,338471 - PROJECT
02/04/2019,TATTENHAM LIB,Nviro Ltd,Cleaning and Domestic Supplies, 570.60 ,Building Cleaning,,338578 - PROJECT
02/04/2019,BAGSHOT LIB,Nviro Ltd,Cleaning and Domestic Supplies, 570.60 ,Building Cleaning,,338465 - PROJECT
02/04/2019,ASHFORD YOUTH CENTRE,Nviro Ltd,Cleaning and Domestic Supplies, 592.20 ,Building Cleaning,,338462 - PROJECT
02/04/2019,CLAYGATE YOUTH CLUB,Nviro Ltd,Cleaning and Domestic Supplies, 592.20 ,Building Cleaning,,338481 - PROJECT
02/04/2019,HASLEMERE LIB,Nviro Ltd,Cleaning and Domestic Supplies, 592.20 ,Building Cleaning,,338517 - PROJECT
02/04/2019,PRIMARY DATA CENTRE,Nviro Ltd,Cleaning and Domestic Supplies, 592.20 ,Building Cleaning,,338543 - PROJECT
02/04/2019,STANWELL YOUTH CTRE,Nviro Ltd,Cleaning and Domestic Supplies, 592.20 ,Building Cleaning,,338565 - PROJECT
02/04/2019,STAINES FIRE STATION,Nviro Ltd,Cleaning and Domestic Supplies, 592.20 ,Building Cleaning,,338563 - PROJECT
02/04/2019,DORKING FIRE STATION,Nviro Ltd,Cleaning and Domestic Supplies, 592.20 ,Building Cleaning,,338491 - PROJECT
02/04/2019,REIGATE FIRE STATION,Nviro Ltd,Cleaning and Domestic Supplies, 592.20 ,Building Cleaning,,338547 - PROJECT
02/04/2019,CHERTSEY FIRE STN,Nviro Ltd,Cleaning and Domestic Supplies, 592.20 ,Building Cleaning,,338478 - PROJECT
02/04/2019,EGHAM FIRE STATION,Nviro Ltd,Cleaning and Domestic Supplies, 592.20 ,Building Cleaning,,338494 - PROJECT
02/04/2019,GODSTONE FIRE STN,Nviro Ltd,Cleaning and Domestic Supplies, 592.20 ,Building Cleaning,,338509 - PROJECT
02/04/2019,NEXUS DAY CENTRE,Nviro Ltd,Cleaning and Domestic Supplies, 592.20 ,Building Cleaning,,338536 - PROJECT
02/04/2019,SUNBURY FIRE STATION,Nviro Ltd,Cleaning and Domestic Supplies, 592.20 ,Building Cleaning,,338567 - PROJECT
02/04/2019,WEST HOUSE COMPLEX,Nviro Ltd,Cleaning and Domestic Supplies, 592.20 ,Building Cleaning,,338649 - PROJECT
02/04/2019,SCS AT DANETREE JUN,Nviro Ltd,Cleaning and Domestic Supplies, 592.20 ,Building Cleaning,,354111 - PROJECT
02/04/2019,ST PETERS/WOKING DRC,Nviro Ltd,Cleaning and Domestic Supplies, 592.20 ,Building Cleaning,,338602 - PROJECT
02/04/2019,WEST HOUSE COMPLEX,Nviro Ltd,Cleaning and Domestic Supplies, 592.20 ,Building Cleaning,,346838 - PROJECT
02/04/2019,ESHER FIRE STATION,Nviro Ltd,Cleaning and Domestic Supplies, 592.20 ,Building Cleaning,,338498 - PROJECT
02/04/2019,WRAY PARK COMPLEX,Nviro Ltd,Cleaning and Domestic Supplies, 592.20 ,Building Cleaning,,338576 - PROJECT
02/04/2019,YTH CTR GODSTONE RD,Nviro Ltd,Cleaning and Domestic Supplies, 592.20 ,Building Cleaning,,346794 - PROJECT
02/04/2019,SHAW FC,Nviro Ltd,Cleaning and Domestic Supplies, 730.48 ,Building Cleaning,,338591 - PROJECT
02/04/2019,OLD DEAN YC CAMBERLE,Nviro Ltd,Cleaning and Domestic Supplies, 730.48 ,Building Cleaning,,338537 - PROJECT
02/04/2019,BANSTEAD YOUTH CTR,Nviro Ltd,Cleaning and Domestic Supplies, 730.48 ,Building Cleaning,,338468 - PROJECT
02/04/2019,CHERTSEY LIB,Nviro Ltd,Cleaning and Domestic Supplies, 788.53 ,Building Cleaning,,338479 - PROJECT
02/04/2019,EGHAM YOUTH CENTRE,Nviro Ltd,Cleaning and Domestic Supplies, 788.53 ,Building Cleaning,,338496 - PROJECT
02/04/2019,LEATHERHEAD FIRE STN,Nviro Ltd,Cleaning and Domestic Supplies, 788.53 ,Building Cleaning,,338527 - PROJECT
02/04/2019,ASHTEAD YOUTH CENTRE,Nviro Ltd,Cleaning and Domestic Supplies, 788.53 ,Building Cleaning,,338464 - PROJECT
02/04/2019,COBHAM LIB HLDG A/C,Nviro Ltd,Cleaning and Domestic Supplies, 788.53 ,Building Cleaning,,338482 - PROJECT
02/04/2019,GENERAL PROP AC,Nviro Ltd,Cleaning and Domestic Supplies, 788.53 ,Building Cleaning,,338483 - PROJECT
02/04/2019,FARNHAM FIRE STATION,Nviro Ltd,Cleaning and Domestic Supplies, 788.53 ,Building Cleaning,,338501 - PROJECT
02/04/2019,PHOENIX YC TADWORTH,Nviro Ltd,Cleaning and Domestic Supplies, 788.53 ,Building Cleaning,,338542 - PROJECT
02/04/2019,SHEPPERTON YOUTH CTR,Nviro Ltd,Cleaning and Domestic Supplies, 788.53 ,Building Cleaning,,338557 - PROJECT
02/04/2019,DITTONS LIB,Nviro Ltd,Cleaning and Domestic Supplies, 788.53 ,Building Cleaning,,338490 - PROJECT
02/04/2019,HORLEY YOUTH CENTRE,Nviro Ltd,Cleaning and Domestic Supplies, 788.53 ,Building Cleaning,,338523 - PROJECT
02/04/2019,UNIT 4 LEATHERHEAD,Nviro Ltd,Cleaning and Domestic Supplies, 788.53 ,Building Cleaning,,338533 - PROJECT
02/04/2019,EDGE YC WEST EWELL,Nviro Ltd,Cleaning and Domestic Supplies, 788.53 ,Building Cleaning,,338582 - PROJECT
02/04/2019,MAYFORD CENTRE-BUS,Nviro Ltd,Cleaning and Domestic Supplies, 788.53 ,Building Cleaning,,338588 - PROJECT
02/04/2019,ESHER LIB,Nviro Ltd,Cleaning and Domestic Supplies, 788.53 ,Building Cleaning,,338499 - PROJECT
02/04/2019,SUNBURY-ON-T LIB,Nviro Ltd,Cleaning and Domestic Supplies, 788.53 ,Building Cleaning,,338568 - PROJECT
02/04/2019,EGHAM LIB,Nviro Ltd,Cleaning and Domestic Supplies, 912.30 ,Building Cleaning,,338495 - PROJECT
02/04/2019,FRIMLEY GREEN YC,Nviro Ltd,Cleaning and Domestic Supplies, 912.30 ,Building Cleaning,,338506 - PROJECT
02/04/2019,HILLSIDE CAMBERLEY,Nviro Ltd,Cleaning and Domestic Supplies, 912.30 ,Building Cleaning,,338521 - PROJECT
02/04/2019,NEW HAW LIB,Nviro Ltd,Cleaning and Domestic Supplies, 949.74 ,Building Cleaning,,338534 - PROJECT
02/04/2019,REDHILL FAMILY CTR,Nviro Ltd,Cleaning and Domestic Supplies, 984.86 ,Building Cleaning,,338545 - PROJECT
02/04/2019,OXTED LIB,Nviro Ltd,Cleaning and Domestic Supplies, 984.86 ,Building Cleaning,,338539 - PROJECT
02/04/2019,THE BRIDGE,Nviro Ltd,Cleaning and Domestic Supplies, 984.86 ,Building Cleaning,,338581 - PROJECT
02/04/2019,WOKING ARTS YTH CTR,Nviro Ltd,Cleaning and Domestic Supplies, 984.86 ,Building Cleaning,,338605 - PROJECT
02/04/2019,HAZEL HOUSE MERROW,Nviro Ltd,Cleaning and Domestic Supplies, 984.86 ,Building Cleaning,,338647 - PROJECT
02/04/2019,WALTON FIRE STATION,Nviro Ltd,Cleaning and Domestic Supplies, 984.86 ,Building Cleaning,,338595 - PROJECT
02/04/2019,WEST HOUSE COMPLEX,Nviro Ltd,Cleaning and Domestic Supplies, 984.86 ,Building Cleaning,,346842 - PROJECT
02/04/2019,CATERHAM VALLEY LBRY,Nviro Ltd,Cleaning and Domestic Supplies, 984.86 ,Building Cleaning,,338477 - PROJECT
02/04/2019,BANSTEAD LIB,Nviro Ltd,Cleaning and Domestic Supplies, 984.86 ,Building Cleaning,,338467 - PROJECT
02/04/2019,PARK HOUSE SHALFORD,Nviro Ltd,Cleaning and Domestic Supplies, 984.86 ,Building Cleaning,,338541 - PROJECT
02/04/2019,ASHFORD LIB,Nviro Ltd,Cleaning and Domestic Supplies, 984.86 ,Building Cleaning,,338461 - PROJECT
02/04/2019,REIGATE LIB,Nviro Ltd,Cleaning and Domestic Supplies, 984.86 ,Building Cleaning,,338548 - PROJECT
02/04/2019,ST FAITHS FC,Nviro Ltd,Cleaning and Domestic Supplies, 984.86 ,Building Cleaning,,338560 - PROJECT
02/04/2019,MALTHOUSE YC D'KING,Nviro Ltd,Cleaning and Domestic Supplies, 984.86 ,Building Cleaning,,338587 - PROJECT
02/04/2019,WALTON YOUTH CENTRE,Nviro Ltd,Cleaning and Domestic Supplies, 984.86 ,Building Cleaning,,338597 - PROJECT
02/04/2019,ASH YOUTH CENTRE,Nviro Ltd,Cleaning and Domestic Supplies, 984.86 ,Building Cleaning,,338460 - PROJECT
02/04/2019,FMR HORLEY LIBRARY,Nviro Ltd,Cleaning and Domestic Supplies, 984.86 ,Building Cleaning,,338522 - PROJECT
02/04/2019,GUILDFORD FIRE STN,Nviro Ltd,Cleaning and Domestic Supplies, 984.86 ,Building Cleaning,,338513 - PROJECT
02/04/2019,SW SURREY FANILY CTR,Nviro Ltd,Cleaning and Domestic Supplies, 984.86 ,Building Cleaning,,338561 - PROJECT
02/04/2019,ARTINGTON HOUSE,Nviro Ltd,Cleaning and Domestic Supplies," 1,024.13 ",Building Cleaning,,338458 - PROJECT
02/04/2019,RYLSTON WEYBRIDGE,Nviro Ltd,Cleaning and Domestic Supplies," 1,060.40 ",Building Cleaning,,338552 - PROJECT
02/04/2019,FOCUS YOUTH CENTRE,Nviro Ltd,Cleaning and Domestic Supplies," 1,094.12 ",Building Cleaning,,338583 - PROJECT
02/04/2019,WOKING FIRE STN NEW,Nviro Ltd,Cleaning and Domestic Supplies," 1,127.35 ",Building Cleaning,,338603 - PROJECT
02/04/2019,CAMBERLEY FIRE STN,Nviro Ltd,Cleaning and Domestic Supplies," 1,127.35 ",Building Cleaning,,338473 - PROJECT
02/04/2019,EPSOM FIRE STATION,Nviro Ltd,Cleaning and Domestic Supplies," 1,127.35 ",Building Cleaning,,338497 - PROJECT
02/04/2019,CRANSTOCK,Nviro Ltd,Cleaning and Domestic Supplies," 1,181.20 ",Building Cleaning,,338488 - PROJECT
02/04/2019,JOSEPH PALMER,Nviro Ltd,Cleaning and Domestic Supplies," 1,181.20 ",Building Cleaning,,338525 - PROJECT
02/04/2019,ASHFORD FC,Nviro Ltd,Cleaning and Domestic Supplies," 1,181.20 ",Building Cleaning,,338580 - PROJECT
02/04/2019,THE HARBOUR,Nviro Ltd,Cleaning and Domestic Supplies," 1,181.20 ",Building Cleaning,,338584 - PROJECT
02/04/2019,14 THE PINES,Nviro Ltd,Cleaning and Domestic Supplies," 1,181.20 ",Building Cleaning,,338590 - PROJECT
02/04/2019,HIGH ASHURST OEC,Nviro Ltd,Cleaning and Domestic Supplies," 1,181.20 ",Building Cleaning,,346795 - PROJECT
02/04/2019,STAINES YTH SPTS CTR,Nviro Ltd,Cleaning and Domestic Supplies," 1,279.14 ",Building Cleaning,,338586 - PROJECT
02/04/2019,CAMBERLEY LIB,Nviro Ltd,Cleaning and Domestic Supplies," 1,318.07 ",Building Cleaning,,338474 - PROJECT
02/04/2019,RENTWOOD,Nviro Ltd,Cleaning and Domestic Supplies," 1,380.72 ",Building Cleaning,,338549 - PROJECT
02/04/2019,DRILL HALL DORKING,Nviro Ltd,Cleaning and Domestic Supplies," 1,380.72 ",Building Cleaning,,338646 - PROJECT
02/04/2019,DORKING LIB (NEW),Nviro Ltd,Cleaning and Domestic Supplies," 1,423.02 ",Building Cleaning,,338492 - PROJECT
02/04/2019,MERSTHAM HUB,Nviro Ltd,Cleaning and Domestic Supplies," 1,423.02 ",Building Cleaning,,338589 - PROJECT
02/04/2019,EBBISHAM - EPSOM LIB,Nviro Ltd,Cleaning and Domestic Supplies," 1,512.79 ",Building Cleaning,,346796 - PROJECT
02/04/2019,RUTH HOUSE MAYFORD,Nviro Ltd,Cleaning and Domestic Supplies," 1,577.05 ",Building Cleaning,,338550 - PROJECT
02/04/2019,FARNHAM LIB,Nviro Ltd,Cleaning and Domestic Supplies," 1,662.85 ",Building Cleaning,,338502 - PROJECT
02/04/2019,SALFORDS FIRE STATIO,Nviro Ltd,Cleaning and Domestic Supplies," 1,673.17 ",Building Cleaning,,338553 - PROJECT
02/04/2019,WALTON-ON-T LIB(NEW),Nviro Ltd,Cleaning and Domestic Supplies," 1,689.43 ",Building Cleaning,,338596 - PROJECT
02/04/2019,FERNLEIGH,Nviro Ltd,Cleaning and Domestic Supplies," 1,773.40 ",Building Cleaning,,338503 - PROJECT
02/04/2019,GODALMING SSC,Nviro Ltd,Cleaning and Domestic Supplies," 1,778.58 ",Building Cleaning,,338508 - PROJECT
02/04/2019,PUBLIC LIB OFFS WEYB,Nviro Ltd,Cleaning and Domestic Supplies," 1,899.49 ",Building Cleaning,,346793 - PROJECT
02/04/2019,STAINES LIB,Nviro Ltd,Cleaning and Domestic Supplies," 1,899.49 ",Building Cleaning,,338564 - PROJECT
02/04/2019,WRAY PARK COMPLEX,Nviro Ltd,Cleaning and Domestic Supplies," 1,969.73 ",Building Cleaning,,338574 - PROJECT
02/04/2019,FRANCE HILL HOUSE,Nviro Ltd,Cleaning and Domestic Supplies," 2,117.62 ",Building Cleaning,,338472 - PROJECT
02/04/2019,REDHILL LIB (NEW),Nviro Ltd,Cleaning and Domestic Supplies," 2,136.13 ",Building Cleaning,,338546 - PROJECT
02/04/2019,HIGHLANDS CTR BONSEY,Nviro Ltd,Cleaning and Domestic Supplies," 2,279.90 ",Building Cleaning,,338600 - PROJECT
02/04/2019,THE MANSION L'HEAD,Nviro Ltd,Cleaning and Domestic Supplies," 2,365.58 ",Building Cleaning,,338528 - PROJECT
02/04/2019,WOKING CORONERS CT,Nviro Ltd,Cleaning and Domestic Supplies," 2,373.25 ",Building Cleaning,,338601 - PROJECT
02/04/2019,GUILDFORD AEI,Nviro Ltd,Cleaning and Domestic Supplies," 2,758.25 ",Building Cleaning,,338512 - PROJECT
02/04/2019,GUILDFORD LIB,Nviro Ltd,Cleaning and Domestic Supplies," 2,846.04 ",Building Cleaning,,338514 - PROJECT
02/04/2019,LOCKWOOD,Nviro Ltd,Cleaning and Domestic Supplies," 3,408.24 ",Building Cleaning,,338530 - PROJECT
02/04/2019,WRAY PARK COMPLEX,Nviro Ltd,Cleaning and Domestic Supplies," 4,084.97 ",Building Cleaning,,338570 - PROJECT
02/04/2019,WOKING LIB,Nviro Ltd,Cleaning and Domestic Supplies," 4,446.79 ",Building Cleaning,,338604 - PROJECT
02/04/2019,FAIRMOUNT HOUSE,Nviro Ltd,Cleaning and Domestic Supplies," 4,487.50 ",Building Cleaning,,338500 - PROJECT
02/04/2019,SURREY HISTORY CTR,Nviro Ltd,Cleaning and Domestic Supplies," 4,976.66 ",Building Cleaning,,338577 - PROJECT
02/04/2019,CONSORT HOUSE,Nviro Ltd,Cleaning and Domestic Supplies," 5,234.22 ",Building Cleaning,,338484 - PROJECT
02/04/2019,QUADRANT CT WOKING,Nviro Ltd,Cleaning and Domestic Supplies," 7,676.06 ",Building Cleaning,,338544 - PROJECT
02/04/2019,COUNTY HALL,Nviro Ltd,Cleaning and Domestic Supplies," 28,132.90 ",Building Cleaning,,338485 - PROJECT
02/04/2019,SW IPSB - OUT COUNTY,Prior's Field School Trust Ltd,Educ Visits/Hols/Camps/Toys," 3,046.93 ",Schools,,
02/04/2019,SW IPSB - OUT COUNTY,Prior's Field School Trust Ltd,Educ Visits/Hols/Camps/Toys," 3,046.93 ",Schools,,
02/04/2019,CARE LEAVER PACKAGES,Redacted Personal Data,Curric - Consumables, 250.00 ,Individual - NEC,Redacted Personal Data,
02/04/2019,CHILD'S ADULTS EDUC,Redacted Personal Data,Miscellaneous Staff Travel, 252.45 ,Staff Expenses,*Trip from 02.04.18 To  29.06.18,Redacted Personal Data
02/04/2019,CHILD'S ADULTS EDUC,Redacted Personal Data,Miscellaneous Staff Travel, 254.34 ,Pensions,*Trip from 09.01.19 To  28.03.19,Redacted Personal Data
02/04/2019,CHILD'S ADULTS EDUC,Redacted Personal Data,Miscellaneous Staff Travel, 256.50 ,Staff Expenses,*Trip from 01.03.19 To  27.03.19,Redacted Personal Data
02/04/2019,EAST CWD NONLAC CARE,Redacted Personal Data,Direct Payments - Carers of Disabled Children, 257.15 ,Misc One-off,Redacted Personal Data,
02/04/2019,CHILD'S ADULTS EDUC,Redacted Personal Data,Miscellaneous Staff Travel, 259.65 ,Staff Expenses,*Trip from 01.10.18 To  31.12.18,Redacted Personal Data
02/04/2019,CHILD'S ADULTS EDUC,Redacted Personal Data,Miscellaneous Staff Travel, 270.65 ,Staff Expenses,*Trip from 01.04.18 To  31.03.19,Redacted Personal Data
02/04/2019,CHILD'S ADULTS EDUC,Redacted Personal Data,Miscellaneous Staff Travel, 277.35 ,Staff Expenses,*Trip from 11.03.19 To  02.04.19,Redacted Personal Data
02/04/2019,SW CARE - CPCRT NONL,Redacted Personal Data,Other Community Care - Vol, 278.80 ,Adult direct payment,Redacted Personal Data,Redacted Personal Data
02/04/2019,CHILD'S ADULTS EDUC,Redacted Personal Data,Miscellaneous Staff Travel, 292.95 ,Staff Expenses,*Trip from 01.01.19 To  31.03.19,Redacted Personal Data
02/04/2019,CWD CONTRACTS/SLA'S,Redacted Personal Data,Direct Payments - Carers of Disabled Children, 300.00 ,Invoicing Plan Req.,Redacted Personal Data,
02/04/2019,CHILD'S ADULTS EDUC,Redacted Personal Data,Miscellaneous Staff Travel, 313.65 ,Staff Expenses,*Trip from 01.03.19 To  29.03.19,Redacted Personal Data
02/04/2019,CHILD'S ADULTS EDUC,Redacted Personal Data,Miscellaneous Staff Travel, 334.30 ,Staff Expenses,*Trip from 01.03.19 To  29.03.19,Redacted Personal Data
02/04/2019,CHILD'S ADULTS EDUC,Redacted Personal Data,Miscellaneous Staff Travel, 340.65 ,Staff Expenses,*Trip from 11.02.19 To  28.03.19,Redacted Personal Data
02/04/2019,CHILD'S ADULTS EDUC,Redacted Personal Data,Miscellaneous Staff Travel, 340.85 ,Staff Expenses,*Trip from 01.02.19 To  31.03.19,Redacted Personal Data
02/04/2019,CHILD'S ADULTS EDUC,Redacted Personal Data,Miscellaneous Staff Travel, 467.76 ,Staff Expenses,*Trip from 03.12.18 To  28.02.19,Redacted Personal Data
02/04/2019,CHILD'S ADULTS EDUC,Redacted Personal Data,Miscellaneous Staff Travel, 468.28 ,Staff Expenses,*Trip from 04.02.19 To  28.03.19,Redacted Personal Data
02/04/2019,CHILD'S ADULTS EDUC,Redacted Personal Data,Miscellaneous Staff Travel, 500.80 ,Staff Expenses,*Trip from 21.03.19 To  21.03.19,Redacted Personal Data
02/04/2019,CHILD'S ADULTS EDUC,Redacted Personal Data,Miscellaneous Staff Travel, 519.00 ,Staff Expenses,*Trip from 28.03.19 To  28.03.19,Redacted Personal Data
02/04/2019,CHILD'S ADULTS EDUC,Redacted Personal Data,Miscellaneous Staff Travel, 540.90 ,Staff Expenses,*Trip from 01.01.19 To  29.03.19,Redacted Personal Data
02/04/2019,CHILD'S ADULTS EDUC,Redacted Personal Data,Miscellaneous Staff Travel, 546.10 ,Staff Expenses,*Trip from 05.09.18 To  31.12.18,Redacted Personal Data
02/04/2019,CHILD'S ADULTS EDUC,Redacted Personal Data,Miscellaneous Staff Travel, 591.90 ,Staff Expenses,*Trip from 04.02.19 To  29.03.19,Redacted Personal Data
02/04/2019,NE ALTERNATIVE SEN,Redacted Personal Data,Agency Placement Expenditure, 600.00 ,SEND Agncy Placement,,
02/04/2019,CHILD'S ADULTS EDUC,Redacted Personal Data,Miscellaneous Staff Travel, 871.00 ,Staff Expenses,*Trip from 02.01.19 To  29.03.19,Redacted Personal Data
02/04/2019,EAST CWD NONLAC CARE,Redacted Personal Data,Direct Payments - Carers of Disabled Children, 899.57 ,Individual - NEC,Redacted Personal Data,
02/04/2019,CARE LEAVER PACKAGES,Redacted Personal Data,Independent Living Placements, 936.26 ,Invoicing Plan Req.,Redacted Personal Data,
02/04/2019,SW ALTERNATIVE SEN,Redacted Personal Data,Agency Placement Expenditure," 1,280.00 ",SEN Specialist Supp,,
02/04/2019,NE CARE - CPCRT NONL,Redacted Personal Data,Other Community Care - Vol," 3,053.40 ",Invoicing Plan Req.,Redacted Personal Data,
02/04/2019,ASTD PURCHASE SCHEME,Redacted Personal Data,Equipment," 7,500.00 ",Musical Instruments,Redacted Personal Data,Redacted Personal Data
02/04/2019,LD COST OF CARE LD,Redacted Personal Data,Residential," 7,908.58 ",Residential - LD,Redacted Personal Data,Redacted Personal Data
02/04/2019,NW AGENCY PLACE-ED,Roehampton Lodge Priory,Agency Placement Expenditure," 17,500.00 ",SEND Agncy Placement,,
02/04/2019,NW AGENCY PLACE-ED,Roehampton Lodge Priory,Agency Placement Expenditure," 18,936.66 ",SEND Agncy Placement,,
02/04/2019,,Rosenbauer UK Plc,CE02 Furniture and Equipment," 38,204.40 ",Fire Serv Spec Equip,,
02/04/2019,,Rosenbauer UK Plc,CE02 Furniture and Equipment," 151,287.34 ",Fire Serv Spec Equip,,
02/04/2019,,Rosenbauer UK Plc,CE02 Furniture and Equipment," 568,475.22 ",Fire Serv Spec Equip,,
02/04/2019,COMMUNITY TRANSPT,Runnymede Borough Council,Contractor," 7,131.98 ",Local Government,,
02/04/2019,DOMESTIC ABUSE,Salvation Army Housing Association,Grants-Third Sector and Voluntary Orgs/Charities," 58,500.00 ",Temp Ops OM Cover,SAHA-SCC Payment 1,SAHARefuge-Payment1
02/04/2019,NIL REC PF 18+ ASYLM,Sanctuary Affordable Housing,New GR/IR Account, 693.21 ,Residential - MH,,
02/04/2019,RUTH HOUSE MAYFORD,SCC Freemantles School,Water Charges, 328.70 ,Schools,,
02/04/2019,RUTH HOUSE MAYFORD,SCC Freemantles School,Electricity, 637.49 ,Schools,,
02/04/2019,SPELTHORNE LOC,SHA Disability Consultancy Ltd,Other Community Care," 1,950.00 ",Specialist Serv,,
02/04/2019,EAST CWD NONLAC CARE,Shootingstarchase,Residential CWD Placements," 4,000.00 ",Grants - Community,,
02/04/2019,BUS SUPP & CUST SERV,Signal Services Ltd,Contractor," 1,848.00 ",Highway Maintenance,,
02/04/2019,SE CARE - CPCRT NONL,SJC Social Work Ltd,Specialist Assessments, 498.70 ,Parent & Child Asses,,
02/04/2019,NW ALTERNATIVE SEN,Speak2me Hants Ltd,Other Community Care - Priv, 542.48 ,Speech & Language,,
02/04/2019,SPEECH & LNG THERAPY,Speak2me Hants Ltd,Other Community Care - Priv," 1,258.75 ",Speech & Language,,
02/04/2019,NE AGENCY PLACE-ED,St Dominics School,Agency Placement Expenditure," 5,000.00 ",School Support Serv,,
02/04/2019,ASYLUM SEEKERS 18+,Step Ahead Services Ltd,Independent Living Placements, 534.48 ,Youth Offending Serv,,
02/04/2019,NW AGENCY PLACE-ED,Step By Step School,Agency Placement Expenditure," 23,466.00 ",SEN Specialist Supp,,
02/04/2019,TECH DELIVERY,Sumillion  Ltd,Computer Hardware," 57,453.60 ",Appl Serv Provision,,
02/04/2019,ASYLUM SEEKERS 18+,Sunbeam Fostering Agency Ltd,Foster Care Placements," 2,409.01 ",Sup Living Children,,
02/04/2019,NW AGENCY PLACE-ED,Tadley Court School,Agency Placement Expenditure," 25,666.66 ",Res Care,,
02/04/2019,NW AGENCY PLACE-ED,The Langley Academy,Local Authorities," 3,000.00 ",Schools,,Redacted Personal Data
02/04/2019,NE AGENCY PLACE-ED,The Moat School,Agency Placement Expenditure," 9,600.00 ",Schools,,
02/04/2019,NE AGENCY PLACE-ED,The Moat School,Agency Placement Expenditure," 9,810.00 ",Schools,,
02/04/2019,POST 16 PLACEMENT NW,The Orpheus Centre,Agency Placement Expenditure," 4,222.00 ",Supp Living - MH,,Redacted Personal Data
02/04/2019,POST 16 PLACEMENT NW,The Orpheus Centre,Agency Placement Expenditure," 4,222.00 ",Supp Living - MH,,Redacted Personal Data
02/04/2019,Commissioning,The Public Office,Subsistence and Conference Expenses," 55,501.68 ",Org & Bus Consult,,
02/04/2019,SW ALTERNATIVE SEN,Tutorone,Agency Placement Expenditure, 352.80 ,SEND Agncy Placement,,
02/04/2019,SW ALTERNATIVE SEN,Tutorone,Agency Placement Expenditure, 352.80 ,SEND Agncy Placement,,
02/04/2019,SW ALTERNATIVE SEN,Tutorone,Agency Placement Expenditure, 352.80 ,SEND Agncy Placement,,
02/04/2019,SE ALTERNATIVE SEN,Tutorone,Agency Placement Expenditure, 554.40 ,SEND Agncy Placement,,
02/04/2019,SW ALTERNATIVE SEN,Tutorone,Agency Placement Expenditure, 592.20 ,SEND Agncy Placement,,
02/04/2019,SW ALTERNATIVE SEN,Tutorone,Agency Placement Expenditure, 604.80 ,SEND Agncy Placement,,
02/04/2019,SW ALTERNATIVE SEN,Tutorone,Agency Placement Expenditure, 781.20 ,SEND Agncy Placement,,
02/04/2019,NW AGENCY PLACE-ED,Unsted Park School,Agency Placement Expenditure," 19,812.00 ",SEN Specialist Supp,,
02/04/2019,NW AGENCY PLACE-ED,Unsted Park School,Agency Placement Expenditure," 19,812.00 ",SEN Specialist Supp,,
02/04/2019,NW AGENCY PLACE-ED,Unsted Park School,Agency Placement Expenditure," 21,600.00 ",SEN Specialist Supp,,
02/04/2019,NW AGENCY PLACE-ED,Unsted Park School,Agency Placement Expenditure," 21,600.00 ",SEN Specialist Supp,,
02/04/2019,NW AGENCY PLACE-ED,Unsted Park School,Agency Placement Expenditure," 22,013.33 ",SEN Specialist Supp,,
02/04/2019,NW AGENCY PLACE-ED,Unsted Park School,Agency Placement Expenditure," 22,377.60 ",SEN Specialist Supp,,
02/04/2019,NW AGENCY PLACE-ED,Unsted Park School,Agency Placement Expenditure," 22,377.60 ",SEN Specialist Supp,,
02/04/2019,NW AGENCY PLACE-ED,Unsted Park School,Agency Placement Expenditure," 22,377.60 ",SEN Specialist Supp,,
02/04/2019,NW AGENCY PLACE-ED,Unsted Park School,Agency Placement Expenditure," 22,713.33 ",SEN Specialist Supp,,
02/04/2019,NW AGENCY PLACE-ED,Unsted Park School,Agency Placement Expenditure," 22,713.33 ",SEN Specialist Supp,,
02/04/2019,NW AGENCY PLACE-ED,Unsted Park School,Agency Placement Expenditure," 28,823.00 ",SEN Specialist Supp,,
02/04/2019,SW AGENCY PLACE-ED,Wemms Maths Unlimited,Agency Placement Expenditure," 12,000.00 ",SEND Agncy Placement,,
02/04/2019,POST 16 PLACEMENT NE,Young Epilepsy,Agency Placement Expenditure," 15,947.87 ",Grants-Member Allocs,,
02/04/2019,POST 16 PLACEMENT NE,Young Epilepsy,Agency Placement Expenditure," 33,365.32 ",Grants-Member Allocs,,
02/04/2019,NW AGENCY PLACE-ED,Young Epilepsy,Agency Placement Expenditure," 34,649.67 ",Grants-Member Allocs,,
02/04/2019,POST 16 PLACEMENT SW,Young Epilepsy,Agency Placement Expenditure," 38,851.59 ",Grants-Member Allocs,,
02/04/2019,POST 16 PLACEMENT NE,Young Epilepsy,Agency Placement Expenditure," 43,584.00 ",Grants-Member Allocs,,
02/04/2019,POST 16 PLACEMENT NE,Young Epilepsy,Agency Placement Expenditure," 44,261.77 ",Grants-Member Allocs,,
02/04/2019,POST 16 PLACEMENT NE,Young Epilepsy,Agency Placement Expenditure," 44,759.37 ",Grants-Member Allocs,,
02/04/2019,,Your Environmental Company Ltd,, 930.00 ,Surveys - Ecological,Please carry out Percolation Testing at various po,374056 - PROJECT
03/04/2019,HD SAFEGUARDING SUPP,Aidhour Ltd,Training Expenses - External General," 3,780.00 ",Investment Services,,
03/04/2019,HD SAFEGUARDING SUPP,Aidhour Ltd,Training Expenses - External General," 4,410.00 ",Investment Services,,
03/04/2019,WOKING BANDSTAND,BDO LLP,Fees," 1,660.50 ",Env Consultancy,,
03/04/2019,NE IPSB - PLAYGROUPS,Building Blocks Pre School & Daycar,New GR/IR Account, 500.80 ,Day Services,,
03/04/2019,,Cala Homes South Home Counties Ltd,," 2,871.00 ",Non-Staff Expenses,Redacted Personal Data,Redacted Personal Data
03/04/2019,SEN ADAPTATIONS,Care & Independence Ltd,Equipment, 309.70 ,Green Works,,
03/04/2019,SE CARE - CPCRT NONL,Catax Ltd,Creditors Control Account, 336.00 ,Multi-purpose Veh,ADHOC2412: 01/02/2019 to 28/02/2019,Transport services
03/04/2019,NW ALTERNATIVE SEN,CEIEC,Agency Placement Expenditure, 600.00 ,SEN Specialist Supp,,
03/04/2019,RESOURCES FUND,Cengage Learning EMEA Ltd,Library Resources," 8,232.00 ",Pub Sch Books,CENCAGE LEARNING,Surrey Libraries
03/04/2019,RESOURCES FUND,Cengage Learning EMEA Ltd,Library Resources," 15,139.25 ",Pub Sch Books,CENCAGE LEARNING,Surrey Libraries
03/04/2019,,Corrigenda Ltd,," 1,466.02 ",General Build Maint,Undertake work as per tender for part replacement,231902 - PROJECT
03/04/2019,REIGATE & BD CARE LD,Courtesy Cars Redhill,Creditors Control Account, 961.20 ,Multi-purpose Veh,COURTESRED@8879: 01/04/2017 to 30/04/201,Transport services
03/04/2019,REIGATE & BD CARE LD,Courtesy Cars Redhill,Creditors Control Account," 1,068.00 ",Multi-purpose Veh,COURTESRED@8879: 01/02/2017 to 28/02/201,Transport services
03/04/2019,REIGATE & BD CARE LD,Courtesy Cars Redhill,Creditors Control Account," 1,121.40 ",Multi-purpose Veh,COURTESRED@8879: 01/05/2017 to 31/05/201,Transport services
03/04/2019,REIGATE & BD CARE LD,Courtesy Cars Redhill,Creditors Control Account," 1,121.40 ",Multi-purpose Veh,COURTESRED@8879: 01/12/2016 to 31/12/201,Transport services
03/04/2019,REIGATE & BD CARE LD,Courtesy Cars Redhill,Creditors Control Account," 1,121.40 ",Multi-purpose Veh,COURTESRED@8879: 01/01/2017 to 31/01/201,Transport services
03/04/2019,REIGATE & BD CARE LD,Courtesy Cars Redhill,Creditors Control Account," 1,228.20 ",Multi-purpose Veh,COURTESRED@8879: 01/03/2017 to 31/03/201,Transport services
03/04/2019,GENERAL PROP AC,EDF Energy - Domestic,Electricity, 306.68 ,Utilities - Water,,
03/04/2019,AGENCY NON CWD SC,Esland South Ltd,Residential Placements," 15,400.00 ",Res Care,,
03/04/2019,NW CARE - CPCRT LAC,HM Courts & Tribunals Service,Legal Expenses," 2,055.00 ",Court Fees,,
03/04/2019,NW CARE - CPCRT LAC,HM Courts & Tribunals Service,Legal Expenses," 2,055.00 ",Court Fees,,
03/04/2019,,Hobart Paving Co Ltd,," 9,981.90 ",Highway Maintenance,Fees for associated works for the installation of,321607 - PROJECT
03/04/2019,SE IPSB - PLAYGROUPS,Horseshoe Community Pre School,Agency Placement Nursery Exp, 329.40 ,Schools,,
03/04/2019,RESOURCES FUND,JCS Online Resources Ltd,Library Resources," 2,520.00 ",Subscriptions,Redacted Personal Data,Surrey Libraries
03/04/2019,GFORD CHILDS CTR SCH,Kier Facilities Services Ltd,Buyback Works Term, 358.45 ,General Build Maint,*WORKS FROM SERVICE* Following Boiler service to s,231181 - REACTIVE
03/04/2019,BROOKWOOD PRY SCH,Kier Facilities Services Ltd,Buyback Inspections, 360.30 ,General Build Maint,Quantity : 5,201462 - PROJECT
03/04/2019,4 ST JAMES AVE FRNHM,Kier Facilities Services Ltd,Corporate Responsive Maintenance, 385.01 ,General Build Maint,RESP: LEAKING DOWNSTAIrs toiletSite report that th,307203 - REACTIVE
03/04/2019,ONSLOW INF,Kier Facilities Services Ltd,Buyback Inspections, 602.14 ,General Build Maint,Quantity : 1,198902 - PROJECT
03/04/2019,WINSTON CHURCHILL SC,Kier Facilities Services Ltd,Buyback Inspections, 602.14 ,General Build Maint,Quantity : 1,198918 - PROJECT
03/04/2019,CRANSTOCK,Kier Facilities Services Ltd,Corporate Responsive Maintenance, 617.30 ,General Build Maint,RESP: 4 HOUR - Please attend asap as site advised,310233 - REACTIVE
03/04/2019,WILLIAM COBBETT JSCH,Kier Facilities Services Ltd,Buyback Works Responsive, 668.63 ,General Build Maint,RESP: URGENT 1 HOUR - Site have advised that there,341429 - REACTIVE
03/04/2019,TILLINGBOURNE JUNSCH,Kier Facilities Services Ltd,Buyback Works Responsive, 679.73 ,General Build Maint,RESP - Please attend with CCTV camera to take phot,342986 - REACTIVE
03/04/2019,BISHOP DAVID BROWN,Kier Facilities Services Ltd,Buyback Inspections, 738.00 ,General Build Maint,Quantity : 7,201443 - PROJECT
03/04/2019,TRUMPS GREEN INF SCH,Kier Facilities Services Ltd,Buyback Works Responsive, 817.09 ,General Build Maint,RESP 2 external lights are not working site have c,352439 - REACTIVE
03/04/2019,BROADWATER SCHOOL,Kier Facilities Services Ltd,Buyback Works Responsive," 1,032.89 ",General Build Maint,RESP Please repair leaking radiators on third floo,348267 - REACTIVE
03/04/2019,GUILDFORD AEI,Kier Facilities Services Ltd,Term Contract Works," 1,192.99 ",General Build Maint,CONFIRMATION ORDER *WORKS FROM SERVICE* Following,231056 - REACTIVE
03/04/2019,ASH MANOR SCHOOL,Kier Facilities Services Ltd,Buyback Works Responsive," 2,183.54 ",General Build Maint,RESP - There are about 5 roof tiles that have slip,323021 - REACTIVE
03/04/2019,,Kier Facilities Services Ltd,," 2,547.13 ",General Build Maint,RESP: Please attend to repair / replace the below,347056 - REACTIVE
03/04/2019,,Kier Facilities Services Ltd,," 2,879.16 ",General Build Maint,RESP: Electrician to attend within 24 HOUR as wate,347067 - REACTIVE
03/04/2019,NE AGENCY PLACE-ED,Knowl Hill School,Agency Placement Expenditure," 7,438.00 ",School Support Serv,,
03/04/2019,NE AGENCY PLACE-ED,Knowl Hill School,Agency Placement Expenditure," 8,026.00 ",School Support Serv,,
03/04/2019,NE AGENCY PLACE-ED,Knowl Hill School,Agency Placement Expenditure," 8,614.00 ",School Support Serv,,
03/04/2019,NE AGENCY PLACE-ED,Knowl Hill School,Agency Placement Expenditure," 8,614.00 ",School Support Serv,,
03/04/2019,NE AGENCY PLACE-ED,Knowl Hill School,Agency Placement Expenditure," 10,625.00 ",School Support Serv,,
03/04/2019,NW CARE - CPCRT NONL,Lyne & Longcross Nursery,Agency Placement Nursery Exp, 304.92 ,Nurseries,,
03/04/2019,DOLS TEAM,Matrix Service Dev & Training Ltd,Other Community Care," 17,078.40 ",Staff Training,,
03/04/2019,SW IPSB - OUT COUNTY,Mill Chase Academy,Agency Placement Expenditure, 474.00 ,SEN Specialist Supp,,
03/04/2019,NW CARE - LAC,Mums & Sons Ltd,Creditors Control Account, 696.00 ,Multi-purpose Veh,MUMS & SON@1186: 01/02/2019 to 28/02/201,Transport services
03/04/2019,WOKING CARE PD,Mums & Sons Ltd,Creditors Control Account, 912.00 ,Multi-purpose Veh,MUMS & SON@2760: 01/02/2019 to 28/02/201,Transport services
03/04/2019,TRANSPT M/STRM-SEC,Naughton Bus & Coach Hire,Creditors Control Account," 4,113.69 ",Education Buses & Co,E302/1: 01/03/2019 to 31/03/2019,Transport services
03/04/2019,TRANSPT M/STRM-SEC,Naughton Bus & Coach Hire,Creditors Control Account," 7,752.12 ",Education Buses & Co,E305/2: 01/03/2019 to 31/03/2019,Transport services
03/04/2019,CORP INCOME AND EXP,Network Rail Infrastructure Ltd,Write Offs," 6,630.00 ",Local Bus,,
03/04/2019,TSU / governance/ Cu,Penna Plc,Agency Staff Providing Project Support," 21,495.60 ",Temp Ops OM Cover,,
03/04/2019,ACL CENTRAL EXP,Pugh Comupters Ltd,Computer Services," 6,072.00 ",Customised & Bespoke,,
03/04/2019,CARE LEAVER PACKAGES,Redacted Personal Data,Curric - Consumables, 250.00 ,Care Leaver Living,Redacted Personal Data,
03/04/2019,ASYLUM SEEKERS 18+,Redacted Personal Data,Curric - Consumables, 250.00 ,Care Leaver Living,Redacted Personal Data,
03/04/2019,ASYLUM SEEKERS 18+,Redacted Personal Data,Curric - Consumables, 250.00 ,LAC Leaving Care,Redacted Personal Data,
03/04/2019,TS SERVICE MGMT,Redacted Personal Data,Miscellaneous Staff Travel, 250.10 ,Staff Expenses,*Trip from 13.03.19 To  28.03.19,Redacted Personal Data
03/04/2019,TS SERVICE MGMT,Redacted Personal Data,Miscellaneous Staff Travel, 251.26 ,Staff Expenses,*Trip from 05.03.19 To  29.03.19,Redacted Personal Data
03/04/2019,TS SERVICE MGMT,Redacted Personal Data,Miscellaneous Staff Travel, 253.74 ,Staff Expenses,*Trip from 17.12.18 To  31.03.19,Redacted Personal Data
03/04/2019,ASYLUM SKERS UNDER16,Redacted Personal Data,Foster Care Placements, 254.45 ,Invoicing Plan Req.,Redacted Personal Data,
03/04/2019,TS SERVICE MGMT,Redacted Personal Data,Miscellaneous Staff Travel, 263.85 ,Pensions,*Trip from 20.03.19 To  29.03.19,Redacted Personal Data
03/04/2019,TS SERVICE MGMT,Redacted Personal Data,Miscellaneous Staff Travel, 267.98 ,Staff Expenses,*Trip from 26.02.19 To  31.03.19,Redacted Personal Data
03/04/2019,EAST CWD NONLAC CARE,Redacted Personal Data,Direct Payments - Carers of Disabled Children, 300.00 ,Adult direct payment,Redacted Personal Data,Redacted Personal Data
03/04/2019,EAST CWD NONLAC CARE,Redacted Personal Data,Direct Payments - Carers of Disabled Children, 300.00 ,Adult direct payment,Redacted Personal Data,Redacted Personal Data
03/04/2019,CHILD'S ADULTS EDUC,Redacted Personal Data,Miscellaneous Staff Travel, 305.35 ,Staff Expenses,*Trip from 24.05.18 To  22.03.19,Redacted Personal Data
03/04/2019,TS SERVICE MGMT,Redacted Personal Data,Miscellaneous Staff Travel, 346.50 ,Staff Expenses,*Trip from 01.11.18 To  31.03.19,Redacted Personal Data
03/04/2019,COMPLAINT & ADVOCACY,Redacted Personal Data,Other Community Care - Priv, 350.30 ,Advice & Counselling,,
03/04/2019,EAST CWD NONLAC CARE,Redacted Personal Data,Direct Payments - Carers of Disabled Children, 446.40 ,Adult direct payment,Redacted Personal Data,Redacted Personal Data
03/04/2019,SW CARE - CPCRT LAC,Redacted Personal Data,Non-Staff Related Transport Costs, 472.00 ,Invoicing Plan Req.,Redacted Personal Data,
03/04/2019,TS SERVICE MGMT,Redacted Personal Data,Miscellaneous Staff Travel, 492.34 ,Staff Expenses,*Trip from 01.03.19 To  29.03.19,Redacted Personal Data
03/04/2019,EAST CWD NONLAC CARE,Redacted Personal Data,Direct Payments - Carers of Disabled Children, 499.12 ,CYP Indiv CWD Carers,Redacted Personal Data,
03/04/2019,TS SERVICE MGMT,Redacted Personal Data,Miscellaneous Staff Travel, 527.24 ,Staff Expenses,*Trip from 01.01.19 To  31.03.19,Redacted Personal Data
03/04/2019,TS SERVICE MGMT,Redacted Personal Data,Miscellaneous Staff Travel, 554.60 ,Staff Expenses,*Trip from 01.01.19 To  31.01.19,Redacted Personal Data
03/04/2019,TS SERVICE MGMT,Redacted Personal Data,Miscellaneous Staff Travel, 606.90 ,Staff Expenses,*Trip from 01.01.19 To  31.03.19,Redacted Personal Data
03/04/2019,TS SERVICE MGMT,Redacted Personal Data,Miscellaneous Staff Travel," 1,162.00 ",Staff Expenses,*Trip from 06.04.18 To  27.04.19,Redacted Personal Data
03/04/2019,SURREY HEATH CARE OP,Redacted Personal Data,Direct Payments - Independent Sector," 1,464.29 ",Adult direct payment,PAY THE INDIVIDUAL SW (2169),Redacted Personal Data
03/04/2019,GUILDFORD CARE OP,Redacted Personal Data,Home Base Care," 1,848.00 ",Non-Staff Expenses,To Date of Capital Threshold,Redacted Personal Data
03/04/2019,EAST CWD NONLAC CARE,Redacted Personal Data,Direct Payments - Carers of Disabled Children," 2,404.44 ",Adult direct payment,Redacted Personal Data,Redacted Personal Data
03/04/2019,SW AGENCY PLACE-ED,Roehampton Lodge Priory,Agency Placement Expenditure," 12,849.67 ",SEND Agncy Placement,,
03/04/2019,SW AGENCY PLACE-ED,Roehampton Lodge Priory,Agency Placement Expenditure," 15,000.00 ",SEND Agncy Placement,,
03/04/2019,SW AGENCY PLACE-ED,Roehampton Lodge Priory,Agency Placement Expenditure," 15,833.33 ",SEND Agncy Placement,,
03/04/2019,NE AGENCY PLACE-ED,Roehampton Lodge Priory,Agency Placement Expenditure," 18,608.33 ",SEND Agncy Placement,,
03/04/2019,NE AGENCY PLACE-ED,Roehampton Lodge Priory,Agency Placement Expenditure," 19,198.00 ",SEND Agncy Placement,,
03/04/2019,NE AGENCY PLACE-ED,Roehampton Lodge Priory,Agency Placement Expenditure," 19,506.67 ",SEND Agncy Placement,,
03/04/2019,NE AGENCY PLACE-ED,Roehampton Lodge Priory,Agency Placement Expenditure," 19,668.00 ",SEND Agncy Placement,,
03/04/2019,NE AGENCY PLACE-ED,Roehampton Lodge Priory,Agency Placement Expenditure," 20,670.00 ",SEND Agncy Placement,,
03/04/2019,SW AGENCY PLACE-ED,Roehampton Lodge Priory,Agency Placement Expenditure," 23,000.00 ",SEND Agncy Placement,,
03/04/2019,RESOURCES FUND,Select Music & Video Distribution L,Library Resources," 2,150.40 ",News & Periodical,SELECT MUSIC AND VIDEO DISTRUBUTION LTD,Surrey Libraries
03/04/2019,BUS SUPP & CUST SERV,Signal Services Ltd,Contractor," 1,396.80 ",Highway Maintenance,,
03/04/2019,BUS SUPP & CUST SERV,Signal Services Ltd,Contractor," 1,884.00 ",Highway Maintenance,,
03/04/2019,BUS SUPP & CUST SERV,Signal Services Ltd,Contractor," 3,852.00 ",Highway Maintenance,,
03/04/2019,SOLD ESTATES MNGT,Sixt rent a car Ltd,Hire of Vehicles, 468.30 ,Multi-purpose Veh,,
03/04/2019,,SSE Services Plc,CE02 Furniture and Equipment, 406.80 ,Electricity,,
03/04/2019,PLD TRANSITION,St Josephs Executive Travel Gatwick,Creditors Control Account, 280.00 ,Multi-purpose Veh,ADHOC1459: 01/02/2019 to 28/02/2019,Transport services
03/04/2019,SW TRANSPORT,St Josephs Executive Travel Gatwick,Creditors Control Account, 315.00 ,Multi-purpose Veh,ADHOC2500: 01/02/2019 to 28/02/2019,Transport services
03/04/2019,EAST CWD NONLAC CARE,St Josephs Executive Travel Gatwick,Creditors Control Account, 441.00 ,Multi-purpose Veh,RESP413: 01/02/2019 to 28/02/2019,Transport services
03/04/2019,MOLE VALLEY CARE OP,St Josephs Executive Travel Gatwick,Creditors Control Account, 696.00 ,Multi-purpose Veh,BARNFIELD: 01/02/2019 to 28/02/2019,Transport services
03/04/2019,SW TRANSPORT,St Josephs Executive Travel Gatwick,Creditors Control Account, 855.00 ,Multi-purpose Veh,ADHOC2500: 01/02/2019 to 28/02/2019,Transport services
03/04/2019,NE CARE - CPCRT LAC,St Josephs Executive Travel Gatwick,Creditors Control Account," 1,263.00 ",Multi-purpose Veh,ADHOC1278: 01/02/2019 to 28/02/2019,Transport services
03/04/2019,EAST CWD NONLAC CARE,St Josephs Executive Travel Gatwick,Creditors Control Account," 1,742.40 ",Multi-purpose Veh,RESP413: 01/02/2019 to 28/02/2019,Transport services
03/04/2019,NW IPSB - PLAYGROUPS,Sunbeams at Stepgates,Agency Placement Nursery Exp," 1,592.10 ",Nursery,,
03/04/2019,ACL CENTRAL EXP,Surrey Care Trust,Contractors," 9,250.00 ",Grants-Member Allocs,,
03/04/2019,RECYCLING CREDITS TM,Surrey Heath Borough Council,Third Party Payments-Other Agencies," 158,125.00 ",Grants-Member Allocs,,
03/04/2019,RECYCLING CREDITS TM,Surrey Heath Borough Council,Third Party Payments-Other Agencies," 1,279,175.41 ",Grants-Member Allocs,,
03/04/2019,NETWORK RESILENCE,Surrey Wildlife Trust,Upkeep of Grounds," 4,317.60 ",Grants-Member Allocs,,
03/04/2019,CHAIRMAN,The Grange Centre,Refreshment Costs, 607.00 ,Residential - MH,,
03/04/2019,CARE LEAVER PACKAGES,University of East London,Independent Living Placements," 5,554.40 ",Educ Tuition Fees,,
03/04/2019,SW AGENCY PLACE-ED,Unsted Park School,Agency Placement Expenditure, 520.00 ,SEN Specialist Supp,,
03/04/2019,NE AGENCY PLACE-ED,Unsted Park School,Agency Placement Expenditure," 5,250.00 ",SEN Specialist Supp,,
03/04/2019,NE AGENCY PLACE-ED,Unsted Park School,Agency Placement Expenditure," 19,500.00 ",SEN Specialist Supp,,
03/04/2019,SW AGENCY PLACE-ED,Unsted Park School,Agency Placement Expenditure," 19,812.00 ",SEN Specialist Supp,,
03/04/2019,NE AGENCY PLACE-ED,Unsted Park School,Agency Placement Expenditure," 19,812.00 ",SEN Specialist Supp,,
03/04/2019,NE AGENCY PLACE-ED,Unsted Park School,Agency Placement Expenditure," 21,600.00 ",SEN Specialist Supp,,
03/04/2019,SW AGENCY PLACE-ED,Unsted Park School,Agency Placement Expenditure," 22,013.33 ",SEN Specialist Supp,,
03/04/2019,NE AGENCY PLACE-ED,Unsted Park School,Agency Placement Expenditure," 22,377.60 ",SEN Specialist Supp,,
03/04/2019,NE AGENCY PLACE-ED,Unsted Park School,Agency Placement Expenditure," 22,377.60 ",SEN Specialist Supp,,
03/04/2019,SW AGENCY PLACE-ED,Unsted Park School,Agency Placement Expenditure," 22,377.60 ",SEN Specialist Supp,,
03/04/2019,NE AGENCY PLACE-ED,Unsted Park School,Agency Placement Expenditure," 22,713.33 ",SEN Specialist Supp,,
03/04/2019,SW AGENCY PLACE-ED,Unsted Park School,Agency Placement Expenditure," 22,713.33 ",SEN Specialist Supp,,
03/04/2019,NE AGENCY PLACE-ED,Unsted Park School,Agency Placement Expenditure," 22,713.33 ",SEN Specialist Supp,,
03/04/2019,NE AGENCY PLACE-ED,Unsted Park School,Agency Placement Expenditure," 24,750.00 ",SEN Specialist Supp,,
03/04/2019,NE AGENCY PLACE-ED,Unsted Park School,Agency Placement Expenditure," 24,750.00 ",SEN Specialist Supp,,
03/04/2019,NE AGENCY PLACE-ED,Unsted Park School,Agency Placement Expenditure," 26,400.00 ",SEN Specialist Supp,,
03/04/2019,SW AGENCY PLACE-ED,Unsted Park School,Agency Placement Expenditure," 26,400.00 ",SEN Specialist Supp,,
03/04/2019,RESOURCES FUND,Well Informed Ltd,Library Resources," 4,866.00 ",Subscriptions,WELL INFORMED,Surrey Libraries
03/04/2019,NW IPSB - PLAYGROUPS,White Lodge Centre,Agency Placement Nursery Exp, 411.75 ,Day Care - PSD,,
03/04/2019,NW IPSB - PLAYGROUPS,White Lodge Centre,Agency Placement Nursery Exp, 549.00 ,Day Care - PSD,,
03/04/2019,NW IPSB - PLAYGROUPS,White Lodge Centre,Agency Placement Nursery Exp, 686.25 ,Day Care - PSD,,
03/04/2019,NW IPSB - PLAYGROUPS,White Lodge Centre,Agency Placement Nursery Exp," 1,372.50 ",Day Care - PSD,,
03/04/2019,LEG EXPS-CORP GROUP,Wilberforce Chambers,Legal Expenses," 4,200.00 ",Complexity,Instructions to Counsel to advise (18.01.19) and P,Redacted Personal Data
03/04/2019,SW IPSB - PLAYGROUPS,Wonersh Pre-School,Agency Placement Nursery Exp, 549.00 ,Schools,,
03/04/2019,NW CARE - CPCRT LAC,Wrixon Care Services,Coach Escorts Contracted," 1,173.60 ",Res Care,,
03/04/2019,NW CARE - CPCRT LAC,Wrixon Care Services,Coach Escorts Contracted," 2,259.02 ",Res Care,,
04/04/2019,PASSGR TRANS TCC,Allied Healthcare (UK) Ltd,Coach Escorts Contracted," 1,760.00 ",Dom Care - Adults,,
04/04/2019,EAST CWD NONLAC CARE,Ascendit Lifts Ltd,Corporate Responsive Maintenance," 2,142.00 ",Complex,,
04/04/2019,,Ascendit Lifts Ltd,Deferred Charges," 2,568.00 ",Complex,,
04/04/2019,PRI GROWING SCHS,Ashley COE (A) Primary School,Agency Placement Expenditure," 7,896.00 ",Schools,Growing schools funding,Ashley Apr 19
04/04/2019,PRI ADDIT SEN THRESH,Auriol Junior School,Agency Placement Expenditure, 510.00 ,Schools,Additional SEN funding,Auriol Apr 19
04/04/2019,PR HN TOP UP UNALLOC,Auriol Junior School,Agency Placement Expenditure," 4,172.00 ",Schools,SEN centre top up funding,Auriol Apr 19
04/04/2019,AGENCY NON CWD SC,Banya Family Placement Agency,Foster Care Placements," 4,290.09 ",Sup Living Children,,
04/04/2019,NURSERY CLASS CTGCY,Barnsbury Primary School Academy,Agency Placement Expenditure," 8,795.00 ",Schools,Nursery funding,Barnsbury Apr 19
04/04/2019,NURSERY CLASS CTGCY,Beaufort Primary School,Agency Placement Expenditure, 262.00 ,Grants-Member Allocs,EYPP spring term 19,Beaufort Apr 19
04/04/2019,PRI ADDIT SEN THRESH,Beaufort Primary School,Agency Placement Expenditure," 1,534.00 ",Grants-Member Allocs,Additional SEN funding,Beaufort Apr 19
04/04/2019,NURSERY CLASS CTGCY,Beaufort Primary School,Agency Placement Expenditure," 17,174.00 ",Grants-Member Allocs,Nursery funding,Beaufort Apr 19
04/04/2019,SEC FAIR ACCESS,Bishop David Brown School,Third Party Payments-Other Agencies," 1,000.00 ",Grants-Member Allocs,IYFAP - High Needs Admission: F.N,BDB Apr 19
04/04/2019,SEC FALLING ROLLS,Bishop David Brown School,Agency Placement Expenditure," 3,388.00 ",Grants-Member Allocs,Falling rolls funding,Bishop David Brown Apr19
04/04/2019,SEC LNG SPT UNITS,Bishop David Brown School,Agency Placement Expenditure," 3,441.00 ",Grants-Member Allocs,Learning support unit,Bishop David Brown Apr19
04/04/2019,SEC GROWING SCHS,Bishop David Brown School,Agency Placement Expenditure," 3,924.00 ",Grants-Member Allocs,Growing schools funding,Bishop David Brown Apr19
04/04/2019,AGENCY NON CWD SC,Blue Sky Fostering Ltd,Foster Care Placements, 714.00 ,Sup Living Children,,
04/04/2019,NW AGENCY PLACE-ED,Brantridge School,Agency Placement Expenditure," 5,729.63 ",SEND Agncy Placement,,
04/04/2019,AGENCY NON CWD SC,Brighter Futures Foster Care Ltd,Foster Care Placements," 3,029.01 ",Sup Living Children,,
04/04/2019,AGENCY NON CWD SC,Brighter Futures Foster Care Ltd,Foster Care Placements," 3,197.34 ",Sup Living Children,,
04/04/2019,AGENCY NON CWD SC,Brighter Futures Foster Care Ltd,Foster Care Placements," 3,197.34 ",Sup Living Children,,
04/04/2019,PRI GROWING SCHS,Broadmere Primary Academy,Agency Placement Expenditure," 7,364.00 ",Schools,Vacant places funding,Broadmere Apr 19
04/04/2019,NURSERY CLASS CTGCY,Broadmere Primary Academy,Agency Placement Expenditure," 10,614.00 ",Schools,Nursery funding,Broadmere Apr 19
04/04/2019,AGENCY NON CWD SC,Bryn Melyn Care Ltd,Residential Placements," 22,475.00 ",Res Care,,
04/04/2019,AGENCY NON CWD SC,By the Bridge Ltd,Foster Care Placements," 1,482.50 ",Grants - Community,,
04/04/2019,NW CARE - CPCRT LAC,Camberley Taxis,Creditors Control Account, 364.80 ,Multi-purpose Veh,ADHOC3160: 01/02/2019 to 28/02/2019,Transport services
04/04/2019,NW CARE - CPCRT LAC,Camberley Taxis,Creditors Control Account, 638.40 ,Multi-purpose Veh,ADHOC3160: 01/01/2019 to 31/01/2019,Transport services
04/04/2019,WOKING CARE LD,Camberley Taxis,Creditors Control Account, 775.20 ,Multi-purpose Veh,CAMPROJ: 01/02/2019 to 28/02/2019,Transport services
04/04/2019,WOKING CARE LD,Camberley Taxis,Creditors Control Account, 897.60 ,Multi-purpose Veh,CAMPROJ: 01/01/2019 to 31/01/2019,Transport services
04/04/2019,AGENCY NON CWD SC,Cambian Asperger Syndrome Services,Residential Placements," 7,066.76 ",SEN Specialist Supp,,
04/04/2019,AGENCY NON CWD SC,Cambian Asperger Syndrome Services,Residential Placements," 16,700.01 ",SEN Specialist Supp,,
04/04/2019,AGENCY NON CWD SC,Cambian Childcare Ltd,Residential Placements," 4,356.45 ",Res Care,,
04/04/2019,AGENCY NON CWD SC,Cambian Childcare Ltd,Residential Placements," 6,420.00 ",Res Care,,
04/04/2019,AGENCY NON CWD SC,Cambian Childcare Ltd,Residential Placements," 9,092.83 ",Res Care,,
04/04/2019,AGENCY NON CWD SC,Cambian Childcare Ltd,Residential Placements," 13,392.75 ",Res Care,,
04/04/2019,AGENCY NON CWD SC,Cambian Childcare Ltd,Residential Placements," 14,454.99 ",Res Care,,
04/04/2019,AGENCY NON CWD SC,Cambian Childcare Ltd,Residential Placements," 16,164.33 ",Res Care,,
04/04/2019,AGENCY NON CWD SC,Cambian Childcare Ltd,Residential Placements," 16,164.33 ",Res Care,,
04/04/2019,AGENCY NON CWD SC,Cambian Childcare Ltd,Residential Placements," 17,714.29 ",Res Care,,
04/04/2019,AGENCY NON CWD SC,Cambian Childcare Ltd,Residential Placements," 21,257.01 ",Res Care,,
04/04/2019,AGENCY NON CWD SC,Cambian Childcare Ltd,Residential Placements," 21,257.01 ",Res Care,,
04/04/2019,AGENCY NON CWD SC,Cambian Childcare Ltd,Residential Placements," 21,921.34 ",Res Care,,
04/04/2019,AGENCY NON CWD SC,Cambian Childcare Ltd,Residential Placements," 22,653.54 ",Res Care,,
04/04/2019,AGENCY CWD SOCIAL CA,Cambian Childcare Ltd,Residential Placements," 27,009.99 ",Res Care,,
04/04/2019,AGENCY NON CWD SC,Capstone Foster Care (South West) L,Foster Care Placements," 3,534.00 ",Fostering IFA,,
04/04/2019,SPECIAL SCHS OTHER,Carwarden House Community School,Agency Placement Expenditure," 4,482.00 ",Schools,Outreach funding,Carwarden House Apr 19
04/04/2019,SPECIAL SCHOOLS,Carwarden House Community School,Agency Placement Expenditure," 6,667.00 ",Schools,Additional place funding,Carwarden House Apr 19
04/04/2019,SPECIAL SCHOOLS,Carwarden House Community School,Agency Placement Expenditure," 45,091.00 ",Schools,SEN top up funding,Carwarden House Apr 19
04/04/2019,TRAINING LEGAL SERVS,Central Law Training,Training Expenses - External General," 1,800.00 ",Staff Training,,
04/04/2019,AGENCY NON CWD SC,Channels & Choices Ltd,Residential Placements," 26,967.60 ",Res Care,,
04/04/2019,SPECIAL SCHOOLS,Chart Wood School,Agency Placement Expenditure," 123,909.00 ",Schools,SEN top up funding,Chart Wood Apr 19
04/04/2019,NW IPSB - PLAYGROUPS,Chertsey Nursery School,Agency Placement Nursery Exp," 1,568.75 ",Schools,,
04/04/2019,SEC FAIR ACCESS,Christs College Guildford,Third Party Payments-Other Agencies," 1,000.00 ",Schools,Redacted Personal Data,Christs College Apr19
04/04/2019,SEC GROWING SCHS,Christs College Guildford,Agency Placement Expenditure," 2,676.00 ",Schools,Growing schools funding,Christs College Apr19
04/04/2019,HQ PYMNT OF INS CLMS,Claims Management - OTV BACS,Ins Claims Other Insured Paid, 334.59 ,,Redacted Personal Data,Redacted Personal Data
04/04/2019,PRI GROWING SCHS,Cleves Academy Trust,Agency Placement Expenditure," 7,835.00 ",Schools,Growing schools funding,Cleves Apr 19
04/04/2019,SEC ADDIT SEN THRESH,Cobham Free School,Agency Placement Expenditure," 4,187.00 ",Grants-Member Allocs,Additional SEN funding,Cobham Free Apr 19
04/04/2019,PRI ADDIT SEN THRESH,Connaught Junior School,Agency Placement Expenditure, 587.00 ,Schools,Additional SEN funding,Connaught Apr 19
04/04/2019,PRI GROWING SCHS,Connaught Junior School,Agency Placement Expenditure," 4,997.00 ",Schools,Vacant places funding,Connaught Apr 19
04/04/2019,AGENCY NON CWD SC,Cornerways Fostering Services Ltd,Foster Care Placements," 3,989.08 ",Fostering IFA,,
04/04/2019,AGENCY NON CWD SC,Cornerways Fostering Services Ltd,Foster Care Placements," 4,197.71 ",Fostering IFA,,
04/04/2019,TRANSPT M/STRM-SEC,Courtesy Cars Redhill,Creditors Control Account, 262.96 ,Multi-purpose Veh,S283G/18: 01/02/2019 to 28/02/2019,Transport services
04/04/2019,NE TRANSPORT,Courtesy Cars Redhill,Creditors Control Account, 441.60 ,Multi-purpose Veh,Q07B/14: 01/02/2019 to 28/02/2019,Transport services
04/04/2019,SW TRANSPORT,Courtesy Cars Redhill,Creditors Control Account, 480.00 ,Multi-purpose Veh,Q33K/18: 01/02/2019 to 28/02/2019,Transport services
04/04/2019,SE TRANSPORT,Courtesy Cars Redhill,Creditors Control Account, 576.00 ,Multi-purpose Veh,S64AC/17: 01/02/2019 to 28/02/2019,Transport services
04/04/2019,SE TRANSPORT,Courtesy Cars Redhill,Creditors Control Account, 653.52 ,Multi-purpose Veh,S06G/17: 01/02/2019 to 28/02/2019,Transport services
04/04/2019,SE TRANSPORT,Courtesy Cars Redhill,Creditors Control Account, 702.00 ,Multi-purpose Veh,Q145C/15: 01/02/2019 to 28/02/2019,Transport services
04/04/2019,NW TRANSPORT,Courtesy Cars Redhill,Creditors Control Account, 714.35 ,Multi-purpose Veh,S31M/17: 01/02/2019 to 28/02/2019,Transport services
04/04/2019,SE TRANSPORT,Courtesy Cars Redhill,Creditors Control Account, 718.20 ,Multi-purpose Veh,S16M/18: 01/02/2019 to 28/02/2019,Transport services
04/04/2019,SE TRANSPORT,Courtesy Cars Redhill,Creditors Control Account, 756.00 ,Multi-purpose Veh,Q135C: 01/02/2019 to 28/02/2019,Transport services
04/04/2019,SE TRANSPORT,Courtesy Cars Redhill,Creditors Control Account, 804.72 ,Multi-purpose Veh,Q33A/18: 01/02/2019 to 28/02/2019,Transport services
04/04/2019,SE TRANSPORT,Courtesy Cars Redhill,Creditors Control Account, 964.32 ,Multi-purpose Veh,S64E/18: 01/02/2019 to 28/02/2019,Transport services
04/04/2019,NE TRANSPORT,Courtesy Cars Redhill,Creditors Control Account," 1,142.40 ",Multi-purpose Veh,Q07B/14: 01/02/2019 to 28/02/2019,Transport services
04/04/2019,PLD TRANSITION,Courtesy Cars Redhill,Creditors Control Account," 1,165.16 ",Multi-purpose Veh,E0121/A: 01/02/2019 to 28/02/2019,Transport services
04/04/2019,NE TRANSPORT,Courtesy Cars Redhill,Creditors Control Account," 1,358.05 ",Multi-purpose Veh,S31M/17: 01/02/2019 to 28/02/2019,Transport services
04/04/2019,SE TRANSPORT,Courtesy Cars Redhill,Creditors Control Account," 1,436.84 ",Multi-purpose Veh,S283G/18: 01/02/2019 to 28/02/2019,Transport services
04/04/2019,SE TRANSPORT,Courtesy Cars Redhill,Creditors Control Account," 1,530.04 ",Multi-purpose Veh,E0121/A: 01/02/2019 to 28/02/2019,Transport services
04/04/2019,SE TRANSPORT,Courtesy Cars Redhill,Creditors Control Account," 1,807.68 ",Multi-purpose Veh,Q94G/18: 01/02/2019 to 28/02/2019,Transport services
04/04/2019,SE TRANSPORT,Courtesy Cars Redhill,Creditors Control Account," 2,182.32 ",Multi-purpose Veh,S31Q/16: 01/02/2019 to 28/02/2019,Transport services
04/04/2019,SE TRANSPORT,Courtesy Cars Redhill,Creditors Control Account," 2,277.60 ",Multi-purpose Veh,Q145C/15: 01/02/2019 to 28/02/2019,Transport services
04/04/2019,SE TRANSPORT,Courtesy Cars Redhill,Creditors Control Account," 2,284.20 ",Multi-purpose Veh,S16M/18: 01/02/2019 to 28/02/2019,Transport services
04/04/2019,SE TRANSPORT,Courtesy Cars Redhill,Creditors Control Account," 2,536.80 ",Multi-purpose Veh,S31P/16: 01/02/2019 to 28/02/2019,Transport services
04/04/2019,SE TRANSPORT,Courtesy Cars Redhill,Creditors Control Account," 2,559.12 ",Multi-purpose Veh,S64AE/18: 01/02/2019 to 28/02/2019,Transport services
04/04/2019,SE TRANSPORT,Courtesy Cars Redhill,Creditors Control Account," 2,713.20 ",Multi-purpose Veh,S06G/17: 01/02/2019 to 28/02/2019,Transport services
04/04/2019,SE TRANSPORT,Courtesy Cars Redhill,Creditors Control Account," 2,854.32 ",Multi-purpose Veh,Q33A/18: 01/02/2019 to 28/02/2019,Transport services
04/04/2019,SE TRANSPORT,Courtesy Cars Redhill,Creditors Control Account," 2,881.20 ",Multi-purpose Veh,Q135C: 01/02/2019 to 28/02/2019,Transport services
04/04/2019,SE TRANSPORT,Courtesy Cars Redhill,Creditors Control Account," 2,950.20 ",Multi-purpose Veh,Q120F/18: 01/02/2019 to 28/02/2019,Transport services
04/04/2019,SE TRANSPORT,Courtesy Cars Redhill,Creditors Control Account," 4,196.40 ",Multi-purpose Veh,Q16AD/19: 01/02/2019 to 28/02/2019,Transport services
04/04/2019,SE TRANSPORT,Courtesy Cars Surrey - Epsom,Creditors Control Account, 359.40 ,Taxi Hire (SEN Only),S47M/1/17: 01/02/2019 to 28/02/2019,Transport services
04/04/2019,TRANSPT M/STRM-SEC,Courtesy Cars Surrey - Epsom,Creditors Control Account, 537.77 ,Taxi Hire (SEN Only),S38F/12: 01/02/2019 to 28/02/2019,Transport services
04/04/2019,SE TRANSPORT,Courtesy Cars Surrey - Epsom,Creditors Control Account, 539.35 ,Taxi Hire (SEN Only),S16F/16: 01/02/2019 to 28/02/2019,Transport services
04/04/2019,SE TRANSPORT,Courtesy Cars Surrey - Epsom,Creditors Control Account, 613.20 ,Taxi Hire (SEN Only),S03F/17: 01/02/2019 to 28/02/2019,Transport services
04/04/2019,SE TRANSPORT,Courtesy Cars Surrey - Epsom,Creditors Control Account, 619.20 ,Taxi Hire (SEN Only),Q06D/19: 01/02/2019 to 28/02/2019,Transport services
04/04/2019,SE TRANSPORT,Courtesy Cars Surrey - Epsom,Creditors Control Account, 630.00 ,Taxi Hire (SEN Only),S03E/17: 01/02/2019 to 28/02/2019,Transport services
04/04/2019,SE TRANSPORT,Courtesy Cars Surrey - Epsom,Creditors Control Account, 638.40 ,Taxi Hire (SEN Only),Q31D/15: 01/02/2019 to 28/02/2019,Transport services
04/04/2019,SE TRANSPORT,Courtesy Cars Surrey - Epsom,Creditors Control Account, 670.32 ,Taxi Hire (SEN Only),S03H/17: 01/02/2019 to 28/02/2019,Transport services
04/04/2019,SE TRANSPORT,Courtesy Cars Surrey - Epsom,Creditors Control Account, 705.60 ,Taxi Hire (SEN Only),S03K/17: 01/02/2019 to 28/02/2019,Transport services
04/04/2019,SE TRANSPORT,Courtesy Cars Surrey - Epsom,Creditors Control Account, 714.00 ,Taxi Hire (SEN Only),S03J/17: 01/02/2019 to 28/02/2019,Transport services
04/04/2019,NE TRANSPORT,Courtesy Cars Surrey - Epsom,Creditors Control Account, 718.80 ,Taxi Hire (SEN Only),S47M/1/17: 01/02/2019 to 28/02/2019,Transport services
04/04/2019,SE TRANSPORT,Courtesy Cars Surrey - Epsom,Creditors Control Account, 720.00 ,Taxi Hire (SEN Only),Q06F/15: 01/02/2019 to 28/02/2019,Transport services
04/04/2019,NE TRANSPORT,Courtesy Cars Surrey - Epsom,Creditors Control Account, 731.64 ,Taxi Hire (SEN Only),S70A/17: 01/02/2019 to 28/02/2019,Transport services
04/04/2019,NE TRANSPORT,Courtesy Cars Surrey - Epsom,Creditors Control Account, 816.00 ,Taxi Hire (SEN Only),E0121D/17: 01/02/2019 to 28/02/2019,Transport services
04/04/2019,SE TRANSPORT,Courtesy Cars Surrey - Epsom,Creditors Control Account, 821.52 ,Taxi Hire (SEN Only),S03P/17: 01/02/2019 to 28/02/2019,Transport services
04/04/2019,NE TRANSPORT,Courtesy Cars Surrey - Epsom,Creditors Control Account, 882.00 ,Taxi Hire (SEN Only),S38F/12: 01/02/2019 to 28/02/2019,Transport services
04/04/2019,SE TRANSPORT,Courtesy Cars Surrey - Epsom,Creditors Control Account, 891.00 ,Taxi Hire (SEN Only),S16H/14: 01/02/2019 to 28/02/2019,Transport services
04/04/2019,NW TRANSPORT,Courtesy Cars Surrey - Epsom,Creditors Control Account, 892.80 ,Taxi Hire (SEN Only),S18/3/17: 01/02/2019 to 28/02/2019,Transport services
04/04/2019,SE TRANSPORT,Courtesy Cars Surrey - Epsom,Creditors Control Account, 909.46 ,Taxi Hire (SEN Only),S47M/1/17: 01/02/2019 to 28/02/2019,Transport services
04/04/2019,PLD TRANSITION,Courtesy Cars Surrey - Epsom,Creditors Control Account," 1,006.32 ",Taxi Hire (SEN Only),E108/G/18: 01/02/2019 to 28/02/2019,Transport services
04/04/2019,NE TRANSPORT,Courtesy Cars Surrey - Epsom,Creditors Control Account," 1,039.25 ",Taxi Hire (SEN Only),S16F/16: 01/02/2019 to 28/02/2019,Transport services
04/04/2019,TRANSPT M/STRM-PRIM,Courtesy Cars Surrey - Epsom,Creditors Control Account," 1,186.28 ",Taxi Hire (SEN Only),E0113J: 01/02/2019 to 28/02/2019,Transport services
04/04/2019,SW TRANSPORT,Courtesy Cars Surrey - Epsom,Creditors Control Account," 1,242.80 ",Taxi Hire (SEN Only),S18/3/17: 01/02/2019 to 28/02/2019,Transport services
04/04/2019,NE TRANSPORT,Courtesy Cars Surrey - Epsom,Creditors Control Account," 1,275.10 ",Taxi Hire (SEN Only),S70A/17: 01/02/2019 to 28/02/2019,Transport services
04/04/2019,SW TRANSPORT,Courtesy Cars Surrey - Epsom,Creditors Control Account," 1,648.80 ",Taxi Hire (SEN Only),E108/G/18: 01/02/2019 to 28/02/2019,Transport services
04/04/2019,NW TRANSPORT,Courtesy Cars Surrey - Epsom,Creditors Control Account," 1,718.54 ",Taxi Hire (SEN Only),S70A/17: 01/02/2019 to 28/02/2019,Transport services
04/04/2019,NE TRANSPORT,Courtesy Cars Surrey - Epsom,Creditors Control Account," 1,756.72 ",Taxi Hire (SEN Only),E0113J: 01/02/2019 to 28/02/2019,Transport services
04/04/2019,NW TRANSPORT,Courtesy Cars Surrey - Epsom,Creditors Control Account," 1,815.40 ",Taxi Hire (SEN Only),S18/3/17: 01/02/2019 to 28/02/2019,Transport services
04/04/2019,NE TRANSPORT,Courtesy Cars Surrey - Epsom,Creditors Control Account," 2,050.80 ",Taxi Hire (SEN Only),S31E/1/16: 01/02/2019 to 28/02/2019,Transport services
04/04/2019,SE TRANSPORT,Courtesy Cars Surrey - Epsom,Creditors Control Account," 2,301.60 ",Taxi Hire (SEN Only),S03K/17: 01/02/2019 to 28/02/2019,Transport services
04/04/2019,SE TRANSPORT,Courtesy Cars Surrey - Epsom,Creditors Control Account," 2,385.60 ",Taxi Hire (SEN Only),S03F/17: 01/02/2019 to 28/02/2019,Transport services
04/04/2019,PLD TRANSITION,Courtesy Cars Surrey - Epsom,Creditors Control Account," 2,499.96 ",Taxi Hire (SEN Only),E108/G/18: 01/02/2019 to 28/02/2019,Transport services
04/04/2019,SE TRANSPORT,Courtesy Cars Surrey - Epsom,Creditors Control Account," 2,518.32 ",Taxi Hire (SEN Only),S03H/17: 01/02/2019 to 28/02/2019,Transport services
04/04/2019,SE TRANSPORT,Courtesy Cars Surrey - Epsom,Creditors Control Account," 2,520.00 ",Taxi Hire (SEN Only),S03E/17: 01/02/2019 to 28/02/2019,Transport services
04/04/2019,NE TRANSPORT,Courtesy Cars Surrey - Epsom,Creditors Control Account," 2,561.83 ",Taxi Hire (SEN Only),S38F/12: 01/02/2019 to 28/02/2019,Transport services
04/04/2019,SE TRANSPORT,Courtesy Cars Surrey - Epsom,Creditors Control Account," 2,619.12 ",Taxi Hire (SEN Only),Q31D/15: 01/02/2019 to 28/02/2019,Transport services
04/04/2019,SE TRANSPORT,Courtesy Cars Surrey - Epsom,Creditors Control Account," 2,854.32 ",Taxi Hire (SEN Only),S03J/17: 01/02/2019 to 28/02/2019,Transport services
04/04/2019,SE TRANSPORT,Courtesy Cars Surrey - Epsom,Creditors Control Account," 3,049.20 ",Taxi Hire (SEN Only),S03P/17: 01/02/2019 to 28/02/2019,Transport services
04/04/2019,SE TRANSPORT,Courtesy Cars Surrey - Epsom,Creditors Control Account," 3,054.96 ",Taxi Hire (SEN Only),Q06F/15: 01/02/2019 to 28/02/2019,Transport services
04/04/2019,SE TRANSPORT,Courtesy Cars Surrey - Epsom,Creditors Control Account," 3,213.00 ",Taxi Hire (SEN Only),S16H/14: 01/02/2019 to 28/02/2019,Transport services
04/04/2019,NE TRANSPORT,Courtesy Cars Surrey - Epsom,Creditors Control Account," 3,905.54 ",Taxi Hire (SEN Only),S47M/1/17: 01/02/2019 to 28/02/2019,Transport services
04/04/2019,NE AGENCY PLACE-ED,Cressey Oasis Education Ltd,Agency Placement Expenditure," 18,663.00 ",SEND Agncy Placement,,
04/04/2019,NE AGENCY PLACE-ED,Cressey Oasis Education Ltd,Agency Placement Expenditure," 21,446.67 ",SEND Agncy Placement,,
04/04/2019,PR HN TOP UP UNALLOC,Cuddington Community Primary School,Agency Placement Expenditure," 6,158.00 ",Schools,SEN centre top up funding,Cuddington Apr 19
04/04/2019,NURSERY CLASS CTGCY,Cuddington Croft Primary School,Agency Placement Expenditure," 8,880.00 ",Schools,Nursery funding,Cuddington Croft Apr19
04/04/2019,PRI GROWING SCHS,Danetree Junior School,Agency Placement Expenditure," 5,978.00 ",Schools,Vacant places funding,Danetree Apr 19
04/04/2019,NURSERY CLASS CTGCY,Danetree Junior School,Agency Placement Expenditure," 17,737.00 ",Schools,Nursery funding,Danetree Apr 19
04/04/2019,SEC HN TOPUP UNALLOC,De Stafford School,Agency Placement Expenditure," 1,136.00 ",Schools,SEN centre top up funding,de Stafford Apr 19
04/04/2019,SEC GROWING SCHS,De Stafford School,Agency Placement Expenditure," 10,084.00 ",Schools,Growing schools funding,de Stafford Apr 19
04/04/2019,AGENCY NON CWD SC,Diagrama Foundation,Foster Care Placements," 3,734.22 ",LAC Agency Fees,,
04/04/2019,PR HN TOP UP UNALLOC,Dovers Green School,Agency Placement Expenditure," 7,318.00 ",Schools,SEN centre top up funding,Dovers Green Apr 19
04/04/2019,HQ PYMNT OF INS CLMS,DWF LLP,Ins Claims Other Insured Paid," 15,000.00 ",General Support,Redacted Personal Data,Redacted Personal Data
04/04/2019,SEC FAIR ACCESS,Epsom & Ewell High School,Third Party Payments-Other Agencies," 1,000.00 ",Staff Training,Redacted Personal Data,Epsom & Ewell High Apr19
04/04/2019,SEC LNG SPT UNITS,Epsom & Ewell High School,Agency Placement Expenditure," 3,341.00 ",Staff Training,Learning support unit,Epsom & Ewell High Apr19
04/04/2019,SEC HN TOPUP UNALLOC,Epsom & Ewell High School,Agency Placement Expenditure," 7,754.00 ",Staff Training,SEN centre top up funding,Epsom & Ewell High Apr19
04/04/2019,SEC GROWING SCHS,Esher COE High School,Agency Placement Expenditure," 11,138.00 ",Schools,Growing schools funding,Redacted Personal Data
04/04/2019,PRI GROWING SCHS,Esher COE High School,Agency Placement Expenditure," 12,312.00 ",Schools,Growing schools funding,Redacted Personal Data
04/04/2019,AGENCY NON CWD SC,Family Fostering Ltd,Foster Care Placements," 5,181.34 ",Fostering IFA,,
04/04/2019,AGENCY CWD SOCIAL CA,Family Fostering Ltd,Foster Care Placements," 6,288.35 ",Fostering IFA,,
04/04/2019,POST 16 PLACEMENT NE,Farleigh FE College,New GR/IR Account," 20,941.86 ",School Support Serv,,
04/04/2019,SEC GROWING SCHS,Farnham Heath End School,Agency Placement Expenditure," 4,712.00 ",Schools,Growing schools funding,Farnham Heath End Apr19
04/04/2019,AGENCY NON CWD SC,Five Rivers Child Care Ltd,Foster Care Placements," 3,617.08 ",Fostering Placement,,
04/04/2019,AGENCY NON CWD SC,Five Rivers Child Care Ltd,Foster Care Placements," 3,617.08 ",Fostering Placement,,
04/04/2019,AGENCY NON CWD SC,Five Rivers Child Care Ltd,Foster Care Placements," 3,764.33 ",Fostering Placement,,
04/04/2019,AGENCY NON CWD SC,Five Rivers Child Care Ltd,Foster Care Placements," 5,480.49 ",Fostering Placement,,
04/04/2019,AGENCY NON CWD SC,Foster Care Associates Ltd,Foster Care Placements," 3,689.00 ",Sup Living Children,,
04/04/2019,AGENCY NON CWD SC,Foster Care Associates Ltd,Foster Care Placements," 3,861.67 ",Sup Living Children,,
04/04/2019,AGENCY NON CWD SC,Foster Care Associates Ltd,Foster Care Placements," 3,861.67 ",Sup Living Children,,
04/04/2019,AGENCY NON CWD SC,Foster Care Associates Ltd,Foster Care Placements," 3,861.67 ",Sup Living Children,,
04/04/2019,AGENCY NON CWD SC,Foster Care Associates Ltd,Foster Care Placements," 4,380.30 ",Sup Living Children,,
04/04/2019,AGENCY NON CWD SC,Foster Care Associates Ltd,Foster Care Placements," 4,380.30 ",Sup Living Children,,
04/04/2019,AGENCY CWD SOCIAL CA,Foster Care Associates Ltd,Foster Care Placements," 6,151.33 ",Sup Living Children,,
04/04/2019,AGENCY NON CWD SC,Fostercare UK Ltd,Foster Care Placements," 3,715.66 ",Fostering IFA,,
04/04/2019,AGENCY NON CWD SC,Fostercare UK Ltd,Foster Care Placements," 5,646.34 ",Fostering IFA,,
04/04/2019,AGENCY NON CWD SC,Fusion Fostering Ltd,Foster Care Placements, 797.00 ,Fostering IFA,,
04/04/2019,AGENCY NON CWD SC,Fusion Fostering Ltd,Foster Care Placements," 4,007.86 ",Fostering IFA,,
04/04/2019,AGENCY NON CWD SC,Fusion Fostering Ltd,Foster Care Placements," 4,118.57 ",Fostering IFA,,
04/04/2019,NE TEACHERS,Gardiner Associates Training & Rese,Training Expenses - External General, 250.00 ,Fire Serv Training,,
04/04/2019,,GCB Construction Ltd,Deferred Charges," 24,000.00 ",Edu Establishments,,
04/04/2019,SEC HN TOPUP UNALLOC,George Abbot School -Academy,Agency Placement Expenditure," 4,101.00 ",Schools,SEN centre top up funding,George Abbot Apr 19
04/04/2019,,Geotechnical Engineering Ltd,CE02 Furniture and Equipment," 7,840.80 ",Waste Mng Equipmt,,
04/04/2019,SEC ADDIT SEN THRESH,Glyn School,Agency Placement Expenditure, 500.00 ,Info Advice Guidance,Additional SEN funding,Glyn School Apr 19
04/04/2019,PRI ADDIT SEN THRESH,Goldsworth Primary School,Agency Placement Expenditure," 2,128.00 ",Schools,Additional SEN funding,Goldsworth Apr 19
04/04/2019,PRI GROWING SCHS,Goldsworth Primary School,Agency Placement Expenditure," 7,656.00 ",Schools,Growing schools funding,Goldsworth Apr 19
04/04/2019,SEC ADDIT SEN THRESH,Gordons School Academy Trust,Agency Placement Expenditure," 3,579.00 ",Schools,Additional SEN funding,Gordons Apr 19
04/04/2019,SEC GROWING SCHS,Guildford County School,Agency Placement Expenditure," 7,915.00 ",Schools,Growing schools funding,Guildford County Apr19
04/04/2019,NURSERY CLASS CTGCY,Guildford Grove Primary School,Agency Placement Expenditure," 10,774.00 ",Schools,Nursery funding,Guildford Grove Apr 19
04/04/2019,PR HN TOP UP UNALLOC,Guildford Grove Primary School,Agency Placement Expenditure," 17,350.00 ",Schools,SEN centre top up funding,Guildford Grove Apr 19
04/04/2019,AGENCY NON CWD SC,Halliwell Homes Ltd,Residential Placements," 21,235.00 ",Res Care,,
04/04/2019,NURSERY CLASS CTGCY,Highfield South Farnham Primary Sch,Agency Placement Expenditure," 12,923.00 ",Schools,Nursery funding,Highfield Apr 19
04/04/2019,AGENCY NON CWD SC,Hillcrest Care Services Ltd,Residential Placements," 19,609.61 ",Residential - MH,,
04/04/2019,AGENCY NON CWD SC,Hillcrest Care Services Ltd,Residential Placements," 19,619.28 ",Residential - MH,,
04/04/2019,AGENCY NON CWD SC,Hillcrest Care Services Ltd,Residential Placements," 19,619.28 ",Residential - MH,,
04/04/2019,NURSERY CLASS CTGCY,Hillcroft Primary School,Agency Placement Expenditure," 10,606.00 ",Schools,Nursery funding,Hillcroft Apr 19
04/04/2019,SEC GROWING SCHS,Hinchley Wood School,Agency Placement Expenditure," 3,739.00 ",Grants-Member Allocs,Growing schools funding,Hinchley Wood Apr 19
04/04/2019,SEC HN TOPUP UNALLOC,Hinchley Wood School,Agency Placement Expenditure," 22,735.00 ",Grants-Member Allocs,SEN centre top up funding,Hinchley Wood Apr 19
04/04/2019,AGENCY NON CWD SC,Holmdene Housing Services,Independent Living Placements," 4,238.57 ",SEN Specialist Supp,,
04/04/2019,ASYLUM SKRS 16-17,Holmdene Housing Services,Independent Living Placements," 4,995.22 ",SEN Specialist Supp,,
04/04/2019,PRI ADDIT SEN THRESH,Holmesdale Community Infant School,Agency Placement Expenditure, 432.00 ,Schools,Additional SEN funding,Holmesdale Apr 19
04/04/2019,NURSERY CLASS CTGCY,Holmesdale Community Infant School,Agency Placement Expenditure," 11,368.00 ",Schools,Nursery funding,Holmesdale Apr 19
04/04/2019,AGENCY NON CWD SC,Homes 2 Inspire,Residential Placements," 11,060.00 ",Res Care,,
04/04/2019,CORP INCOME AND EXP,Insight4Children Ltd,Write Offs, 880.00 ,Inter-Agency fee,,
04/04/2019,WEST CWD NONLAC CARE,Interserve Healthcare Ltd,Home Care - Priv," 1,566.00 ",Grants - Community,,
04/04/2019,WEST CWD NONLAC CARE,Interserve Healthcare Ltd,Home Care - Priv," 1,566.00 ",Grants - Community,,
04/04/2019,CSF OPEN PROGRAMME,In-Trac Training & Consultancy Ltd,Training Expenses - External General, 660.00 ,Staff Training,,
04/04/2019,ELMBRIDGE LOC,Jockey Club Racecourses Ltd,Local Authorities, 528.00 ,Venue Hire,,Redacted Personal Data
04/04/2019,LOCAL ASSIST SCHEME,John Gillman & Sons Electrical Ltd,Equipment, 340.80 ,Comm Appliances,,
04/04/2019,LOCAL ASSIST SCHEME,John Gillman & Sons Electrical Ltd,Equipment, 393.60 ,Comm Appliances,,
04/04/2019,SEC HN TOPUP UNALLOC,Jubilee High Academy,Agency Placement Expenditure," 1,646.00 ",Schools,SEN centre top up funding,Jubilee High Apr 19
04/04/2019,LD COST OF CARE LD,Just Homes,Residential, 283.36 ,Residential - MH,Redacted Personal Data,Redacted Personal Data
04/04/2019,LD COST OF CARE LD,Just Homes,Residential, 284.07 ,Residential - MH,Redacted Personal Data,Redacted Personal Data
04/04/2019,LD COST OF CARE LD,Just Homes,Residential, 290.94 ,Residential - MH,Redacted Personal Data,Redacted Personal Data
04/04/2019,LD COST OF CARE LD,Just Homes,Residential, 417.49 ,Residential - MH,Redacted Personal Data,Redacted Personal Data
04/04/2019,LD COST OF CARE LD,Just Homes,Residential, 520.66 ,Residential - MH,Redacted Personal Data,Redacted Personal Data
04/04/2019,LD COST OF CARE LD,Just Homes,Residential, 895.95 ,Residential - MH,Redacted Personal Data,Redacted Personal Data
04/04/2019,LD COST OF CARE LD,Just Homes,Residential," 1,179.36 ",Residential - MH,Redacted Personal Data,Redacted Personal Data
04/04/2019,LD COST OF CARE LD,Just Homes,Residential," 1,318.05 ",Residential - MH,Redacted Personal Data,Redacted Personal Data
04/04/2019,LD COST OF CARE LD,Just Homes,Residential," 1,320.23 ",Residential - MH,Redacted Personal Data,Redacted Personal Data
04/04/2019,LD COST OF CARE LD,Just Homes,Residential," 1,649.65 ",Residential - MH,Redacted Personal Data,Redacted Personal Data
04/04/2019,LD COST OF CARE LD,Just Homes,Residential," 1,918.27 ",Residential - MH,Redacted Personal Data,Redacted Personal Data
04/04/2019,LD COST OF CARE LD,Just Homes,Residential," 2,115.20 ",Residential - MH,Redacted Personal Data,Redacted Personal Data
04/04/2019,LD COST OF CARE LD,Just Homes,Residential Dementia," 2,491.76 ",Residential - MH,Redacted Personal Data,LD CoC 01/01/19-31/03/19
04/04/2019,LD COST OF CARE LD,Just Homes,Residential," 2,739.78 ",Residential - MH,Redacted Personal Data,Redacted Personal Data
04/04/2019,LD COST OF CARE LD,Just Homes,Residential," 5,174.43 ",Residential - MH,Redacted Personal Data,Redacted Personal Data
04/04/2019,LD COST OF CARE LD,Just Homes,Residential," 5,502.97 ",Residential - MH,Redacted Personal Data,Redacted Personal Data
04/04/2019,AGENCY NON CWD SC,Juvenis Care Services Ltd,Residential Placements," 19,000.00 ",Res Care,,
04/04/2019,PASS TRPT INITS,Kent County Council,Contractor," 47,878.80 ",School Support Serv,,
04/04/2019,NURSERY CLASS CTGCY,Kenyngton Manor Primary School,Agency Placement Expenditure," 1,574.00 ",Schools,EYPP spring term 19,Kenyngton Manor Apr 19
04/04/2019,NURSERY CLASS CTGCY,Kenyngton Manor Primary School,Agency Placement Expenditure," 15,662.00 ",Schools,Nursery funding,Kenyngton Manor Apr 19
04/04/2019,NEW HAW LIB,Kier Facilities Services Ltd,Term Contract Inspections, 273.60 ,General Build Maint,Quantity : 6,186796 - PROJECT
04/04/2019,SURREY HISTORY CTR,Kier Facilities Services Ltd,Term Contract Inspections, 286.61 ,General Build Maint,Quantity : 1,187352 - PROJECT
04/04/2019,SURREY HISTORY CTR,Kier Facilities Services Ltd,Term Contract Inspections, 286.61 ,General Build Maint,Quantity : 1,187284 - PROJECT
04/04/2019,SW SURREY FANILY CTR,Kier Facilities Services Ltd,Corporate Responsive Maintenance, 305.18 ,General Build Maint,RESP 24hr. Site have a leak coming from the window,231721 - REACTIVE
04/04/2019,BYFLEET PRI SCH,Kier Facilities Services Ltd,Buyback Inspections, 307.06 ,General Build Maint,Quantity : 2,285291 - PROJECT
04/04/2019,WITLEY CEI,Kier Facilities Services Ltd,Buyback Inspections, 307.06 ,General Build Maint,Quantity : 2,345495 - PROJECT
04/04/2019,KINGS INTERNAT SCH,Kier Facilities Services Ltd,Buyback Inspections, 307.06 ,General Build Maint,Quantity : 1,325874 - PROJECT
04/04/2019,SYTHWOOD PRY SCH,Kier Facilities Services Ltd,Buyback Inspections, 307.06 ,General Build Maint,Quantity : 4,363515 - PROJECT
04/04/2019,FRANCE HILL HOUSE,Kier Facilities Services Ltd,Term Contract Inspections, 307.06 ,General Build Maint,Quantity : 1,282317 - PROJECT
04/04/2019,BROOMFIELD-LIBERTAS,Kier Facilities Services Ltd,Corporate Responsive Maintenance, 408.14 ,General Build Maint,RESP: Please attend to repair / replace the radiat,348563 - REACTIVE
04/04/2019,WINSTON CHURCHILL SC,Kier Facilities Services Ltd,Buyback Inspections, 409.39 ,General Build Maint,Quantity : 1,286049 - PROJECT
04/04/2019,GUILDFORD FIRE STN,Kier Facilities Services Ltd,Corporate Responsive Maintenance, 415.00 ,General Build Maint,RESP: HEATING CONTROLS Please attend to site and r,268324 - REACTIVE
04/04/2019,GUILDFORD LIB,Kier Facilities Services Ltd,Corporate Responsive Maintenance, 443.90 ,General Build Maint,RESP: SEVERE CRACK IN PLASTERING Please attend to,273485 - REACTIVE
04/04/2019,NEW HAW LIB,Kier Facilities Services Ltd,Term Contract Inspections, 447.00 ,General Build Maint,Quantity : 9,186798 - PROJECT
04/04/2019,WEST BYFLEET JUN,Kier Facilities Services Ltd,Buyback Inspections, 460.58 ,General Build Maint,Quantity : 3,334398 - PROJECT
04/04/2019,PINEHURST,Kier Facilities Services Ltd,Term Contract Inspections, 512.76 ,General Build Maint,Quantity : 3,283077 - PROJECT
04/04/2019,MALLOW CS DMHS 25-30,Kier Facilities Services Ltd,Corporate Responsive Maintenance, 575.15 ,General Build Maint,RESP - Please attend to make repair work only to a,348560 - REACTIVE
04/04/2019,MAYFORD CENTRE-BUS,Kier Facilities Services Ltd,Term Contract Inspections, 614.09 ,General Build Maint,Quantity : 10,282840 - PROJECT
04/04/2019,KNAPHILL SCH,Kier Facilities Services Ltd,Buyback Inspections, 614.11 ,General Build Maint,Quantity : 4,285316 - PROJECT
04/04/2019,PIRBRIGHT PRY SCH,Kier Facilities Services Ltd,Buyback Inspections, 614.11 ,General Build Maint,Quantity : 4,285341 - PROJECT
04/04/2019,ASH GRANGE PRY SCH,Kier Facilities Services Ltd,Buyback Works Responsive, 617.30 ,General Build Maint,RESP - 24 hour - please attend from 7.30am tomorro,272882 - REACTIVE
04/04/2019,WITLEY CEI,Kier Facilities Services Ltd,Buyback Works Responsive, 738.71 ,General Build Maint,RESP: BOILER FIRING UP ISSUE -Attend Monday 21stSi,347717 - REACTIVE
04/04/2019,WEST BYFLEET CI SCH,Kier Facilities Services Ltd,Buyback Inspections, 767.64 ,General Build Maint,Quantity : 2,285373 - PROJECT
04/04/2019,SURREY HISTORY CTR,Kier Facilities Services Ltd,Term Contract Inspections, 792.00 ,General Build Maint,Quantity : 1,187295 - PROJECT
04/04/2019,GOSDEN HOUSE SCH,Kier Facilities Services Ltd,Buyback Inspections, 921.17 ,General Build Maint,Quantity : 6,330906 - PROJECT
04/04/2019,COTT-BAS CANAL CTRE,Kier Facilities Services Ltd,Corporate Responsive Maintenance," 1,033.67 ",General Build Maint,Redacted Personal Data,349153 - REACTIVE
04/04/2019,WINSTON CHURCHILL SC,Kier Facilities Services Ltd,Buyback Inspections," 1,602.94 ",General Build Maint,Quantity : 1,285728 - PROJECT
04/04/2019,QUADRANT CT WOKING,Kier Facilities Services Ltd,Term Contract Inspections," 2,014.16 ",General Build Maint,Quantity : 5,282609 - PROJECT
04/04/2019,SURREY HISTORY CTR,Kier Facilities Services Ltd,Term Contract Inspections," 2,280.25 ",General Build Maint,Quantity : 2,187289 - PROJECT
04/04/2019,SURREY HISTORY CTR,Kier Facilities Services Ltd,Term Contract Inspections," 2,280.25 ",General Build Maint,Quantity : 2,187288 - PROJECT
04/04/2019,,Kier Facilities Services Ltd,," 3,000.00 ",General Build Maint,SRC001:6500  *WORKS FROM SERVICE*  Following recen,281642 - REACTIVE
04/04/2019,,Kier Facilities Services Ltd,," 6,408.00 ",General Build Maint,RESP One of the manhole covers and surround has be,311781 - REACTIVE
04/04/2019,SEC HN TOPUP UNALLOC,Kings College for the Arts & Techno,Agency Placement Expenditure, 959.00 ,Schools,SEN centre top up funding,Kings College Apr 19
04/04/2019,ASSET STRAT & PL MGR,Knight Frank LLP,Fees," 12,000.00 ",M-D (Property),Fees for feasibility and project support in connec,226402 - PROJECT
04/04/2019,NURSERY CLASS CTGCY,Lakeside Primary School,Agency Placement Expenditure," 10,904.00 ",Schools,Nursery funding,Lakeside Apr 19
04/04/2019,PRI GROWING SCHS,Lime Tree Primary,Agency Placement Expenditure," 1,125.00 ",Schools,Missing year group funding,Lime Tree Apr 19
04/04/2019,NURSERY CLASS CTGCY,Lime Tree Primary,Agency Placement Expenditure," 9,541.00 ",Schools,Nursery funding,Lime Tree Apr 19
04/04/2019,SPECIAL SCHS OTHER,Linden Bridge School,Agency Placement Expenditure," 8,829.00 ",Grants-Member Allocs,Outreach funding,Linden Bridge Apr 19
04/04/2019,SPECIAL SCHOOLS,Linden Bridge School,Agency Placement Expenditure," 142,111.00 ",Grants-Member Allocs,SEN top up funding,Linden Bridge Apr 19
04/04/2019,PR HN TOP UP UNALLOC,Loseley Fields Primary School,Agency Placement Expenditure," 4,167.00 ",Schools,SEN centre top up funding,Loseley Fields Apr 19
04/04/2019,PRI GROWING SCHS,Loseley Fields Primary School,Agency Placement Expenditure," 5,499.00 ",Schools,Vacant places funding,Loseley Fields Apr 19
04/04/2019,PRI GROWING SCHS,Marden Lodge Primary School,Agency Placement Expenditure," 3,826.00 ",Schools,Vacant places funding,Marden Lodge Apr 19
04/04/2019,NURSERY CLASS CTGCY,Marden Lodge Primary School,Agency Placement Expenditure," 10,757.00 ",Schools,Nursery funding,Marden Lodge Apr 19
04/04/2019,PR HN TOP UP UNALLOC,Meadhurst Primary School,Agency Placement Expenditure," 4,558.00 ",Grants-Member Allocs,SEN centre top up funding,Meadhurst Apr 19
04/04/2019,NURSERY CLASS CTGCY,Meadhurst Primary School,Agency Placement Expenditure," 17,003.00 ",Grants-Member Allocs,Nursery funding,Meadhurst Apr 19
04/04/2019,,Mears Ltd,," 9,759.65 ","Comm, Res & Inv Prop",Completion of construction works for Fordbridge Fi,338607 - PROJECT
04/04/2019,NURSERY CLASS CTGCY,Merstham Primary School,Agency Placement Expenditure," 3,916.00 ",Schools,Nursery funding,Merstham Apr 19
04/04/2019,NURSERY CLASS CTGCY,Mytchett Primary School,Agency Placement Expenditure, 350.00 ,Schools,EYPP spring term 19,Mytchett Apr 19
04/04/2019,NURSERY CLASS CTGCY,Mytchett Primary School,Agency Placement Expenditure," 9,606.00 ",Schools,Nursery funding,Mytchett Apr 19
04/04/2019,AGENCY NON CWD SC,National Fostering Agency,Foster Care Placements," 1,392.82 ",Sup Living Children,,
04/04/2019,CARE LEAVER PACKAGES,National Fostering Agency,Foster Care Placements," 3,020.08 ",Sup Living Children,,
04/04/2019,ASYLUM SKRS 16-17,National Fostering Agency,Foster Care Placements," 3,020.08 ",Sup Living Children,,
04/04/2019,AGENCY NON CWD SC,National Fostering Agency,Foster Care Placements," 3,020.08 ",Sup Living Children,,
04/04/2019,AGENCY NON CWD SC,National Fostering Agency,Foster Care Placements," 3,200.12 ",Sup Living Children,,
04/04/2019,AGENCY NON CWD SC,National Fostering Agency,Foster Care Placements," 3,428.70 ",Sup Living Children,,
04/04/2019,AGENCY NON CWD SC,National Fostering Agency,Foster Care Placements," 5,195.96 ",Sup Living Children,,
04/04/2019,FAIRMOUNT HOUSE,Neopost Ltd-Neofunds Accounts,Postage and Courier Charges," 3,000.00 ",Non-Staff Expenses,,Redacted Personal Data
04/04/2019,,Network Rail Infrastructure Ltd,CE02 Works, 456.94 ,Local Bus,,
04/04/2019,PRI GROWING SCHS,New Monument School,Agency Placement Expenditure," 5,679.00 ",Schools,Vacant places funding,New Monument Apr 19
04/04/2019,NURSERY CLASS CTGCY,New Monument School,Agency Placement Expenditure," 8,040.00 ",Schools,Nursery funding,New Monument Apr 19
04/04/2019,PRI ADDIT SEN THRESH,Northmead Junior School,Agency Placement Expenditure, 396.00 ,Schools,Additional SEN funding,Northmead Apr 19
04/04/2019,PR HN TOP UP UNALLOC,Northmead Junior School,Agency Placement Expenditure," 3,557.00 ",Schools,SEN centre top up funding,Northmead Apr 19
04/04/2019,PRI GROWING SCHS,Northmead Junior School,Agency Placement Expenditure," 4,543.00 ",Schools,Vacant places funding,Northmead Apr 19
04/04/2019,NURSERY CLASS CTGCY,Ottershaw COE School,Agency Placement Expenditure," 10,875.00 ",Non-Staff Expenses,Nursery funding,Redacted Personal Data
04/04/2019,SEC HN TOPUP UNALLOC,Oxted School,Agency Placement Expenditure," 19,321.00 ",Schools,SEN centre top up funding,Oxted Apr 19
04/04/2019,NW IPSB - PLAYGROUPS,Peter Pan Pre-School Nursery,Agency Placement Nursery Exp, 329.40 ,Nurseries,,
04/04/2019,PRI ADDIT SEN THRESH,Pirbright Village Primary School,Agency Placement Expenditure, 724.00 ,Schools,Additional SEN funding,Pirbright Apr 19
04/04/2019,AGENCY NON CWD SC,PJL Healthcare Ltd,Residential Placements," 19,919.67 ",Non-Staff Training,,
04/04/2019,SPECIAL SCHOOLS,Pond Meadow School,Agency Placement Expenditure," 4,167.00 ",Short break,Additional place funding,Pond Meadow Apr 19
04/04/2019,SPECIAL SCHOOLS,Pond Meadow School,Agency Placement Expenditure," 111,834.00 ",Short break,SEN top up funding,Pond Meadow Apr 19
04/04/2019,PR HN TOP UP UNALLOC,Pyrcroft Grange Primary School,Agency Placement Expenditure," 10,008.00 ",Schools,SEN centre top up funding,Pyrcroft Grange Apr 19
04/04/2019,PRI ADDIT SEN THRESH,Pyrford COE (A) Primary School,Agency Placement Expenditure, 470.00 ,Schools,Additional SEN funding,Pyrford Primary Apr 19
04/04/2019,NURSERY CLASS CTGCY,Pyrford COE (A) Primary School,Agency Placement Expenditure," 12,495.00 ",Schools,Nursery funding,Pyrford Primary Apr 19
04/04/2019,PRI GROWING SCHS,Queen Eleanors COE Junior School,Agency Placement Expenditure," 1,363.00 ",Schools,Vacant places funding,Queen Eleanors Apr 19
04/04/2019,CUSTOMER INTERACT,Redacted Personal Data,SCC Permitted User - Car, 251.10 ,Pensions,*Trip from 10.12.18 To  31.03.19,Redacted Personal Data
04/04/2019,CUSTOMER INTERACT,Redacted Personal Data,SCC Permitted User - Car, 255.94 ,Staff Expenses,*Trip from 04.01.19 To  28.03.19,Redacted Personal Data
04/04/2019,CUSTOMER INTERACT,Redacted Personal Data,SCC Permitted User - Car, 262.30 ,Staff Expenses,*Trip from 01.03.19 To  31.03.19,Redacted Personal Data
04/04/2019,CUSTOMER INTERACT,Redacted Personal Data,SCC Permitted User - Car, 277.20 ,Staff Expenses,*Trip from 01.03.19 To  03.04.19,Redacted Personal Data
04/04/2019,CUSTOMER INTERACT,Redacted Personal Data,SCC Permitted User - Car, 282.56 ,Pensions,*Trip from 27.02.19 To  29.03.19,Redacted Personal Data
04/04/2019,CUSTOMER INTERACT,Redacted Personal Data,SCC Permitted User - Car, 295.20 ,Staff Expenses,*Trip from 01.03.19 To  29.03.19,Redacted Personal Data
04/04/2019,CARE LEAVER PACKAGES,Redacted Personal Data,Non-Staff Related Transport Costs, 330.40 ,Invoicing Plan Req.,Redacted Personal Data,
04/04/2019,EVENTS AND TOURS,Redacted Personal Data,Educ Visits/Hols/Camps/Toys, 334.00 ,Recruit & Assessment,,
04/04/2019,SW CARE - CPCRT LAC,Redacted Personal Data,Non-Staff Related Transport Costs, 334.80 ,Invoicing Plan Req.,Redacted Personal Data,
04/04/2019,CUSTOMER INTERACT,Redacted Personal Data,SCC Permitted User - Car, 361.40 ,Staff Expenses,*Trip from 30.01.19 To  18.03.19,Redacted Personal Data
04/04/2019,CUSTOMER INTERACT,Redacted Personal Data,SCC Permitted User - Car, 366.51 ,Staff Expenses,*Trip from 01.03.19 To  29.03.19,Redacted Personal Data
04/04/2019,CUSTOMER INTERACT,Redacted Personal Data,SCC Permitted User - Car, 386.37 ,Staff Expenses,*Trip from 28.11.18 To  22.03.19,Redacted Personal Data
04/04/2019,SURREY HEATH CARE OP,Redacted Personal Data,Direct Payments - Independent Sector, 403.71 ,Individual - NEC,PAY THE INDIVIDUAL SW (2169),Redacted Personal Data
04/04/2019,CUSTOMER INTERACT,Redacted Personal Data,SCC Permitted User - Car, 416.90 ,Staff Expenses,*Trip from 07.01.19 To  25.03.19,Redacted Personal Data
04/04/2019,CARE LEAVER PACKAGES,Redacted Personal Data,Other Community Care - Vol, 444.63 ,Invoicing Plan Req.,Redacted Personal Data,
04/04/2019,CUSTOMER INTERACT,Redacted Personal Data,SCC Permitted User - Car, 466.20 ,Staff Expenses,*Trip from 10.01.19 To  28.03.19,Redacted Personal Data
04/04/2019,SW CARE - CPCRT LAC,Redacted Personal Data,Non-Staff Related Transport Costs, 472.00 ,Invoicing Plan Req.,Redacted Personal Data,
04/04/2019,CUSTOMER INTERACT,Redacted Personal Data,SCC Permitted User - Car, 560.25 ,Staff Expenses,*Trip from 03.01.19 To  03.04.19,Redacted Personal Data
04/04/2019,NE CARE - CPCRT NONL,Redacted Personal Data,Other Community Care - Vol, 590.32 ,Invoicing Plan Req.,Redacted Personal Data,
04/04/2019,CUSTOMER INTERACT,Redacted Personal Data,SCC Permitted User - Car, 615.90 ,Staff Expenses,*Trip from 27.07.18 To  08.10.18,Redacted Personal Data
04/04/2019,DOLS TEAM,Redacted Personal Data,Fees, 682.85 ,Specialist Serv,,
04/04/2019,NE ALTERNATIVE SEN,Redacted Personal Data,Fees, 825.00 ,Invoicing Plan Req.,Redacted Personal Data,
04/04/2019,ASYLUM SEEKERS 18+,Redacted Personal Data,Equipment, 874.98 ,Invoicing Plan Req.,Redacted Personal Data,
04/04/2019,Personal Budget (NE),Redacted Personal Data,Fees," 1,400.00 ",Adult direct payment,Redacted Personal Data,Redacted Personal Data
04/04/2019,SEC FAIR ACCESS,Reigate School,Third Party Payments-Other Agencies," 1,000.00 ",Schools,IYFAP - High Needs Admission: F.S,Reigate Apr 19
04/04/2019,NW SOC WORK ACADEMY,Right 2 Write Ltd,Equipment, 480.00 ,Staff Training,,
04/04/2019,ORBIS AUDIT,River Abs Ltd,Consultants," 1,050.00 ",Org & Bus Consult,,
04/04/2019,NURSERY CLASS CTGCY,Riverbridge Primary School,Agency Placement Expenditure, 787.00 ,Schools,EYPP spring term 19,Riverbridge Apr 19
04/04/2019,NURSERY CLASS CTGCY,Riverbridge Primary School,Agency Placement Expenditure," 14,118.00 ",Schools,Nursery funding,Riverbridge Apr 19
04/04/2019,AGENCY NON CWD SC,ROC Northwest Ltd,Residential Placements," 13,400.00 ",Res Care,,
04/04/2019,SEC HN TOPUP UNALLOC,Rodborough Technology College Acade,Agency Placement Expenditure," 20,127.00 ",Schools,SEN centre top up funding,Rodborough Apr 19
04/04/2019,AGENCY NON CWD SC,Rodor Housing & Support,Residential Placements," 18,821.34 ",Res Care,,
04/04/2019,LOCAL SCH R'MEDE NPR,Runnymede Borough Council,Contractor, 340.80 ,Local Government,,
04/04/2019,SEC GROWING SCHS,Salesian School,Agency Placement Expenditure," 19,208.00 ",Schools,Growing schools funding,Salesian Apr 19
04/04/2019,SEC HN TOPUP UNALLOC,Salesian School,Agency Placement Expenditure," 27,770.00 ",Schools,SEN centre top up funding,Salesian Apr 19
04/04/2019,PRI GROWING SCHS,Salfords Primary School,Agency Placement Expenditure," 2,292.00 ",Schools,Growing schools funding,Salfords Apr 19
04/04/2019,PRI GROWING SCHS,Sandcross Primary School,Agency Placement Expenditure," 6,217.00 ",Schools,Vacant places funding,Hatchlands Apr 19
04/04/2019,NURSERY CLASS CTGCY,Sandcross Primary School,Agency Placement Expenditure," 12,003.00 ",Schools,Nursery funding,Sandcross Apr 19
04/04/2019,NURSERY CLASS CTGCY,Sandringham School & Little Badgers,Agency Placement Expenditure, 525.00 ,Schools,EYPP spring term 19,Sandringham Apr 19
04/04/2019,NURSERY CLASS CTGCY,Sandringham School & Little Badgers,Agency Placement Expenditure," 10,430.00 ",Schools,Nursery funding - Jan to Mar 19,Sandringham Apr 19
04/04/2019,PRI ADDIT SEN THRESH,Saxon Primary School,Agency Placement Expenditure, 498.00 ,Schools,Additional SEN funding,Saxon Apr 19
04/04/2019,PRI GROWING SCHS,Saxon Primary School,Agency Placement Expenditure," 8,049.00 ",Schools,Growing schools funding,Saxon Apr 19
04/04/2019,NURSERY CLASS CTGCY,Sayes Court School,Agency Placement Expenditure, 262.00 ,Schools,EYPP spring term 19,Sayes Court Apr 19
04/04/2019,NURSERY CLASS CTGCY,Sayes Court School,Agency Placement Expenditure," 7,331.00 ",Schools,Nursery funding,Sayes Court Apr 19
04/04/2019,SW TEACHERS,SCC Hale School,Agency Staff Non-OM (Irregular Cover), 600.00 ,Schools,Redacted Personal Data,
04/04/2019,SW TEACHERS,SCC Shawfield Primary School,Agency Staff Non-OM (Irregular Cover)," 1,000.00 ",Schools,Redacted Personal Data,
04/04/2019,NE IPSB - PLAYGROUPS,Shepperton Pre School Ltd,Agency Placement Nursery Exp, 329.40 ,Schools,,
04/04/2019,NURSERY CLASS CTGCY,South Camberley Primary & Nursery S,Agency Placement Expenditure," 19,133.00 ",Schools,Nursery funding,Sth Camberley Apr 19
04/04/2019,PRI ADDIT SEN THRESH,South Farnham Educational Trust,Agency Placement Expenditure," 1,263.00 ",Educ Tuition Fees,Additional SEN funding,The Raleigh Apr 19
04/04/2019,NURSERY CLASS CTGCY,Springfield Primary School & Nurser,Agency Placement Expenditure, 875.00 ,Schools,EYPP spring term 19,Springfield Apr 19
04/04/2019,NURSERY CLASS CTGCY,Springfield Primary School & Nurser,Agency Placement Expenditure," 11,283.00 ",Schools,Nursery funding,Springfield Apr 19
04/04/2019,PRI ADDIT SEN THRESH,St Albans Catholic Primary School,Agency Placement Expenditure," 2,197.00 ",Schools,Additional SEN funding,St Albans Apr 19
04/04/2019,PRI GROWING SCHS,St Albans Catholic Primary School,Agency Placement Expenditure," 8,258.00 ",Schools,Growing schools funding,St Albans Apr 19
04/04/2019,PRI ADDIT SEN THRESH,St Charles Borromeo Catholic Primar,Agency Placement Expenditure, 943.00 ,Schools,Additional SEN funding,St Charles Borromeo Apr19
04/04/2019,NURSERY CLASS CTGCY,St Charles Borromeo Catholic Primar,Agency Placement Expenditure," 9,893.00 ",Schools,Nursery funding,St Charles Borromeo Apr19
04/04/2019,PRI ADDIT SEN THRESH,St Cuthbert Mayne Catholic Primary,Agency Placement Expenditure, 250.00 ,Schools,Additional SEN funding,St Cuthbert Mayne Apr 19
04/04/2019,PRI ADDIT SEN THRESH,St Hugh of Lincoln Catholic Primary,Agency Placement Expenditure, 767.00 ,Schools,Additional SEN funding,St Hugh of Lincoln Apr 19
04/04/2019,SEC GROWING SCHS,St John The Baptist School,Agency Placement Expenditure," 20,028.00 ",Schools,Growing schools funding,St John the Baptist Apr 1
04/04/2019,PRI NURTURE &OUTRCH,St Johns COE Primary School,Agency Placement Expenditure," 2,969.00 ",Schools,Nurture group funding,St Johns Dorking Apr 19
04/04/2019,NURSERY CLASS CTGCY,St Johns COE Primary School,Agency Placement Expenditure," 9,746.00 ",Schools,Nursery funding,St Johns Dorking Apr 19
04/04/2019,NURSERY CLASS CTGCY,St Johns Primary School,Agency Placement Expenditure," 11,763.00 ",Schools,Nursery funding,St Johns Knaphill Apr 19
04/04/2019,PRI GROWING SCHS,St Marys COE (A) Primary School,Agency Placement Expenditure," 2,152.00 ",Schools,Growing schools funding,St Mary's Apr 19
04/04/2019,SE IPSB - PLAYGROUPS,St Marys Pre School,Agency Placement Nursery Exp, 546.00 ,Nursery,,
04/04/2019,PR HN TOP UP UNALLOC,St Matthews School Redhill,Agency Placement Expenditure," 6,735.00 ",Grants-Member Allocs,SEN centre top up funding,St Matthews Apr 19
04/04/2019,NURSERY CLASS CTGCY,St Matthews School Redhill,Agency Placement Expenditure," 9,397.00 ",Grants-Member Allocs,Nursery funding,St Matthews Apr 19
04/04/2019,PRI ADDIT SEN THRESH,St Stephens COE Primary School,Agency Placement Expenditure," 1,297.00 ",Schools,Additional SEN funding,St Stephens Apr 19
04/04/2019,NURSERY CLASS CTGCY,St Stephens COE Primary School,Agency Placement Expenditure," 8,315.00 ",Schools,Nursery funding,St Stephens Apr 19
04/04/2019,PR HN TOP UP UNALLOC,St Stephens COE Primary School,Agency Placement Expenditure," 8,509.00 ",Schools,SEN centre top up funding,St Stephens Apr 19
04/04/2019,NURSERY CLASS CTGCY,Stanwell Fields COE Primary School,Agency Placement Expenditure," 4,871.00 ",Schools,Nursery funding,Stanwell Fields Apr 19
04/04/2019,PRI NURTURE &OUTRCH,Stoughton Infant School,Agency Placement Expenditure," 2,969.00 ",Schools,Nurture group funding,Stoughton Apr 19
04/04/2019,NURSERY CLASS CTGCY,Stoughton Infant School,Agency Placement Expenditure," 17,304.00 ",Schools,Nursery funding,Stoughton Apr 19
04/04/2019,SEC HN TOPUP UNALLOC,Sunbury Manor School,Agency Placement Expenditure," 1,648.00 ",Schools,SEN centre top up funding,Sunbury Manor Apr 19
04/04/2019,SEC GROWING SCHS,Sunbury Manor School,Agency Placement Expenditure," 12,555.00 ",Schools,Growing schools funding,Sunbury Manor Apr 19
04/04/2019,AGENCY NON CWD SC,Surecare Residential Ltd,Residential Placements," 18,803.67 ",Res Care,,
04/04/2019,SURREY CHOICES,Surrey Choices Ltd,Respite Residential," 5,363.09 ",Day Care - PSD,,
04/04/2019,SURREY CHOICES,Surrey Choices Ltd,Respite Residential," 28,635.00 ",Day Care - PSD,,
04/04/2019,,Surrey Wildlife Trust,CE02 Works, 876.00 ,Grants-Member Allocs,,
04/04/2019,PR HN TOP UP UNALLOC,Sythwood Primary School,Agency Placement Expenditure," 7,990.00 ",Schools,SEN centre top up funding,Sythwood Apr 19
04/04/2019,NURSERY CLASS CTGCY,Sythwood Primary School,Agency Placement Expenditure," 24,014.00 ",Schools,Nursery funding,Sythwood Apr 19
04/04/2019,NURSERY CLASS CTGCY,Tandridge Learning Trust,Agency Placement Expenditure, 350.00 ,Schools,EYPP spring term 19,Bletchingley Vill Apr 19
04/04/2019,PRI GROWING SCHS,Tandridge Learning Trust,Agency Placement Expenditure," 2,499.00 ",Schools,Vacant places funding,Bletchingley Vill Apr 19
04/04/2019,PR HN TOP UP UNALLOC,Tandridge Learning Trust,Agency Placement Expenditure," 5,016.00 ",Schools,SEN centre top up funding,Bletchingley Vill Apr 19
04/04/2019,NURSERY CLASS CTGCY,Tandridge Learning Trust,Agency Placement Expenditure," 6,340.00 ",Schools,Nursery funding,Bletchingley Vill Apr 19
04/04/2019,SPECIAL SCHOOLS,The Abbey School,Agency Placement Expenditure," 1,667.00 ",School Support Serv,Additional place funding,The Abbey Apr 19
04/04/2019,SPECIAL SCHS OTHER,The Abbey School,Agency Placement Expenditure," 4,482.00 ",School Support Serv,Outreach funding,The Abbey Apr 19
04/04/2019,SPECIAL SCHOOLS,The Abbey School,Agency Placement Expenditure," 43,143.00 ",School Support Serv,SEN top up funding,The Abbey Apr 19
04/04/2019,HYTHE SCHOOL,The Acme Facilities Group Ltd,Equipment, 813.60 ,Cat Equip Supply&Fit,,
04/04/2019,SEC LNG SPT UNITS,The Beacon School,Agency Placement Expenditure," 3,441.00 ",Schools,Learning support unit,The Beacon Apr 19
04/04/2019,PRI ADDIT SEN THRESH,The Eastwick Schools,Agency Placement Expenditure," 1,494.00 ",Grants-Member Allocs,Additional SEN funding,Eastwick Federation Apr19
04/04/2019,PR HN TOP UP UNALLOC,The Eastwick Schools,Agency Placement Expenditure," 22,336.00 ",Grants-Member Allocs,SEN centre top up funding,Eastwick Federation Apr19
04/04/2019,NURSERY CLASS CTGCY,The Federation Of Pine Ridge & Lorr,Agency Placement Expenditure," 11,887.00 ",Grants-Member Allocs,Nursery funding,Lorraine/Pine Ridge Apr19
04/04/2019,PR HN TOP UP UNALLOC,The Grove Academy,Agency Placement Expenditure," 4,285.00 ",Grants-Member Allocs,SEN centre top up funding,The Grove Apr 19
04/04/2019,PR HN TOP UP UNALLOC,The Hermitage School,Agency Placement Expenditure," 5,170.00 ",Schools,SEN centre top up funding,The Hermitage Apr 19
04/04/2019,SE IPSB - PLAYGROUPS,The Howard Nursery,Agency Placement Nursery Exp, 823.50 ,Nursery,,
04/04/2019,AGENCY NON CWD SC,The Lioncare Group,Residential Placements," 14,981.99 ",Residential - MH,,
04/04/2019,PRI ADDIT SEN THRESH,The Marist Catholic Primary School,Agency Placement Expenditure, 494.00 ,Schools,Additional SEN funding,The Marist Apr 19
04/04/2019,OCCUPATIONAL THERAPY,The OT Practice Ltd,Other Community Care - Priv, 410.00 ,Occupational Therapy,,
04/04/2019,SPECIAL SCHOOLS,The Ridgeway School,Agency Placement Expenditure," 101,003.00 ",Schools,SEN top up funding,The Ridgeway Apr 19
04/04/2019,PRI ADDIT SEN THRESH,The Vale Primary School,Agency Placement Expenditure, 457.00 ,Schools,Additional SEN funding,The Vale Apr 19
04/04/2019,SEC FAIR ACCESS,The Warwick School,Third Party Payments-Other Agencies," 1,000.00 ",Schools,IYFAP - High Needs Admission: E.P,The Warwick Apr 19
04/04/2019,SEC LNG SPT UNITS,The Warwick School,Agency Placement Expenditure," 3,441.00 ",Schools,Learning support unit,The Warwick Apr 19
04/04/2019,SEC GROWING SCHS,The Warwick School,Agency Placement Expenditure," 11,555.00 ",Schools,Growing schools funding,The Warwick Apr 19
04/04/2019,PRI ADDIT SEN THRESH,The Weald C of E Primary School,Agency Placement Expenditure," 3,973.00 ",Schools,Additional SEN funding,The Weald Apr 19
04/04/2019,SEC LNG SPT UNITS,Therfield School,Agency Placement Expenditure," 3,441.00 ",Schools,Learning support unit,Therfield Apr 19
04/04/2019,SEC HN TOPUP UNALLOC,Therfield School,Agency Placement Expenditure," 3,573.00 ",Schools,SEN centre top up funding,Therfield Apr 19
04/04/2019,SEC LNG SPT UNITS,Thomas Knyvett College,Agency Placement Expenditure," 3,441.00 ",Grants-Member Allocs,Learning support unit,Thomas Knyvett Apr 19
04/04/2019,SEC HN TOPUP UNALLOC,Tomlinscote School & Sixth Form Col,Agency Placement Expenditure, 681.00 ,Schools,SEN centre top up funding,Tomlinscote Apr 19
04/04/2019,SEC FAIR ACCESS,Tomlinscote School & Sixth Form Col,Third Party Payments-Other Agencies," 1,000.00 ",Schools,Redacted Personal Data,Tomlinscote Apr 19
04/04/2019,ASYLUM SEEKERS 18+,Value Living Ltd,Independent Living Placements," 3,278.70 ",Sup Living Children,,
04/04/2019,ASYLUM SEEKERS 18+,Value Living Ltd,Independent Living Placements," 4,444.46 ",Sup Living Children,,
04/04/2019,PRI GROWING SCHS,Waverley Abbey COE Junior School,Agency Placement Expenditure," 2,272.00 ",Schools,Vacant places funding,Waverley Abbey Apr 19
04/04/2019,,Waverley Borough Council,," 4,707.00 ",Grants-Member Allocs,Redacted Personal Data,90 Deposit  Refund
04/04/2019,NURSERY CLASS CTGCY,West Ewell Primary School & Nursery,Agency Placement Expenditure, 700.00 ,Schools,EYPP spring term 19,West Ewell Pr Apr 19
04/04/2019,PRI SEN Ctr PLS,West Ewell Primary School & Nursery,Agency Placement Expenditure," 1,667.00 ",Schools,2 Additional places in SEN centre,West Ewell Pr Apr 19
04/04/2019,PRI GROWING SCHS,West Ewell Primary School & Nursery,Agency Placement Expenditure," 2,250.00 ",Schools,Diseconomies of scale - missing classes,West Ewell Pr Apr 19
04/04/2019,PR HN TOP UP UNALLOC,West Ewell Primary School & Nursery,Agency Placement Expenditure," 4,648.00 ",Schools,SEN centre top up funding,West Ewell Pr Apr 19
04/04/2019,NURSERY CLASS CTGCY,West Ewell Primary School & Nursery,Agency Placement Expenditure," 19,627.00 ",Schools,Nursery funding,West Ewell Pr Apr 19
04/04/2019,SPECIAL SCHOOLS,West Hill School,Agency Placement Expenditure," 6,667.00 ",Schools,8 places for Apr 19 to Aug 19,West Hill Apr 19
04/04/2019,SPECIAL SCHOOLS,West Hill School,Agency Placement Expenditure," 52,436.00 ",Schools,SEN top up funding,West Hill Apr 19
04/04/2019,PRI GROWING SCHS,Westfield Primary School,Agency Placement Expenditure," 3,108.00 ",Schools,Vacant places funding,Westfield Apr 19
04/04/2019,SEC GROWING SCHS,Weydon School,Agency Placement Expenditure," 21,069.00 ",Schools,Growing schools funding,Weydon Apr 19
04/04/2019,NW IPSB - PLAYGROUPS,White Lodge Centre,Agency Placement Nursery Exp, 686.25 ,Day Care - PSD,,
04/04/2019,LD COST OF CARE LD,Whitmore Vale Housing Association L,Supported Living, 263.12 ,Residential - MH,Redacted Personal Data,Redacted Personal Data
04/04/2019,LD COST OF CARE LD,Whitmore Vale Housing Association L,Supported Living, 263.12 ,Residential - MH,Redacted Personal Data,Redacted Personal Data
04/04/2019,LD COST OF CARE LD,Whitmore Vale Housing Association L,Supported Living, 270.72 ,Residential - MH,Redacted Personal Data,Redacted Personal Data
04/04/2019,LD COST OF CARE LD,Whitmore Vale Housing Association L,Supported Living, 278.16 ,Residential - MH,Redacted Personal Data,Redacted Personal Data
04/04/2019,LD COST OF CARE LD,Whitmore Vale Housing Association L,Supported Living, 285.76 ,Residential - MH,Redacted Personal Data,Redacted Personal Data
04/04/2019,LD COST OF CARE LD,Whitmore Vale Housing Association L,Supported Living, 300.80 ,Residential - MH,Redacted Personal Data,Redacted Personal Data
04/04/2019,LD COST OF CARE LD,Whitmore Vale Housing Association L,Supported Living, 300.80 ,Residential - MH,Redacted Personal Data,Redacted Personal Data
04/04/2019,LD COST OF CARE LD,Whitmore Vale Housing Association L,Supported Living, 308.24 ,Residential - MH,Redacted Personal Data,Redacted Personal Data
04/04/2019,LD COST OF CARE LD,Whitmore Vale Housing Association L,Supported Living, 330.88 ,Residential - MH,Redacted Personal Data,Redacted Personal Data
04/04/2019,LD COST OF CARE LD,Whitmore Vale Housing Association L,Supported Living, 330.88 ,Residential - MH,Redacted Personal Data,Redacted Personal Data
04/04/2019,LD COST OF CARE LD,Whitmore Vale Housing Association L,Supported Living, 376.00 ,Residential - MH,Redacted Personal Data,Redacted Personal Data
04/04/2019,LD COST OF CARE LD,Whitmore Vale Housing Association L,Supported Living, 376.00 ,Residential - MH,Redacted Personal Data,Redacted Personal Data
04/04/2019,LD COST OF CARE LD,Whitmore Vale Housing Association L,Supported Living, 421.12 ,Residential - MH,Redacted Personal Data,Redacted Personal Data
04/04/2019,LD COST OF CARE LD,Whitmore Vale Housing Association L,Supported Living, 421.12 ,Residential - MH,Redacted Personal Data,Redacted Personal Data
04/04/2019,LD COST OF CARE LD,Whitmore Vale Housing Association L,Supported Living, 428.56 ,Residential - MH,Redacted Personal Data,Redacted Personal Data
04/04/2019,LD COST OF CARE LD,Whitmore Vale Housing Association L,Supported Living, 443.40 ,Residential - MH,Redacted Personal Data,Redacted Personal Data
04/04/2019,LD COST OF CARE LD,Whitmore Vale Housing Association L,Supported Living, 496.32 ,Residential - MH,Redacted Personal Data,Redacted Personal Data
04/04/2019,LD COST OF CARE LD,Whitmore Vale Housing Association L,Supported Living, 541.44 ,Residential - MH,Redacted Personal Data,Redacted Personal Data
04/04/2019,LD COST OF CARE LD,Whitmore Vale Housing Association L,Supported Living, 571.52 ,Residential - MH,Redacted Personal Data,Redacted Personal Data
04/04/2019,LD COST OF CARE LD,Whitmore Vale Housing Association L,Supported Living, 676.80 ,Residential - MH,Redacted Personal Data,Redacted Personal Data
04/04/2019,SPECIAL SCHOOLS,Wishmore Cross Academy,Agency Placement Expenditure," 95,448.00 ",Schools,SEN top up funding,Wishmore Cross Apr19
04/04/2019,SEC HN TOPUP UNALLOC,Woking High School,Agency Placement Expenditure," 13,757.00 ",Schools,SEN centre top up funding,Woking High Apr 19
04/04/2019,PRI FAIR ACCESS,Wray Common Primary School,Third Party Payments-Other Agencies," 1,000.00 ",Schools,IYFAP - High Needs Admission: L.P,Wray Common Apr 19
04/04/2019,PRI GROWING SCHS,Wray Common Primary School,Agency Placement Expenditure," 2,152.00 ",Schools,Vacant places funding,Wray Common Apr 19
04/04/2019,NE AGENCY PLACE-ED,Young Epilepsy,Agency Placement Expenditure," 15,730.67 ",Grants-Member Allocs,,
05/04/2019,ELMBRIDGE LOC,Able 2 O T Services Ltd,Other Community Care, 518.00 ,Specialist Serv,,
05/04/2019,TRANSPORT,Activ-Air Automation Ltd,Vehicle Repairs and Maintenance, 272.95 ,General Build Maint,,25303-79511
05/04/2019,HEAD OF COMM & PREV,ADCS Ltd,Subsistence and Conference Expenses," 3,762.00 ",Conference Attend,,
05/04/2019,,Adecco UK Ltd,," 19,386.18 ",Recruit & Assessment,,
05/04/2019,,Adecco UK Ltd,," 455,625.25 ",Recruit & Assessment,SCC10643,
05/04/2019,EAST CWD NONLAC CARE,Ambition 24 Hours,Home Care - Priv, 355.67 ,Supp Living - MH,,Redacted Personal Data
05/04/2019,EAST CWD NONLAC CARE,Ambition 24 Hours,Home Care - Priv, 432.59 ,Supp Living - MH,,Redacted Personal Data
05/04/2019,WEST CWD NONLAC CARE,Ambition 24 Hours,Home Care - Priv, 589.81 ,Supp Living - MH,,Redacted Personal Data
05/04/2019,WEST CWD NONLAC CARE,Ambition 24 Hours,Home Care - Priv, 631.04 ,Supp Living - MH,,Redacted Personal Data
05/04/2019,EAST CWD NONLAC CARE,Ambition 24 Hours,Home Care - Priv," 1,159.38 ",Supp Living - MH,,Redacted Personal Data
05/04/2019,ACL CENTRAL EXP,AV Parts Master Ltd,Computer Hardware," 8,772.00 ",Software Maint&Supp,,
05/04/2019,CSF TRAINING PROG,Best Western Reigate Manor Hotel,New GR/IR Account, 300.50 ,Catering Supplies,,
05/04/2019,CHC TEAM INV TO SAVE,Bevan Brittan LLP,Legal Exps-Specialised Nature," 1,276.80 ",Specialist Nature,,
05/04/2019,NE CARE - CPCRT LAC,Bizz Kidz Ltd,Third Party Payments-Other Agencies," 5,469.00 ",Nursery,,
05/04/2019,ACL CENTRAL EXP,Boogie Mites Uk Ltd,Third Party Payments-Other Agencies," 2,344.32 ",Individual - NEC,,
05/04/2019,PUPIL PREMIUM LAC,Bootham School,Agency Placement Expenditure," 1,372.00 ",Schools,,
05/04/2019,SIGNS-SOFT/SUPP/INSP,BT UK Business Accounts,Telecommunication Charges," 14,554.51 ",Telecare,Redacted Personal Data,
05/04/2019,NE CARE - CPCRT LAC,Cansford Laboratories Ltd,DNA & Drug Testing, 898.32 ,Witness & Prof Exp,,
05/04/2019,MH CONTRACTS,Catalyst,Other Community Care," 53,285.75 ",Rehab Services,,
05/04/2019,MH CONTRACTS,Catalyst,Other Community Care," 96,554.25 ",Rehab Services,,
05/04/2019,MH CONTRACTS,Catalyst,Other Community Care," 137,079.25 ",Rehab Services,,
05/04/2019,NE ALTERNATIVE SEN,CEIEC,Agency Placement Expenditure, 300.00 ,SEN Specialist Supp,,
05/04/2019,NE AGENCY PLACE-ED,City of Bradford MDC,Agency Placement Expenditure," 14,122.00 ",Local Government,,
05/04/2019,HQ PYMNT OF INS CLMS,Claims Management - OTV BACS,Ins Claims Other Insured Paid, 257.00 ,,Redacted Personal Data,Redacted Personal Data
05/04/2019,AGENCY NON CWD SC,Compass Fostering South East Ltd,Foster Care Placements, 571.40 ,Fostering IFA,,
05/04/2019,AGENCY NON CWD SC,Compass Fostering South East Ltd,Foster Care Placements," 2,057.04 ",Fostering IFA,,
05/04/2019,AGENCY NON CWD SC,Cora Foundation,New GR/IR Account," 1,820.80 ",Res Care,,
05/04/2019,SW AGENCY PLACE-ED,Cressey Oasis Education Ltd,Agency Placement Expenditure," 17,771.00 ",SEND Agncy Placement,,
05/04/2019,AGENCY NON CWD SC,Diagrama Foundation,Foster Care Placements," 3,734.22 ",LAC Agency Fees,,
05/04/2019,AGENCY NON CWD SC,Diagrama Foundation,Foster Care Placements," 3,734.22 ",LAC Agency Fees,,
05/04/2019,AGENCY NON CWD SC,Diagrama Foundation,Foster Care Placements," 3,738.40 ",LAC Agency Fees,,
05/04/2019,SOLD ACCOMMODATION,Dorking Laundry,"Clothing, Uniforms and Laundry", 846.77 ,Laundry Service,,
05/04/2019,,DWF LLP,Miscellaneous Insurance, 420.00 ,General Support,,
05/04/2019,,DWF LLP,Miscellaneous Insurance, 706.80 ,General Support,,
05/04/2019,,DWF LLP,Miscellaneous Insurance, 911.40 ,General Support,,
05/04/2019,,DWF LLP,Miscellaneous Insurance, 921.61 ,General Support,,
05/04/2019,,DWF LLP,Miscellaneous Insurance, 975.06 ,General Support,,
05/04/2019,,DWF LLP,Miscellaneous Insurance," 1,548.00 ",General Support,,
05/04/2019,,DWF LLP,Miscellaneous Insurance," 2,682.60 ",General Support,,
05/04/2019,,DWF LLP,Miscellaneous Insurance," 3,538.22 ",General Support,,
05/04/2019,,DWF LLP,Miscellaneous Insurance," 9,475.92 ",General Support,,
05/04/2019,NE AGENCY PLACE-ED,Eagle House (Sutton),Agency Placement Expenditure," 16,618.33 ",SEND Agncy Placement,,
05/04/2019,NE AGENCY PLACE-ED,Eagle House (Sutton),Agency Placement Expenditure," 16,681.00 ",SEND Agncy Placement,,
05/04/2019,NE AGENCY PLACE-ED,Eagle House (Sutton),Agency Placement Expenditure," 16,817.67 ",SEND Agncy Placement,,
05/04/2019,NE AGENCY PLACE-ED,Eagle House (Sutton),Agency Placement Expenditure," 16,817.67 ",SEND Agncy Placement,,
05/04/2019,NE AGENCY PLACE-ED,Eagle House (Sutton),Agency Placement Expenditure," 17,748.67 ",SEND Agncy Placement,,
05/04/2019,CSF OPEN PROGRAMME,East Surrey Domestic Abuse Services,Training Expenses - External General, 550.00 ,Staff Training,,
05/04/2019,DOLS TEAM,Eddie & Mac  Ltd,Fees," 1,081.90 ",Specialist Serv,,
05/04/2019,AGENCY NON CWD SC,Ethelbert Specialist Homes,Foster Care Placements," 3,870.66 ",Sup Living Children,,
05/04/2019,AGENCY NON CWD SC,Ethelbert Specialist Homes,Foster Care Placements," 3,870.66 ",Sup Living Children,,
05/04/2019,AGENCY NON CWD SC,Ethelbert Specialist Homes,Foster Care Placements," 5,772.51 ",Sup Living Children,,
05/04/2019,AGENCY NON CWD SC,Ethelbert Specialist Homes,Foster Care Placements," 6,964.55 ",Sup Living Children,,
05/04/2019,AGENCY NON CWD SC,Ethelbert Specialist Homes,Residential Placements," 12,796.53 ",Sup Living Children,,
05/04/2019,AGENCY NON CWD SC,Ethelbert Specialist Homes,Residential Placements," 14,699.54 ",Sup Living Children,,
05/04/2019,AGENCY NON CWD SC,Ethelbert Specialist Homes,Residential Placements," 15,966.46 ",Sup Living Children,,
05/04/2019,AGENCY NON CWD SC,Familyplacement.com Ltd,Foster Care Placements," 4,928.00 ",Subscriptions,,
05/04/2019,INC VIRTUAL LEARNING,GL Education Group Ltd,Subscriptions to an Organisation," 3,840.00 ",Customised & Bespoke,,
05/04/2019,POST 16 PLACEMENT SW,Godalming College,Agency Placement Expenditure, 939.00 ,Staff Training,,
05/04/2019,POST 16 PLACEMENT SW,Godalming College,Agency Placement Expenditure," 1,636.00 ",Staff Training,,
05/04/2019,POST 16 PLACEMENT SW,Godalming College,Agency Placement Expenditure," 1,887.00 ",Staff Training,,
05/04/2019,POST 16 PLACEMENT SW,Godalming College,Agency Placement Expenditure," 1,965.00 ",Staff Training,,
05/04/2019,TRANSPORT,Godiva Ltd,Vehicle Repairs and Maintenance, 483.44 ,Fire Service Vehicle,,25204-79497
05/04/2019,TRANSPORT,Gresham Office Furniture Ltd,Furniture, 312.00 ,Furniture - Office,,
05/04/2019,,Guildford Borough Council,Deferred Charges," 5,933.50 ",Grants-Member Allocs,,
05/04/2019,,Guildford Borough Council,Deferred Charges," 6,325.00 ",Grants-Member Allocs,,
05/04/2019,AGENCY NON CWD SC,Hampshire County Council,Foster Care Placements," 11,125.19 ",School Support Serv,,
05/04/2019,AGENCY NON CWD SC,Hampshire County Council,Foster Care Placements," 11,461.46 ",School Support Serv,,
05/04/2019,,Harleyford Aggregates Ltd,," 17,707.50 ",Non-Staff Expenses,Redacted Personal Data,Redacted Personal Data
05/04/2019,RUNNYMEDE CARE OP,HCL Chauffeurs UK Ltd,Creditors Control Account, 480.00 ,Multi-purpose Veh,ADHOC2363: 01/01/2019 to 31/01/2019,Transport services
05/04/2019,PLD TRANSITION,HCL Chauffeurs UK Ltd,Creditors Control Account, 540.00 ,Multi-purpose Veh,ADHOC556: 01/01/2019 to 31/01/2019,Transport services
05/04/2019,PLD TRANSITION,HCL Chauffeurs UK Ltd,Creditors Control Account, 864.00 ,Multi-purpose Veh,ADHOC556: 01/01/2019 to 31/01/2019,Transport services
05/04/2019,PLD TRANSITION,HCL Chauffeurs UK Ltd,Creditors Control Account," 2,070.00 ",Multi-purpose Veh,ADHOC2426: 01/01/2019 to 31/01/2019,Transport services
05/04/2019,AGENCY NON CWD SC,Hillcrest Children Services 2 Ltd,Residential Placements," 19,197.99 ",Res Care,,
05/04/2019,WEST CWD NONLAC CARE,Interserve Healthcare Ltd,Home Care - Priv," 1,566.00 ",Grants - Community,,
05/04/2019,LOCAL ASSIST SCHEME,John Gillman & Sons Electrical Ltd,Equipment, 340.80 ,Comm Appliances,,
05/04/2019,LOCAL ASSIST SCHEME,John Gillman & Sons Electrical Ltd,Equipment, 393.60 ,Comm Appliances,,
05/04/2019,LOCAL ASSIST SCHEME,John Gillman & Sons Electrical Ltd,Equipment, 393.60 ,Comm Appliances,,
05/04/2019,PRINCIPAL SOC WORK,Katie Peddie Consulting Ltd,Consultants," 3,300.00 ",Org & Bus Consult,,
05/04/2019,PRINCIPAL SOC WORK,Katie Peddie Consulting Ltd,Consultants," 3,300.00 ",Org & Bus Consult,,
05/04/2019,PRINCIPAL SOC WORK,Katie Peddie Consulting Ltd,Consultants," 3,300.00 ",Org & Bus Consult,,
05/04/2019,BUS SUPP & CUST SERV,Keanes Maintenance Ltd,Contractor," 4,392.00 ",Highway Maintenance,,
05/04/2019,HASLEMERE FIRE STN,Kier Facilities Services Ltd,Term Contract Inspections, 256.51 ,General Build Maint,Quantity : 2,282529 - PROJECT
05/04/2019,THE HARBOUR,Kier Facilities Services Ltd,Term Contract Inspections, 256.51 ,General Build Maint,Quantity : 1,282541 - PROJECT
05/04/2019,CAMBERLEY FIRE STN,Kier Facilities Services Ltd,Term Contract Inspections, 256.51 ,General Build Maint,Quantity : 2,282518 - PROJECT
05/04/2019,COBGATES,Kier Facilities Services Ltd,Term Contract Inspections, 256.51 ,General Build Maint,Quantity : 1,282521 - PROJECT
05/04/2019,MYTCHETT PRY SCH,Kier Facilities Services Ltd,Buyback Inspections, 256.51 ,General Build Maint,Quantity : 1,336245 - PROJECT
05/04/2019,GUILDFORD GROVE PRY,Kier Facilities Services Ltd,Buyback Inspections, 256.51 ,General Build Maint,Quantity : 1,336240 - PROJECT
05/04/2019,STH CAMB PRY&NUR SCH,Kier Facilities Services Ltd,Buyback Inspections, 256.51 ,General Build Maint,Quantity : 1,336252 - PROJECT
05/04/2019,PINEHURST,Kier Facilities Services Ltd,Term Contract Inspections, 256.51 ,General Build Maint,Quantity : 1,282535 - PROJECT
05/04/2019,FARNHAM FIRE STATION,Kier Facilities Services Ltd,Term Contract Inspections, 256.51 ,General Build Maint,Quantity : 1,282525 - PROJECT
05/04/2019,CROSS FARM INF,Kier Facilities Services Ltd,Buyback Inspections, 256.51 ,General Build Maint,Quantity : 1,336238 - PROJECT
05/04/2019,LOSELEY FIELDS PRIM,Kier Facilities Services Ltd,Buyback Inspections, 256.51 ,General Build Maint,Quantity : 1,336885 - PROJECT
